Workbook

Sheet Sheet1
A1: Patient | B1: Admission number | C1: Birth date | D1: Admission date | E1: CA (years) | F1: Disease duration (months) | G1: Disease duration (years) | H1: Age of onset(years) | I1: Weight （kg） | J1: Height （cm） | K1: Weight SDS | L1: Height SDS | M1: BMI SDS | N1: BMI (kg/m2) | O1: Breast Tanner stage | P1: Date for BA | Q1: BA (years) | R1: Weight-for-BA SDS | S1: Basic LH（mIU/ml） | T1: Basic FSH（mIU/ml） | U1: Peak LH （mIU/ml） | V1: Peak FSH（mIU/ml） | W1: TG （mmol/L） | X1: CHOL （mmol/L） | Y1: HDL （mmol/L） | Z1: LDL （mmol/L） | AA1: DHEAS （ug/dl） | AB1: △4A （ng/ml） | AC1: INS （uIU/ml） | AD1: SHBG （nmol/L） | AE1: IGF-1 （ng/ml） | AF1: E2（pmol/L） | AG1: 出生体重 （kg） | AH1: 孕周 （w） | AI1: SGA （0/1） | AJ1: Thyroid function （0/1/2/3） | AK1: Height of father（cm） | AL1: Height of mother （cm） | AM1: THt （cm） | AN1: THt SDS | AO1: HtBA SDS-THt SDS | AP1: BA时年龄CAb（岁） | AQ1: BA-CAb （岁） | AR1: BA/CAb | AS1: Uterine length（cm） | AT1: LO （ml） | AU1: RO （ml） | AV1: O均值（ml） | AW1: Peak LH/Peak FSH | AX1: DHEAS SDS | AY1: IGF-1 SDS
A2: 1 | B2: 262053 | C2: 2007-08-05 | D2: 2015-01-01 | E2: =(D2-C2)/365 -> 7.41 | F2: 6.0 | G2: =F2/12 -> 0.50 | H2: =E2-(F2/12) -> 6.91 | I2: 25.0 | J2: 131.4 | K2: 0.36 | L2: 1.22 | M2: -0.41 | N2: =I2/(J2*J2/10000) -> 14.48 | O2: 2 | P2: 2014-07-30 | Q2: 7.00 | R2: 1.76 | S2: 0.08 | T2: 1.88 | U2: 3.15 | V2: 13.78 | W2: 0.47 | X2: 4.14 | Y2: 1.55 | Z2: 2.50 | AA2: 64.2 | AB2: 0.336 | AC2: 6.04 | AE2: 239 | AF2: 34 | AG2: 3.5 | AH2: 40 | AI2: 0 | AJ2: 0 | AK2: 160 | AL2: 162 | AM2: =(AK2+AL2)/2-6.5 -> 154.50 | AN2: =SUM((AM2-160.6)/5.3) -> -1.15 | AO2: =R2-AN2 -> 2.91 | AP2: =(P2-C2)/365 -> 6.99 | AQ2: =Q2-AP2 -> 0.01 | AR2: =Q2/AP2 -> 1.00 | AS2: 3.1 | AT2: 0.73 | AU2: 1.11 | AV2: =(AT2+AU2)/2 -> 0.92 | AW2: =U2/V2 -> 0.229 | AX2: =((AA2*10)-192.8)/103 -> 4.361 | AY2: =SUM((AE2-210.4)/70.89) -> 0.403
A3: 2 | B3: 262051 | C3: 2010-03-04 | D3: 2015-01-01 | E3: =(D3-C3)/365 -> 4.83 | F3: 3.0 | G3: =F3/12 -> 0.25 | H3: =E3-(F3/12) -> 4.58 | I3: 17.7 | J3: 105.3 | K3: -0.10 | L3: -0.90 | M3: 0.70 | N3: =I3/(J3*J3/10000) -> 15.96 | O3: 3 | P3: 2014-11-15 | Q3: 5.80 | R3: -2.29 | S3: 0.05 | T3: 1.56 | U3: 3.75 | V3: 20.53 | W3: 0.37 | X3: 3.85 | Y3: 1.07 | Z3: 2.58 | AA3: 1.3 | AB3: 0.15 | AC3: 4.76 | AE3: 86 | AF3: 10 | AG3: 3 | AH3: 40 | AI3: 0 | AJ3: 0 | AK3: 170 | AL3: 150.3 | AM3: =(AK3+AL3)/2-6.5 -> 153.65 | AN3: =SUM((AM3-160.6)/5.3) -> -1.31 | AO3: =R3-AN3 -> -0.98 | AP3: =(P3-C3)/365 -> 4.70 | AQ3: =Q3-AP3 -> 1.10 | AR3: =Q3/AP3 -> 1.23 | AS3: 2.6 | AT3: 0.34 | AU3: 0.26 | AV3: =(AT3+AU3)/2 -> 0.30 | AW3: =U3/V3 -> 0.183 | AX3: =((AA3*10)-92.9)/72.1 -> -1.108 | AY3: =SUM((AE3-188.29)/61.99) -> -1.650
A4: 3 | B4: 262243 | C4: 2006-10-18 | D4: 2015-01-03 | E4: =(D4-C4)/365 -> 8.22 | F4: 12.0 | G4: =F4/12 -> 1.00 | H4: =SUM(E4-(F4/12)) -> 7.22 | I4: 39.0 | J4: 132.0 | K4: 2.45 | L4: 0.40 | M4: 2.91 | N4: =I4/(J4*J4/10000) -> 22.38 | O4: 3 | P4: 2014-11-30 | Q4: 9.50 | R4: -0.82 | S4: 0.08 | T4: 2.45 | U4: 0.95 | V4: 12.95 | W4: 1.26 | X4: 3.59 | Y4: 0.93 | Z4: 2.58 | AA4: 23.9 | AB4: 0.15 | AC4: 12.82 | AE4: 267 | AF4: 29 | AG4: 3 | AH4: 38 | AI4: 0 | AJ4: 0 | AK4: 175 | AL4: 152 | AM4: =(AK4+AL4)/2-6.5 -> 157.00 | AN4: =SUM((AM4-160.6)/5.3) -> -0.68 | AO4: =R4-AN4 -> -0.14 | AP4: =(P4-C4)/365 -> 8.12 | AQ4: =Q4-AP4 -> 1.38 | AR4: =Q4/AP4 -> 1.17 | AS4: 3.3 | AT4: 1.76 | AU4: 1.61 | AV4: =(AT4+AU4)/2 -> 1.68 | AW4: =U4/V4 -> 0.073 | AX4: =((AA4*10)-240.4)/164.6 -> -0.009 | AY4: =SUM((AE4-261.66)/75.79) -> 0.070
A5: 4 | B5: 248523 | C5: 2008-02-07 | D5: 2015-01-29 | E5: =(D5-C5)/365 -> 6.98 | F5: 12.0 | G5: =F5/12 -> 1.00 | H5: =E5-(F5/12) -> 5.98 | I5: 25.7 | J5: 125.5 | K5: 0.90 | L5: 0.62 | M5: 0.81 | N5: =I5/(J5*J5/10000) -> 16.32 | O5: 2 | P5: 2015-01-29 | Q5: 8.80 | R5: -1.31 | S5: 4.87 | T5: 14.17 | U5: 4.87 | V5: 14.96 | W5: 0.90 | X5: 3.61 | Y5: 1.28 | Z5: 2.15 | AA5: 8.2 | AB5: 0.15 | AC5: 9.91 | AE5: 202 | AF5: 35 | AG5: 2.9 | AH5: 38 | AI5: 0 | AJ5: 0 | AK5: 175 | AL5: 155 | AM5: =(AK5+AL5)/2-6.5 -> 158.50 | AN5: =SUM((AM5-160.6)/5.3) -> -0.40 | AO5: =R5-AN5 -> -0.91 | AP5: =(P5-C5)/365 -> 6.98 | AQ5: =Q5-AP5 -> 1.82 | AR5: =Q5/AP5 -> 1.26 | AS5: 4.4 | AT5: 3.13 | AU5: 1.81 | AV5: =(AT5+AU5)/2 -> 2.47 | AW5: =U5/V5 -> 0.326 | AX5: =((AA5*10)-192.8)/103 -> -1.076 | AY5: =SUM((AE5-188.29)/61.99) -> 0.221
A6: 5 | B6: 265850 | C6: 2010-02-15 | D6: 2015-02-03 | E6: =(D6-C6)/365 -> 4.97 | F6: 3.0 | G6: =F6/12 -> 0.25 | H6: =E6-(F6/12) -> 4.72 | I6: 21.0 | J6: 115.5 | K6: 1.16 | L6: 1.28 | M6: 0.55 | N6: =I6/(J6*J6/10000) -> 15.74 | O6: 2 | P6: 2015-02-03 | Q6: 4.60 | R6: 1.90 | S6: 0.14 | T6: 2.98 | U6: 3.91 | V6: 21.04 | W6: 0.73 | X6: 3.13 | Y6: 1.23 | Z6: 1.67 | AA6: 8.5 | AB6: 0.15 | AC6: 4.56 | AD6: 46.3 | AE6: 188 | AF6: 30 | AG6: 3.35 | AH6: 40 | AI6: 0 | AJ6: 0 | AK6: 171 | AL6: 155 | AM6: =(AK6+AL6)/2-6.5 -> 156.50 | AN6: =SUM((AM6-160.6)/5.3) -> -0.77 | AO6: =R6-AN6 -> 2.67 | AP6: =(P6-C6)/365 -> 4.97 | AQ6: =Q6-AP6 -> -0.37 | AR6: =Q6/AP6 -> 0.93 | AS6: 3.6 | AT6: 0.36 | AU6: 0.54 | AV6: =(AT6+AU6)/2 -> 0.45 | AW6: =U6/V6 -> 0.186 | AX6: =((AA6*10)-92.9)/72.1 -> -0.110 | AY6: =SUM((AE6-188.29)/61.99) -> -0.005
A7: 6 | B7: 266294 | C7: 2007-07-19 | D7: 2015-02-07 | E7: =(D7-C7)/365 -> 7.56 | F7: 3.0 | G7: =F7/12 -> 0.25 | H7: =SUM(E7-(F7/12)) -> 7.31 | I7: 35.5 | J7: 130.0 | K7: 2.46 | L7: 0.78 | M7: 2.71 | N7: =I7/(J7*J7/10000) -> 21.01 | O7: 2 | P7: 2015-02-06 | Q7: 10.50 | R7: -2.04 | S7: 0.23 | T7: 0.96 | U7: 3.36 | V7: 13.62 | W7: 0.59 | X7: 4.91 | Y7: 1.40 | Z7: 3.10 | AA7: 70.1 | AB7: 0.575 | AC7: 8.19 | AD7: 27.8 | AE7: 349 | AF7: 10 | AG7: 3.4 | AH7: 40 | AI7: 0 | AJ7: 0 | AK7: 168 | AL7: 155 | AM7: =(AK7+AL7)/2-6.5 -> 155.00 | AN7: =SUM((AM7-160.6)/5.3) -> -1.06 | AO7: =R7-AN7 -> -0.98 | AP7: =(P7-C7)/365 -> 7.56 | AQ7: =Q7-AP7 -> 2.94 | AR7: =Q7/AP7 -> 1.39 | AS7: 3.4 | AT7: 0.61 | AU7: 0.44 | AV7: =(AT7+AU7)/2 -> 0.52 | AW7: =U7/V7 -> 0.247 | AX7: =((AA7*10)-192.8)/103 -> 4.934 | AY7: =SUM((AE7-210.4)/70.89) -> 1.955
A8: 7 | B8: 099220 | C8: 2008-05-23 | D8: 2015-02-11 | E8: =(D8-C8)/365 -> 6.73 | F8: 12.0 | G8: =F8/12 -> 1.00 | H8: =SUM(E8-(F8/12)) -> 5.73 | I8: 42.5 | J8: 135.0 | K8: 4.67 | L8: 2.83 | M8: 3.83 | N8: =I8/(J8*J8/10000) -> 23.32 | O8: 3 | P8: 2015-02-11 | Q8: 9.60 | R8: -0.42 | S8: 0.21 | T8: 3.95 | U8: 2.64 | V8: 10.42 | W8: 1.02 | X8: 3.66 | Y8: 1.29 | Z8: 2.25 | AA8: 52.0 | AB8: 0.999 | AC8: 16.19 | AD8: 45.8 | AE8: 392 | AF8: 10 | AG8: 3.6 | AH8: 40 | AI8: 0 | AJ8: 0 | AK8: 171 | AL8: 152 | AM8: =(AK8+AL8)/2-6.5 -> 155.00 | AN8: =SUM((AM8-160.6)/5.3) -> -1.06 | AO8: =R8-AN8 -> 0.64 | AP8: =(P8-C8)/365 -> 6.73 | AQ8: =Q8-AP8 -> 2.87 | AR8: =Q8/AP8 -> 1.43 | AS8: 3.3 | AT8: 0.67 | AU8: 1.92 | AV8: =(AT8+AU8)/2 -> 1.30 | AW8: =U8/V8 -> 0.253 | AX8: =((AA8*10)-192.8)/103 -> 3.177 | AY8: =SUM((AE8-188.29)/61.99) -> 3.286
A9: 8 | B9: 266940 | C9: 2006-09-03 | D9: 2015-02-13 | E9: =(D9-C9)/365 -> 8.45 | F9: 24.0 | G9: =F9/12 -> 2.00 | H9: =SUM(E9-(F9/12)) -> 6.45 | I9: 29.0 | J9: 132.6 | K9: 0.56 | L9: 0.29 | M9: 0.63 | N9: =I9/(J9*J9/10000) -> 16.49 | O9: 2 | P9: 2015-02-05 | Q9: 11.20 | R9: -2.30 | S9: 0.12 | T9: 1.80 | U9: 3.53 | V9: 10.44 | W9: 0.57 | X9: 4.37 | Y9: 1.37 | Z9: 2.75 | AA9: 39.3 | AB9: 0.478 | AC9: 10.29 | AD9: 79.3 | AE9: 329 | AF9: 10 | AG9: 3.25 | AH9: 38 | AI9: 0 | AJ9: 0 | AK9: 165 | AL9: 161 | AM9: =(AK9+AL9)/2-6.5 -> 156.50 | AN9: =SUM((AM9-160.6)/5.3) -> -0.77 | AO9: =R9-AN9 -> -1.53 | AP9: =(P9-C9)/365 -> 8.43 | AQ9: =Q9-AP9 -> 2.77 | AR9: =Q9/AP9 -> 1.33 | AS9: 3.3 | AT9: 1.00 | AU9: 1.53 | AV9: =(AT9+AU9)/2 -> 1.27 | AW9: =U9/V9 -> 0.338 | AX9: =((AA9*10)-240.4)/164.6 -> 0.927 | AY9: =SUM((AE9-261.66)/75.79) -> 0.889
A10: 9 | B10: 267994 | C10: 2008-11-01 | D10: 2015-02-28 | E10: =(D10-C10)/365 -> 6.33 | F10: 3.0 | G10: =F10/12 -> 0.25 | H10: =SUM(E10-(F10/12)) -> 6.08 | I10: 23.0 | J10: 122.5 | K10: 0.66 | L10: 0.86 | M10: 0.25 | N10: =I10/(J10*J10/10000) -> 15.33 | O10: 2 | P10: 2015-02-11 | Q10: 8.00 | R10: -1.11 | S10: 0.09 | T10: 0.79 | U10: 4.13 | V10: 9.49 | W10: 0.64 | X10: 3.93 | Y10: 1.27 | Z10: 2.46 | AA10: 25.3 | AB10: 0.15 | AC10: 5.78 | AD10: 86.6 | AE10: 139 | AF10: 10 | AG10: 3.3 | AH10: 40 | AI10: 0 | AJ10: 0 | AK10: 173 | AL10: 156 | AM10: =(AK10+AL10)/2-6.5 -> 158.00 | AN10: =SUM((AM10-160.6)/5.3) -> -0.49 | AO10: =R10-AN10 -> -0.62 | AP10: =(P10-C10)/365 -> 6.28 | AQ10: =Q10-AP10 -> 1.72 | AR10: =Q10/AP10 -> 1.27 | AS10: 2.5 | AT10: 1.53 | AU10: 3.45 | AV10: =(AT10+AU10)/2 -> 2.49 | AW10: =U10/V10 -> 0.435 | AX10: =((AA10*10)-192.8)/103 -> 0.584 | AY10: =SUM((AE10-188.29)/61.99) -> -0.795
A11: 10 | B11: 269513 | C11: 2007-04-27 | D11: 2015-03-15 | E11: =(D11-C11)/365 -> 7.89 | F11: 3.0 | G11: =F11/12 -> 0.25 | H11: =SUM(E11-(F11/12)) -> 7.64 | I11: 23.5 | J11: 124.5 | K11: -0.39 | L11: -0.62 | M11: -0.01 | N11: =I11/(J11*J11/10000) -> 15.16 | O11: 2 | P11: 2015-03-09 | Q11: 9.60 | R11: -2.17 | S11: 0.09 | T11: 1.57 | U11: 4.18 | V11: 12.91 | W11: 0.67 | X11: 3.56 | Y11: 1.42 | Z11: 2.03 | AA11: 5.0 | AB11: 0.15 | AC11: 6.2 | AD11: 108.1 | AE11: 152 | AF11: 10 | AG11: 3.1 | AH11: 40 | AI11: 0 | AJ11: 0 | AK11: 162 | AL11: 140 | AM11: =(AK11+AL11)/2-6.5 -> 144.50 | AN11: =SUM((AM11-160.6)/5.3) -> -3.04 | AO11: =R11-AN11 -> 0.87 | AP11: =(P11-C11)/365 -> 7.87 | AQ11: =Q11-AP11 -> 1.73 | AR11: =Q11/AP11 -> 1.22 | AS11: 2.9 | AT11: 0.95 | AU11: 1.38 | AV11: =(AT11+AU11)/2 -> 1.17 | AW11: =U11/V11 -> 0.324 | AX11: =((AA11*10)-192.8)/103 -> -1.386 | AY11: =SUM((AE11-210.4)/70.89) -> -0.824
A12: 11 | B12: 119330 | C12: 2008-02-28 | D12: 2015-03-16 | E12: =(D12-C12)/365 -> 7.05 | F12: 3.0 | G12: =F12/12 -> 0.25 | H12: =SUM(E12-(F12/12)) -> 6.80 | I12: 24.0 | J12: 123.0 | K12: 0.37 | L12: 0.04 | M12: 0.54 | N12: =I12/(J12*J12/10000) -> 15.86 | O12: 3 | P12: 2015-03-14 | Q12: 9.50 | R12: -2.34 | S12: 0.23 | T12: 15.49 | U12: 4.41 | V12: 24.52 | W12: 0.62 | X12: 4.37 | Y12: 1.78 | Z12: 2.46 | AA12: 23.6 | AB12: 0.707 | AC12: 7.72 | AD12: 68.2 | AE12: 196 | AF12: 10 | AG12: 2.6 | AH12: 37 | AI12: 0 | AJ12: 0 | AK12: 169 | AL12: 155 | AM12: =(AK12+AL12)/2-6.5 -> 155.50 | AN12: =SUM((AM12-160.6)/5.3) -> -0.96 | AO12: =R12-AN12 -> -1.38 | AP12: =(P12-C12)/365 -> 7.04 | AQ12: =Q12-AP12 -> 2.46 | AR12: =Q12/AP12 -> 1.35 | AS12: 3.5 | AT12: 1.06 | AU12: 1.19 | AV12: =(AT12+AU12)/2 -> 1.13 | AW12: =U12/V12 -> 0.180 | AX12: =((AA12*10)-192.8)/103 -> 0.419 | AY12: =SUM((AE12-210.4)/70.89) -> -0.203
A13: 12 | B13: 269735 | C13: 2008-07-26 | D13: 2015-03-17 | E13: =(D13-C13)/365 -> 6.64 | F13: 12.0 | G13: =F13/12 -> 1.00 | H13: =SUM(E13-(F13/12)) -> 5.64 | I13: 25.2 | J13: 123.4 | K13: 1.05 | L13: 0.64 | M13: 0.99 | N13: =I13/(J13*J13/10000) -> 16.55 | O13: 2 | P13: 2015-03-17 | Q13: 9.00 | R13: -1.86 | S13: 0.19 | T13: 4.25 | U13: 3.36 | V13: 28.57 | W13: 0.69 | X13: 3.56 | Y13: 1.23 | Z13: 2.19 | AA13: 14.2 | AB13: 0.15 | AC13: 13.74 | AD13: 44.9 | AE13: 335 | AF13: 10 | AG13: 3.05 | AH13: 40 | AI13: 0 | AJ13: 0 | AK13: 166 | AL13: 154 | AM13: =(AK13+AL13)/2-6.5 -> 153.50 | AN13: =SUM((AM13-160.6)/5.3) -> -1.34 | AO13: =R13-AN13 -> -0.52 | AP13: =(P13-C13)/365 -> 6.64 | AQ13: =Q13-AP13 -> 2.36 | AR13: =Q13/AP13 -> 1.35 | AS13: 2.7 | AT13: 0.44 | AU13: 0.54 | AV13: =(AT13+AU13)/2 -> 0.49 | AW13: =U13/V13 -> 0.118 | AX13: =((AA13*10)-192.8)/103 -> -0.493 | AY13: =SUM((AE13-188.29)/61.99) -> 2.367
A14: 13 | B14: 269924 | C14: 2007-02-01 | D14: 2015-03-19 | E14: =(D14-C14)/365 -> 8.13 | F14: 3.0 | G14: =F14/12 -> 0.25 | H14: =SUM(E14-(F14/12)) -> 7.88 | I14: 38.0 | J14: 135.0 | K14: 2.38 | L14: 1.06 | M14: 2.48 | N14: =I14/(J14*J14/10000) -> 20.85 | O14: 2 | P14: 2015-03-15 | Q14: 9.30 | R14: -0.13 | S14: 0.07 | T14: 1.42 | U14: 4.02 | V14: 15.70 | W14: 0.46 | X14: 2.76 | Y14: 0.95 | Z14: 1.70 | AA14: 41.2 | AB14: 1.41 | AC14: 5.96 | AD14: 36.9 | AE14: 193 | AF14: 10 | AG14: 3.4 | AH14: 40 | AI14: 0 | AJ14: 0 | AK14: 168 | AL14: 160 | AM14: =(AK14+AL14)/2-6.5 -> 157.50 | AN14: =SUM((AM14-160.6)/5.3) -> -0.58 | AO14: =R14-AN14 -> 0.45 | AP14: =(P14-C14)/365 -> 8.12 | AQ14: =Q14-AP14 -> 1.18 | AR14: =Q14/AP14 -> 1.15 | AS14: 2.7 | AT14: 1.32 | AU14: 3.10 | AV14: =(AT14+AU14)/2 -> 2.21 | AW14: =U14/V14 -> 0.256 | AX14: =((AA14*10)-240.4)/164.6 -> 1.043 | AY14: =SUM((AE14-261.66)/75.79) -> -0.906
A15: 14 | B15: 270008 | C15: 2008-10-04 | D15: 2015-03-20 | E15: =(D15-C15)/365 -> 6.46 | F15: 12.0 | G15: =F15/12 -> 1.00 | H15: =SUM(E15-(F15/12)) -> 5.46 | I15: 25.0 | J15: 123.0 | K15: 1.15 | L15: 0.80 | M15: 0.99 | N15: =I15/(J15*J15/10000) -> 16.52 | O15: 2 | P15: 2015-03-13 | Q15: 9.20 | R15: -2.10 | S15: 0.40 | T15: 1.91 | U15: 2.23 | V15: 13.72 | W15: 0.55 | X15: 4.52 | Y15: 1.86 | Z15: 2.62 | AA15: 20.6 | AB15: 0.15 | AC15: 3.58 | AD15: 128.8 | AE15: 274 | AF15: 10 | AG15: 2.95 | AH15: 38 | AI15: 0 | AJ15: 0 | AK15: 168 | AL15: 155 | AM15: =(AK15+AL15)/2-6.5 -> 155.00 | AN15: =SUM((AM15-160.6)/5.3) -> -1.06 | AO15: =R15-AN15 -> -1.04 | AP15: =(P15-C15)/365 -> 6.44 | AQ15: =Q15-AP15 -> 2.76 | AR15: =Q15/AP15 -> 1.43 | AS15: 3.6 | AT15: 1.38 | AU15: 1.32 | AV15: =(AT15+AU15)/2 -> 1.35 | AW15: =U15/V15 -> 0.163 | AX15: =((AA15*10)-192.8)/103 -> 0.128 | AY15: =SUM((AE15-188.29)/61.99) -> 1.383
A16: 15 | B16: 270224 | C16: 2009-02-08 | D16: 2015-03-22 | E16: =(D16-C16)/365 -> 6.12 | F16: 24.0 | G16: =F16/12 -> 2.00 | H16: =SUM(E16-(F16/12)) -> 4.12 | I16: 24.4 | J16: 123.0 | K16: 1.25 | L16: 1.23 | M16: 0.78 | N16: =I16/(J16*J16/10000) -> 16.13 | O16: 2 | P16: 2015-03-19 | Q16: 9.00 | R16: -1.93 | S16: 0.08 | T16: 2.79 | U16: 4.20 | V16: 24.46 | W16: 1.08 | X16: 4.19 | Y16: 1.23 | Z16: 2.77 | AA16: 26.3 | AB16: 0.15 | AC16: 6.7 | AD16: 66.9 | AE16: 190 | AF16: 21 | AG16: 3.75 | AH16: 42 | AI16: 0 | AJ16: 0 | AK16: 172 | AL16: 161 | AM16: =(AK16+AL16)/2-6.5 -> 160.00 | AN16: =SUM((AM16-160.6)/5.3) -> -0.11 | AO16: =R16-AN16 -> -1.82 | AP16: =(P16-C16)/365 -> 6.11 | AQ16: =Q16-AP16 -> 2.89 | AR16: =Q16/AP16 -> 1.47 | AS16: 2.8 | AT16: 0.26 | AU16: 0.12 | AV16: =(AT16+AU16)/2 -> 0.19 | AW16: =U16/V16 -> 0.172 | AX16: =((AA16*10)-192.8)/103 -> 0.682 | AY16: =SUM((AE16-188.29)/61.99) -> 0.028
A17: 16 | B17: 270357 | C17: 2008-03-24 | D17: 2015-03-23 | E17: =(D17-C17)/365 -> 7.00 | F17: 3.0 | G17: =F17/12 -> 0.25 | H17: =E17-(F17/12) -> 6.75 | I17: 25.3 | J17: 125.6 | K17: 0.78 | L17: 0.62 | M17: 0.65 | N17: =I17/(J17*J17/10000) -> 16.04 | O17: 3 | P17: 2015-03-04 | Q17: 9.30 | R17: -1.73 | S17: 0.44 | T17: 4.07 | U17: 4.25 | V17: 20.06 | W17: 0.95 | X17: 3.65 | Y17: 0.02 | Z17: 2.36 | AA17: 19.9 | AB17: 0.15 | AC17: 6.1 | AD17: 48.4 | AE17: 262 | AF17: 85 | AG17: 2.8 | AH17: 40 | AI17: 0 | AJ17: 0 | AK17: 170 | AL17: 152 | AM17: =(AK17+AL17)/2-6.5 -> 154.50 | AN17: =SUM((AM17-160.6)/5.3) -> -1.15 | AO17: =R17-AN17 -> -0.58 | AP17: =(P17-C17)/365 -> 6.95 | AQ17: =Q17-AP17 -> 2.35 | AR17: =Q17/AP17 -> 1.34 | AS17: 3.5 | AT17: 0.44 | AU17: 2.08 | AV17: =(AT17+AU17)/2 -> 1.26 | AW17: =U17/V17 -> 0.212 | AX17: =((AA17*10)-192.8)/103 -> 0.060 | AY17: =SUM((AE17-210.4)/70.89) -> 0.728
A18: 17 | B18: 270726 | C18: 2008-01-26 | D18: 2015-03-26 | E18: =(D18-C18)/365 -> 7.17 | F18: 3.0 | G18: =F18/12 -> 0.25 | H18: =SUM(E18-(F18/12)) -> 6.92 | I18: 25.5 | J18: 126.5 | K18: 0.69 | L18: 0.58 | M18: 0.57 | N18: =I18/(J18*J18/10000) -> 15.94 | O18: 3 | P18: 2015-03-21 | Q18: 9.40 | R18: -1.66 | S18: 0.07 | T18: 1.40 | U18: 1.21 | V18: 11.88 | W18: 0.63 | X18: 3.39 | Y18: 1.57 | Z18: 1.64 | AA18: 128.6 | AB18: 0.82 | AC18: 7.47 | AD18: 59.4 | AE18: 226 | AF18: 10 | AG18: 3 | AH18: 41 | AI18: 0 | AJ18: 0 | AK18: 165 | AL18: 161 | AM18: =(AK18+AL18)/2-6.5 -> 156.50 | AN18: =SUM((AM18-160.6)/5.3) -> -0.77 | AO18: =R18-AN18 -> -0.89 | AP18: =(P18-C18)/365 -> 7.15 | AQ18: =Q18-AP18 -> 2.25 | AR18: =Q18/AP18 -> 1.31 | AS18: 3.3 | AT18: 0.34 | AU18: 1.61 | AV18: =(AT18+AU18)/2 -> 0.97 | AW18: =U18/V18 -> 0.102 | AX18: =((AA18*10)-192.8)/103 -> 10.614 | AY18: =SUM((AE18-210.4)/70.89) -> 0.220
A19: 18 | B19: 270822 | C19: 2007-05-18 | D19: 2015-03-27 | E19: =(D19-C19)/365 -> 7.86 | F19: 3.0 | G19: =F19/12 -> 0.25 | H19: =SUM(E19-(F19/12)) -> 7.61 | I19: 25.6 | J19: 134.5 | K19: 0.19 | L19: 1.28 | M19: -0.69 | N19: =I19/(J19*J19/10000) -> 14.15 | O19: 2 | P19: 2015-03-17 | Q19: 9.00 | R19: 0.08 | S19: 0.26 | T19: 1.72 | U19: 3.08 | V19: 11.36 | W19: 0.63 | X19: 4.36 | Y19: 1.45 | Z19: 2.79 | AA19: 14.1 | AB19: 0.316 | AC19: 2.91 | AD19: 108.6 | AE19: 204 | AF19: 10 | AG19: 3.75 | AH19: 40 | AI19: 0 | AJ19: 0 | AK19: 178 | AL19: 166 | AM19: =(AK19+AL19)/2-6.5 -> 165.50 | AN19: =SUM((AM19-160.6)/5.3) -> 0.92 | AO19: =R19-AN19 -> -0.84 | AP19: =(P19-C19)/365 -> 7.84 | AQ19: =Q19-AP19 -> 1.16 | AR19: =Q19/AP19 -> 1.15 | AS19: 3.2 | AT19: 1.53 | AU19: 1.32 | AV19: =(AT19+AU19)/2 -> 1.43 | AW19: =U19/V19 -> 0.271 | AX19: =((AA19*10)-192.8)/103 -> -0.503 | AY19: =SUM((AE19-210.4)/70.89) -> -0.090
A20: 19 | B20: 270807 | C20: 2007-11-29 | D20: 2015-03-27 | E20: =(D20-C20)/365 -> 7.33 | F20: 36.0 | G20: =F20/12 -> 3.00 | H20: =SUM(E20-(F20/12)) -> 4.33 | I20: 29.0 | J20: 124.2 | K20: 1.41 | L20: -0.06 | M20: 1.96 | N20: =I20/(J20*J20/10000) -> 18.80 | O20: 3 | P20: 2015-03-27 | Q20: 7.10 | R20: 0.22 | S20: 0.06 | T20: 1.47 | U20: 3.01 | V20: 10.39 | W20: 0.40 | X20: 4.62 | Y20: 1.56 | Z20: 3.05 | AA20: 19.2 | AB20: 0.15 | AC20: 3.95 | AD20: 119.3 | AE20: 184 | AF20: 10 | AG20: 3.2 | AH20: 40 | AI20: 0 | AJ20: 0 | AK20: 166 | AL20: 150 | AM20: =(AK20+AL20)/2-6.5 -> 151.50 | AN20: =SUM((AM20-160.6)/5.3) -> -1.72 | AO20: =R20-AN20 -> 1.94 | AP20: =(P20-C20)/365 -> 7.33 | AQ20: =Q20-AP20 -> -0.23 | AR20: =Q20/AP20 -> 0.97 | AS20: 2.7 | AT20: 0.31 | AU20: 0.73 | AV20: =(AT20+AU20)/2 -> 0.52 | AW20: =U20/V20 -> 0.290 | AX20: =((AA20*10)-192.8)/103 -> -0.008 | AY20: =SUM((AE20-210.4)/70.89) -> -0.372
A21: 20 | B21: 271038 | C21: 2007-04-25 | D21: 2015-03-29 | E21: =(D21-C21)/365 -> 7.93 | F21: 3.0 | G21: =F21/12 -> 0.25 | H21: =E21-(F21/12) -> 7.68 | I21: 36.5 | J21: 131.0 | K21: 2.31 | L21: 0.55 | M21: 2.68 | N21: =I21/(J21*J21/10000) -> 21.27 | O21: 3 | P21: 2015-03-24 | Q21: 9.40 | R21: -0.90 | S21: 0.70 | T21: 4.63 | U21: 4.08 | V21: 10.58 | W21: 0.53 | X21: 3.79 | Y21: 1.34 | Z21: 2.45 | AA21: 27.8 | AB21: 0.15 | AC21: 4.55 | AD21: 78.1 | AE21: 237 | AF21: 72 | AG21: 3.6 | AH21: 40 | AI21: 0 | AJ21: 0 | AK21: 173 | AL21: 160 | AM21: =(AK21+AL21)/2-6.5 -> 160.00 | AN21: =SUM((AM21-160.6)/5.3) -> -0.11 | AO21: =R21-AN21 -> -0.79 | AP21: =(P21-C21)/365 -> 7.92 | AQ21: =Q21-AP21 -> 1.48 | AR21: =Q21/AP21 -> 1.19 | AS21: 3.1 | AT21: 1.13 | AU21: 1.19 | AV21: =(AT21+AU21)/2 -> 1.16 | AW21: =U21/V21 -> 0.386 | AX21: =((AA21*10)-192.8)/103 -> 0.827 | AY21: =SUM((AE21-210.4)/70.89) -> 0.375
A22: 21 | B22: 271393 | C22: 2007-03-21 | D22: 2015-04-01 | E22: =(D22-C22)/365 -> 8.04 | F22: 3.0 | G22: =F22/12 -> 0.25 | H22: =SUM(E22-(F22/12)) -> 7.79 | I22: 29.0 | J22: 129.0 | K22: 0.86 | L22: 0.07 | M22: 1.19 | N22: =I22/(J22*J22/10000) -> 17.43 | O22: 3 | P22: 2015-03-30 | Q22: 9.60 | R22: -1.42 | S22: 0.08 | T22: 0.69 | U22: 0.32 | V22: 1.70 | W22: 0.52 | X22: 3.69 | Y22: 1.28 | Z22: 2.40 | AA22: 11.1 | AB22: 0.15 | AC22: 3.03 | AD22: 112.3 | AE22: 185 | AF22: 21 | AG22: 3.25 | AH22: 40 | AI22: 0 | AJ22: 0 | AK22: 178 | AL22: 156 | AM22: =(AK22+AL22)/2-6.5 -> 160.50 | AN22: =SUM((AM22-160.6)/5.3) -> -0.02 | AO22: =R22-AN22 -> -1.40 | AP22: =(P22-C22)/365 -> 8.03 | AQ22: =Q22-AP22 -> 1.57 | AR22: =Q22/AP22 -> 1.20 | AS22: 5.1 | AT22: 0.64 | AU22: 0.34 | AV22: =(AT22+AU22)/2 -> 0.49 | AW22: =U22/V22 -> 0.188 | AX22: =((AA22*10)-240.4)/164.6 -> -0.786 | AY22: =SUM((AE22-261.66)/75.79) -> -1.011
A23: 22 | B23: 271489 | C23: 2009-10-06 | D23: 2015-04-02 | E23: =(D23-C23)/365 -> 5.49 | F23: 6.0 | G23: =F23/12 -> 0.50 | H23: =E23-(F23/12) -> 4.99 | I23: 21.8 | J23: 121.0 | K23: 0.95 | L23: 1.68 | M23: -0.06 | N23: =I23/(J23*J23/10000) -> 14.89 | O23: 3 | P23: 2015-04-02 | Q23: 7.00 | R23: -0.30 | S23: 0.14 | T23: 2.81 | U23: 2.54 | V23: 19.74 | W23: 0.88 | X23: 4.70 | Y23: 1.42 | Z23: 3.17 | AA23: 12.3 | AB23: 0.15 | AC23: 6.72 | AD23: 75.8 | AE23: 154 | AF23: 27 | AG23: 3.6 | AH23: 41 | AI23: 0 | AJ23: 0 | AK23: 175 | AL23: 170 | AM23: =(AK23+AL23)/2-6.5 -> 166.00 | AN23: =SUM((AM23-160.6)/5.3) -> 1.02 | AO23: =R23-AN23 -> -1.32 | AP23: =(P23-C23)/365 -> 5.49 | AQ23: =Q23-AP23 -> 1.51 | AR23: =Q23/AP23 -> 1.27 | AS23: 3.0 | AT23: 0.78 | AU23: 0.47 | AV23: =(AT23+AU23)/2 -> 0.62 | AW23: =U23/V23 -> 0.129 | AX23: =((AA23*10)-92.9)/72.1 -> 0.417 | AY23: =SUM((AE23-188.29)/61.99) -> -0.553
A24: 23 | B24: 271669 | C24: 2006-10-05 | D24: 2015-04-04 | E24: =(D24-C24)/365 -> 8.50 | F24: 24.0 | G24: =F24/12 -> 2.00 | H24: =E24-(F24/12) -> 6.50 | I24: 26.9 | J24: 134.0 | K24: 0.06 | L24: 0.49 | M24: -0.24 | N24: =I24/(J24*J24/10000) -> 14.98 | O24: 2 | P24: 2015-04-04 | Q24: 10.20 | R24: -1.15 | S24: 0.39 | T24: 3.03 | U24: 4.23 | V24: 10.57 | W24: 0.90 | X24: 4.92 | Y24: 1.51 | Z24: 3.17 | AA24: 19.5 | AB24: 0.369 | AC24: 3.41 | AD24: 79 | AE24: 202 | AF24: 46 | AG24: 3.5 | AH24: 40 | AI24: 0 | AJ24: 0 | AK24: 167 | AL24: 154 | AM24: =(AK24+AL24)/2-6.5 -> 154.00 | AN24: =SUM((AM24-160.6)/5.3) -> -1.25 | AO24: =R24-AN24 -> 0.10 | AP24: =(P24-C24)/365 -> 8.50 | AQ24: =Q24-AP24 -> 1.70 | AR24: =Q24/AP24 -> 1.20 | AS24: 3.6 | AT24: 1.28 | AU24: 1.32 | AV24: =(AT24+AU24)/2 -> 1.30 | AW24: =U24/V24 -> 0.400 | AX24: =((AA24*10)-240.4)/164.6 -> -0.276 | AY24: =SUM((AE24-261.66)/75.79) -> -0.787
A25: 24 | B25: 271764 | C25: 2007-12-17 | D25: 2015-04-05 | E25: =(D25-C25)/365 -> 7.30 | F25: 4.0 | G25: =F25/12 -> 0.33 | H25: =SUM(E25-(F25/12)) -> 6.97 | I25: 39.8 | J25: 139.6 | K25: 3.41 | L25: 2.91 | M25: 2.58 | N25: =I25/(J25*J25/10000) -> 20.42 | O25: 3 | P25: 2015-03-28 | Q25: 11.00 | R25: -1.05 | S25: 0.44 | T25: 1.80 | U25: 2.42 | V25: 9.51 | W25: 0.66 | X25: 4.12 | Y25: 1.15 | Z25: 2.62 | AA25: 51.4 | AB25: 0.363 | AC25: 10.02 | AD25: 62.1 | AE25: 247 | AF25: 26 | AG25: 4 | AH25: 39 | AI25: 0 | AJ25: 0 | AK25: 162 | AL25: 158 | AM25: =(AK25+AL25)/2-6.5 -> 153.50 | AN25: =SUM((AM25-160.6)/5.3) -> -1.34 | AO25: =R25-AN25 -> 0.29 | AP25: =(P25-C25)/365 -> 7.28 | AQ25: =Q25-AP25 -> 3.72 | AR25: =Q25/AP25 -> 1.51 | AS25: 4.0 | AT25: 1.11 | AU25: 1.16 | AV25: =(AT25+AU25)/2 -> 1.14 | AW25: =U25/V25 -> 0.254 | AX25: =((AA25*10)-192.8)/103 -> 3.118 | AY25: =SUM((AE25-210.4)/70.89) -> 0.516
A26: 25 | B26: 272324 | C26: 2008-01-04 | D26: 2015-04-10 | E26: =(D26-C26)/365 -> 7.27 | F26: 18.0 | G26: =F26/12 -> 1.50 | H26: =SUM(E26-(F26/12)) -> 5.77 | I26: 35.0 | J26: 134.5 | K26: 2.63 | L26: 2.00 | M26: 2.19 | N26: =I26/(J26*J26/10000) -> 19.35 | O26: 2 | P26: 2015-03-29 | Q26: 8.90 | R26: 0.18 | S26: 0.18 | T26: 1.12 | U26: 2.39 | V26: 7.38 | W26: 0.77 | X26: 3.74 | Y26: 1.00 | Z26: 2.43 | AA26: 37.5 | AB26: 0.15 | AC26: 7.4 | AD26: 58.8 | AE26: 370 | AF26: 22 | AG26: 3.2 | AH26: 40 | AI26: 0 | AJ26: 0 | AK26: 170.5 | AL26: 160 | AM26: =(AK26+AL26)/2-6.5 -> 158.75 | AN26: =SUM((AM26-160.6)/5.3) -> -0.35 | AO26: =R26-AN26 -> 0.53 | AP26: =(P26-C26)/365 -> 7.24 | AQ26: =Q26-AP26 -> 1.66 | AR26: =Q26/AP26 -> 1.23 | AS26: 3.6 | AT26: 0.78 | AU26: 1.06 | AV26: =(AT26+AU26)/2 -> 0.92 | AW26: =U26/V26 -> 0.324 | AX26: =((AA26*10)-192.8)/103 -> 1.769 | AY26: =SUM((AE26-210.4)/70.89) -> 2.251
A27: 26 | B27: 272439 | C27: 2007-01-26 | D27: 2015-04-11 | E27: =(D27-C27)/365 -> 8.21 | F27: 12.0 | G27: =F27/12 -> 1.00 | H27: =E27-(F27/12) -> 7.21 | I27: 31.0 | J27: 138.7 | K27: 1.14 | L27: 1.64 | M27: 0.48 | N27: =I27/(J27*J27/10000) -> 16.11 | O27: 3 | P27: 2015-03-28 | Q27: 10.40 | R27: -0.60 | S27: 0.54 | T27: 3.57 | U27: 3.50 | V27: 6.58 | W27: 0.99 | X27: 4.15 | Y27: 1.39 | Z27: 2.63 | AA27: 54.9 | AB27: 0.592 | AC27: 10.78 | AD27: 74.8 | AE27: 408 | AF27: 82 | AG27: 2.8 | AH27: 38 | AI27: 0 | AJ27: 0 | AK27: 173 | AL27: 160 | AM27: =(AK27+AL27)/2-6.5 -> 160.00 | AN27: =SUM((AM27-160.6)/5.3) -> -0.11 | AO27: =R27-AN27 -> -0.49 | AP27: =(P27-C27)/365 -> 8.17 | AQ27: =Q27-AP27 -> 2.23 | AR27: =Q27/AP27 -> 1.27 | AS27: 3.1 | AT27: 1.00 | AU27: 2.57 | AV27: =(AT27+AU27)/2 -> 1.79 | AW27: =U27/V27 -> 0.532 | AX27: =((AA27*10)-240.4)/164.6 -> 1.875 | AY27: =SUM((AE27-261.66)/75.79) -> 1.931
A28: 27 | B28: 272496 | C28: 2006-11-17 | D28: 2015-04-12 | E28: =(D28-C28)/365 -> 8.41 | F28: 12.0 | G28: =F28/12 -> 1.00 | H28: =SUM(E28-(F28/12)) -> 7.41 | I28: 27.5 | J28: 135.2 | K28: 0.26 | L28: 0.80 | M28: -0.18 | N28: =I28/(J28*J28/10000) -> 15.04 | O28: 3 | P28: 2015-04-04 | Q28: 10.40 | R28: -1.15 | S28: 0.06 | T28: 0.88 | U28: 4.73 | V28: 10.01 | W28: 1.19 | X28: 4.49 | Y28: 1.61 | Z28: 2.64 | AA28: 90.1 | AB28: 0.499 | AC28: 5.16 | AD28: 42.2 | AE28: 275 | AF28: 21 | AG28: 2.7 | AH28: 40 | AI28: 0 | AJ28: 0 | AK28: 165 | AL28: 155 | AM28: =(AK28+AL28)/2-6.5 -> 153.50 | AN28: =SUM((AM28-160.6)/5.3) -> -1.34 | AO28: =R28-AN28 -> 0.19 | AP28: =(P28-C28)/365 -> 8.38 | AQ28: =Q28-AP28 -> 2.02 | AR28: =Q28/AP28 -> 1.24 | AS28: 3.3 | AT28: 1.38 | AU28: 0.95 | AV28: =(AT28+AU28)/2 -> 1.17 | AW28: =U28/V28 -> 0.473 | AX28: =((AA28*10)-240.4)/164.6 -> 4.013 | AY28: =SUM((AE28-261.66)/75.79) -> 0.176
A29: 28 | B29: 272639 | C29: 2006-11-16 | D29: 2015-04-13 | E29: =(D29-C29)/365 -> 8.41 | F29: 12.0 | G29: =F29/12 -> 1.00 | H29: =E29-(F29/12) -> 7.41 | I29: 36.5 | J29: 143.0 | K29: 1.93 | L29: 2.18 | M29: 1.28 | N29: =I29/(J29*J29/10000) -> 17.85 | O29: 3 | P29: 2015-04-12 | Q29: 11.30 | R29: -0.82 | S29: 0.90 | T29: 7.21 | U29: 3.78 | V29: 8.92 | W29: 0.76 | X29: 2.99 | Y29: 1.27 | Z29: 1.65 | AA29: 30.4 | AB29: 0.778 | AC29: 5.09 | AD29: 54.3 | AE29: 451 | AF29: 92 | AG29: 3.7 | AH29: 40 | AI29: 0 | AJ29: 0 | AK29: 180 | AL29: 150 | AM29: =(AK29+AL29)/2-6.5 -> 158.50 | AN29: =SUM((AM29-160.6)/5.3) -> -0.40 | AO29: =R29-AN29 -> -0.42 | AP29: =(P29-C29)/365 -> 8.41 | AQ29: =Q29-AP29 -> 2.89 | AR29: =Q29/AP29 -> 1.34 | AS29: 4.1 | AT29: 2.88 | AU29: 4.34 | AV29: =(AT29+AU29)/2 -> 3.61 | AW29: =U29/V29 -> 0.424 | AX29: =((AA29*10)-240.4)/164.6 -> 0.386 | AY29: =SUM((AE29-261.66)/75.79) -> 2.498
A30: 29 | B30: 273356 | C30: 2007-04-02 | D30: 2015-04-19 | E30: =(D30-C30)/365 -> 8.05 | F30: 3.0 | G30: =F30/12 -> 0.25 | H30: =E30-(F30/12) -> 7.80 | I30: 26.7 | J30: 132.5 | K30: 0.33 | L30: 0.70 | M30: -0.01 | N30: =I30/(J30*J30/10000) -> 15.21 | O30: 2 | P30: 2015-04-14 | Q30: 9.60 | R30: -0.83 | S30: 0.45 | T30: 2.16 | U30: 2.44 | V30: 8.50 | W30: 0.62 | X30: 4.55 | Y30: 1.93 | Z30: 2.45 | AA30: 44.8 | AB30: 0.15 | AC30: 7.74 | AD30: 59.5 | AE30: 232 | AF30: 35 | AG30: 2.95 | AH30: 38 | AI30: 0 | AJ30: 0 | AK30: 169 | AL30: 150 | AM30: =(AK30+AL30)/2-6.5 -> 153.00 | AN30: =SUM((AM30-160.6)/5.3) -> -1.43 | AO30: =R30-AN30 -> 0.60 | AP30: =(P30-C30)/365 -> 8.04 | AQ30: =Q30-AP30 -> 1.56 | AR30: =Q30/AP30 -> 1.19 | AS30: 3.3 | AT30: 1.92 | AU30: 1.99 | AV30: =(AT30+AU30)/2 -> 1.96 | AW30: =U30/V30 -> 0.287 | AX30: =((AA30*10)-240.4)/164.6 -> 1.261 | AY30: =SUM((AE30-261.66)/75.79) -> -0.391
A31: 30 | B31: 273429 | C31: 2008-01-10 | D31: 2015-04-20 | E31: =(D31-C31)/365 -> 7.28 | F31: 6.0 | G31: =F31/12 -> 0.50 | H31: =SUM(E31-(F31/12)) -> 6.78 | I31: 32.0 | J31: 129.9 | K31: 2.07 | L31: 1.10 | M31: 2.04 | N31: =I31/(J31*J31/10000) -> 18.96 | O31: 3 | P31: 2015-04-18 | Q31: 9.10 | R31: -0.81 | S31: 0.09 | T31: 1.23 | U31: 1.59 | V31: 10.76 | W31: 1.00 | X31: 3.54 | Y31: 1.23 | Z31: 2.07 | AA31: 70.5 | AB31: 0.736 | AC31: 8.68 | AD31: 39.8 | AE31: 293 | AF31: 28 | AG31: 2.8 | AH31: 40 | AI31: 0 | AJ31: 0 | AK31: 160 | AL31: 162 | AM31: =(AK31+AL31)/2-6.5 -> 154.50 | AN31: =SUM((AM31-160.6)/5.3) -> -1.15 | AO31: =R31-AN31 -> 0.34 | AP31: =(P31-C31)/365 -> 7.27 | AQ31: =Q31-AP31 -> 1.83 | AR31: =Q31/AP31 -> 1.25 | AS31: 2.9 | AT31: 0.52 | AU31: 0.56 | AV31: =(AT31+AU31)/2 -> 0.54 | AW31: =U31/V31 -> 0.148 | AX31: =((AA31*10)-192.8)/103 -> 4.973 | AY31: =SUM((AE31-210.4)/70.89) -> 1.165
A32: 31 | B32: 273776 | C32: 2007-10-15 | D32: 2015-04-22 | E32: =(D32-C32)/365 -> 7.52 | F32: 5.0 | G32: =F32/12 -> 0.42 | H32: =E32-(F32/12) -> 7.11 | I32: 29.5 | J32: 132.0 | K32: 1.36 | L32: 1.20 | M32: 1.05 | N32: =I32/(J32*J32/10000) -> 16.93 | O32: 2 | P32: 2015-04-22 | Q32: 10.50 | R32: -1.73 | S32: 0.20 | T32: 8.19 | U32: 2.79 | V32: 13.76 | W32: 1.20 | X32: 3.72 | Y32: 1.08 | Z32: 2.49 | AA32: 52.5 | AB32: 0.3 | AC32: 8.27 | AD32: 30.3 | AE32: 182 | AF32: 52 | AG32: 2.6 | AH32: 39+1 | AI32: 0 | AJ32: 0 | AK32: 175 | AL32: 156 | AM32: =(AK32+AL32)/2-6.5 -> 159.00 | AN32: =SUM((AM32-160.6)/5.3) -> -0.30 | AO32: =R32-AN32 -> -1.43 | AP32: =(P32-C32)/365 -> 7.52 | AQ32: =Q32-AP32 -> 2.98 | AR32: =Q32/AP32 -> 1.40 | AS32: 3.3 | AT32: 1.76 | AU32: 1.16 | AV32: =(AT32+AU32)/2 -> 1.46 | AW32: =U32/V32 -> 0.203 | AX32: =((AA32*10)-192.8)/103 -> 3.225 | AY32: =SUM((AE32-210.4)/70.89) -> -0.401
A33: 32 | B33: 274072 | C33: 2007-01-13 | D33: 2015-04-25 | E33: =(D33-C33)/365 -> 8.28 | F33: 12.0 | G33: =F33/12 -> 1.00 | H33: =E33-(F33/12) -> 7.28 | I33: 35.4 | J33: 139.5 | K33: 1.85 | L33: 1.70 | M33: 1.46 | N33: =I33/(J33*J33/10000) -> 18.19 | O33: 3 | P33: 2015-04-03 | Q33: 9.80 | R33: 0.11 | S33: 0.14 | T33: 1.51 | U33: 1.02 | V33: 9.69 | W33: 1.03 | X33: 4.51 | Y33: 1.37 | Z33: 3.03 | AA33: 78.1 | AB33: 0.339 | AC33: 8.75 | AD33: 24.5 | AE33: 186 | AF33: 67 | AG33: 3 | AH33: 40 | AI33: 0 | AJ33: 0 | AK33: 180 | AL33: 163 | AM33: =(AK33+AL33)/2-6.5 -> 165.00 | AN33: =SUM((AM33-160.6)/5.3) -> 0.83 | AO33: =R33-AN33 -> -0.72 | AP33: =(P33-C33)/365 -> 8.22 | AQ33: =Q33-AP33 -> 1.58 | AR33: =Q33/AP33 -> 1.19 | AS33: 3.6 | AT33: 1.13 | AU33: 0.95 | AV33: =(AT33+AU33)/2 -> 1.04 | AW33: =U33/V33 -> 0.105 | AX33: =((AA33*10)-240.4)/164.6 -> 3.284 | AY33: =SUM((AE33-261.66)/75.79) -> -0.998
A34: 33 | B34: 274219 | C34: 2007-08-10 | D34: 2015-04-26 | E34: =(D34-C34)/365 -> 7.72 | F34: 36.0 | G34: =F34/12 -> 3.00 | H34: =E34-(F34/12) -> 4.72 | I34: 32.9 | J34: 131.5 | K34: 1.88 | L34: 0.89 | M34: 1.95 | N34: =I34/(J34*J34/10000) -> 19.03 | O34: 3 | P34: 2015-04-14 | Q34: 9.00 | R34: -0.44 | S34: 0.03 | T34: 2.13 | U34: 4.58 | V34: 18.03 | W34: 0.56 | X34: 3.64 | Y34: 1.42 | Z34: 1.99 | AA34: 56.2 | AB34: 0.15 | AC34: 6.13 | AD34: 75.2 | AE34: 215 | AF34: 31 | AG34: 3 | AH34: 40 | AI34: 0 | AJ34: 0 | AK34: 164 | AL34: 167 | AM34: =(AK34+AL34)/2-6.5 -> 159.00 | AN34: =SUM((AM34-160.6)/5.3) -> -0.30 | AO34: =R34-AN34 -> -0.14 | AP34: =(P34-C34)/365 -> 7.68 | AQ34: =Q34-AP34 -> 1.32 | AR34: =Q34/AP34 -> 1.17 | AS34: 3.2 | AT34: 0.61 | AU34: 0.56 | AV34: =(AT34+AU34)/2 -> 0.58 | AW34: =U34/V34 -> 0.254 | AX34: =((AA34*10)-192.8)/103 -> 3.584 | AY34: =SUM((AE34-210.4)/70.89) -> 0.065
A35: 34 | B35: 89019 | C35: 2007-11-09 | D35: 2015-05-04 | E35: =(D35-C35)/365 -> 7.49 | F35: 6.0 | G35: =F35/12 -> 0.50 | H35: =E35-(F35/12) -> 6.99 | I35: 28.4 | J35: 126.7 | K35: 1.08 | L35: 0.24 | M35: 1.35 | N35: =I35/(J35*J35/10000) -> 17.69 | O35: 3 | P35: 2015-05-01 | Q35: 9.10 | R35: -1.36 | S35: 0.12 | T35: 1.84 | U35: 3.18 | V35: 13.43 | W35: 0.70 | X35: 3.60 | Y35: 1.48 | Z35: 2.02 | AA35: 110.2 | AB35: 0.58 | AC35: 8.9 | AD35: 48.9 | AE35: 168 | AF35: 10 | AG35: 2.5 | AH35: 37 | AI35: 0 | AJ35: 0 | AK35: 161 | AL35: 159 | AM35: =(AK35+AL35)/2-6.5 -> 153.50 | AN35: =SUM((AM35-160.6)/5.3) -> -1.34 | AO35: =R35-AN35 -> -0.02 | AP35: =(P35-C35)/365 -> 7.48 | AQ35: =Q35-AP35 -> 1.62 | AR35: =Q35/AP35 -> 1.22 | AS35: 3.6 | AT35: 0.85 | AU35: 0.61 | AV35: =(AT35+AU35)/2 -> 0.73 | AW35: =U35/V35 -> 0.237 | AX35: =((AA35*10)-192.8)/103 -> 8.827 | AY35: =SUM((AE35-210.4)/70.89) -> -0.598
A36: 35 | B36: 275054 | C36: 2008-05-27 | D36: 2015-05-04 | E36: =(D36-C36)/365 -> 6.94 | F36: 13.0 | G36: =F36/12 -> 1.08 | H36: =SUM(E36-(F36/12)) -> 5.86 | I36: 28.6 | J36: 120.1 | K36: 1.65 | L36: -0.41 | M36: 2.46 | N36: =I36/(J36*J36/10000) -> 19.83 | O36: 3 | P36: 2015-05-02 | Q36: 8.30 | R36: -1.85 | S36: 0.12 | T36: 2.49 | U36: 2.54 | V36: 17.10 | W36: 1.01 | X36: 4.29 | Y36: 1.14 | Z36: 2.74 | AA36: 19.1 | AB36: 0.15 | AC36: 25.03 | AD36: 39.1 | AE36: 141 | AF36: 10 | AG36: 3.8 | AH36: 39 | AI36: 0 | AJ36: 0 | AK36: 160 | AL36: 154 | AM36: =(AK36+AL36)/2-6.5 -> 150.50 | AN36: =SUM((AM36-160.6)/5.3) -> -1.91 | AO36: =R36-AN36 -> 0.06 | AP36: =(P36-C36)/365 -> 6.93 | AQ36: =Q36-AP36 -> 1.37 | AR36: =Q36/AP36 -> 1.20 | AS36: 3.1 | AT36: 0.14 | AU36: 0.56 | AV36: =(AT36+AU36)/2 -> 0.35 | AW36: =U36/V36 -> 0.149 | AX36: =((AA36*10)-192.8)/103 -> -0.017 | AY36: =SUM((AE36-188.29)/61.99) -> -0.763
A37: 36 | B37: 275480 | C37: 2010-06-01 | D37: 2015-05-07 | E37: =(D37-C37)/365 -> 4.93 | F37: 9.0 | G37: =F37/12 -> 0.75 | H37: =E37-(F37/12) -> 4.18 | I37: 18.8 | J37: 112.5 | K37: 0.31 | L37: 0.65 | M37: -0.12 | N37: =I37/(J37*J37/10000) -> 14.85 | O37: 3 | P37: 2015-05-07 | Q37: 5.50 | R37: -0.23 | S37: 0.06 | T37: 1.40 | U37: 2.77 | V37: 16.45 | W37: 0.65 | X37: 4.34 | Y37: 1.08 | Z37: 2.82 | AA37: 3.9 | AB37: 0.15 | AC37: 4.66 | AD37: 80.2 | AE37: 203 | AF37: 10 | AG37: 3.25 | AH37: 40 | AI37: 0 | AJ37: 0 | AK37: 162 | AL37: 157 | AM37: =(AK37+AL37)/2-6.5 -> 153.00 | AN37: =SUM((AM37-160.6)/5.3) -> -1.43 | AO37: =R37-AN37 -> 1.20 | AP37: =(P37-C37)/365 -> 4.93 | AQ37: =Q37-AP37 -> 0.57 | AR37: =Q37/AP37 -> 1.11 | AS37: 2.5 | AT37: 0.44 | AU37: 0.39 | AV37: =(AT37+AU37)/2 -> 0.42 | AW37: =U37/V37 -> 0.168 | AX37: =((AA37*10)-92.9)/72.1 -> -0.748 | AY37: =SUM((AE37-188.29)/61.99) -> 0.237
A38: 37 | B38: 275579 | C38: 2007-11-10 | D38: 2015-05-08 | E38: =(D38-C38)/365 -> 7.50 | F38: 3.0 | G38: =F38/12 -> 0.25 | H38: =SUM(E38-(F38/12)) -> 7.25 | I38: 26.9 | J38: 130.9 | K38: 0.79 | L38: 1.03 | M38: 0.38 | N38: =I38/(J38*J38/10000) -> 15.70 | O38: 2 | P38: 2015-04-13 | Q38: 10.00 | R38: -1.46 | S38: 0.17 | T38: 5.26 | U38: 3.61 | V38: 18.52 | W38: 0.67 | X38: 3.44 | Y38: 1.28 | Z38: 2.05 | AA38: 27.4 | AB38: 0.345 | AC38: 7.32 | AD38: 85.5 | AE38: 288 | AF38: 21 | AG38: 3.2 | AH38: 40 | AI38: 0 | AJ38: 0 | AK38: 175 | AL38: 160 | AM38: =(AK38+AL38)/2-6.5 -> 161.00 | AN38: =SUM((AM38-160.6)/5.3) -> 0.08 | AO38: =R38-AN38 -> -1.54 | AP38: =(P38-C38)/365 -> 7.43 | AQ38: =Q38-AP38 -> 2.57 | AR38: =Q38/AP38 -> 1.35 | AS38: 3.6 | AT38: 0.74 | AU38: 0.27 | AV38: =(AT38+AU38)/2 -> 0.50 | AW38: =U38/V38 -> 0.195 | AX38: =((AA38*10)-192.8)/103 -> 0.788 | AY38: =SUM((AE38-210.4)/70.89) -> 1.095
A39: 38 | B39: 275576 | C39: 2007-06-24 | D39: 2015-05-08 | E39: =(D39-C39)/365 -> 7.88 | F39: 3.0 | G39: =F39/12 -> 0.25 | H39: =SUM(E39-(F39/12)) -> 7.63 | I39: 21.7 | J39: 129.0 | K39: -0.93 | L39: 0.24 | M39: -1.57 | N39: =I39/(J39*J39/10000) -> 13.04 | O39: 2 | P39: 2015-05-01 | Q39: 9.30 | R39: -1.15 | S39: 0.59 | T39: 3.50 | U39: 4.02 | V39: 12.23 | W39: 1.05 | X39: 3.50 | Y39: 1.31 | Z39: 1.95 | AA39: 35.4 | AB39: 0.939 | AC39: 7.37 | AD39: 46.4 | AE39: 261 | AF39: 10 | AG39: 2.8 | AH39: 40 | AI39: 0 | AJ39: 0 | AK39: 168 | AL39: 161 | AM39: =(AK39+AL39)/2-6.5 -> 158.00 | AN39: =SUM((AM39-160.6)/5.3) -> -0.49 | AO39: =R39-AN39 -> -0.66 | AP39: =(P39-C39)/365 -> 7.86 | AQ39: =Q39-AP39 -> 1.44 | AR39: =Q39/AP39 -> 1.18 | AS39: 3.9 | AT39: 0.90 | AU39: 1.54 | AV39: =(AT39+AU39)/2 -> 1.22 | AW39: =U39/V39 -> 0.329 | AX39: =((AA39*10)-192.8)/103 -> 1.565 | AY39: =SUM((AE39-210.4)/70.89) -> 0.714
A40: 39 | B40: 275685 | C40: 2007-02-03 | D40: 2015-05-09 | E40: =(D40-C40)/365 -> 8.27 | F40: 18.0 | G40: =F40/12 -> 1.50 | H40: =SUM(E40-(F40/12)) -> 6.77 | I40: 33.5 | J40: 135.0 | K40: 1.55 | L40: 0.92 | M40: 1.54 | N40: =I40/(J40*J40/10000) -> 18.38 | O40: 2 | P40: 2015-04-11 | Q40: 9.70 | R40: -0.52 | S40: 0.09 | T40: 2.56 | U40: 3.32 | V40: 17.96 | W40: 0.78 | X40: 3.51 | Y40: 1.17 | Z40: 2.13 | AA40: 43.4 | AB40: 0.15 | AC40: 10.15 | AD40: 45.1 | AE40: 206 | AF40: 10 | AG40: 3.95 | AH40: 40 | AI40: 0 | AJ40: 0 | AK40: 176 | AL40: 160 | AM40: =(AK40+AL40)/2-6.5 -> 161.50 | AN40: =SUM((AM40-160.6)/5.3) -> 0.17 | AO40: =R40-AN40 -> -0.69 | AP40: =(P40-C40)/365 -> 8.19 | AQ40: =Q40-AP40 -> 1.51 | AR40: =Q40/AP40 -> 1.18 | AS40: 4.7 | AT40: 0.81 | AU40: 1.84 | AV40: =(AT40+AU40)/2 -> 1.32 | AW40: =U40/V40 -> 0.185 | AX40: =((AA40*10)-240.4)/164.6 -> 1.176 | AY40: =SUM((AE40-261.66)/75.79) -> -0.734
A41: 40 | B41: 275826 | C41: 2008-03-29 | D41: 2015-05-10 | E41: =(D41-C41)/365 -> 7.12 | F41: 6.0 | G41: =F41/12 -> 0.50 | H41: =SUM(E41-(F41/12)) -> 6.62 | I41: 24.0 | J41: 122.0 | K41: 0.32 | L41: -0.24 | M41: 0.68 | N41: =I41/(J41*J41/10000) -> 16.12 | O41: 2 | P41: 2015-05-09 | Q41: 9.20 | R41: -2.27 | S41: 0.10 | T41: 1.60 | U41: 2.76 | V41: 9.45 | W41: 0.91 | X41: 4.56 | Y41: 1.25 | Z41: 2.90 | AA41: 51.1 | AB41: 0.15 | AC41: 8.58 | AD41: 73.5 | AE41: 264 | AF41: 10 | AG41: 2.6 | AH41: 39 | AI41: 0 | AJ41: 0 | AK41: 170 | AL41: 156 | AM41: =(AK41+AL41)/2-6.5 -> 156.50 | AN41: =SUM((AM41-160.6)/5.3) -> -0.77 | AO41: =R41-AN41 -> -1.50 | AP41: =(P41-C41)/365 -> 7.12 | AQ41: =Q41-AP41 -> 2.08 | AR41: =Q41/AP41 -> 1.29 | AS41: 3.8 | AT41: 2.01 | AU41: 1.46 | AV41: =(AT41+AU41)/2 -> 1.74 | AW41: =U41/V41 -> 0.292 | AX41: =((AA41*10)-192.8)/103 -> 3.089 | AY41: =SUM((AE41-210.4)/70.89) -> 0.756
A42: 41 | B42: 276229 | C42: 2008-11-07 | D42: 2015-05-13 | E42: =(D42-C42)/365 -> 6.52 | F42: 3.0 | G42: =F42/12 -> 0.25 | H42: =SUM(E42-(F42/12)) -> 6.27 | I42: 20.0 | J42: 116.0 | K42: -0.53 | L42: -0.74 | M42: -0.08 | N42: =I42/(J42*J42/10000) -> 14.86 | O42: 2 | P42: 2015-05-07 | Q42: 7.50 | R42: -1.87 | S42: 0.10 | T42: 2.51 | U42: 4.97 | V42: 20.90 | W42: 0.50 | X42: 4.57 | Y42: 1.56 | Z42: 2.55 | AA42: 43.8 | AB42: 0.361 | AC42: 2.15 | AD42: 181.3 | AE42: 127 | AF42: 10 | AG42: 3.2 | AH42: 39 | AI42: 0 | AJ42: 0 | AK42: 170 | AL42: 162 | AM42: =(AK42+AL42)/2-6.5 -> 159.50 | AN42: =SUM((AM42-160.6)/5.3) -> -0.21 | AO42: =R42-AN42 -> -1.66 | AP42: =(P42-C42)/365 -> 6.50 | AQ42: =Q42-AP42 -> 1.00 | AR42: =Q42/AP42 -> 1.15 | AS42: 2.9 | AT42: 1.32 | AU42: 1.26 | AV42: =(AT42+AU42)/2 -> 1.29 | AW42: =U42/V42 -> 0.238 | AX42: =((AA42*10)-192.8)/103 -> 2.381 | AY42: =SUM((AE42-188.29)/61.99) -> -0.989
A43: 42 | B43: 276614 | C43: 2007-08-27 | D43: 2015-05-17 | E43: =(D43-C43)/365 -> 7.73 | F43: 3.0 | G43: =F43/12 -> 0.25 | H43: =E43-(F43/12) -> 7.48 | I43: 43.0 | J43: 141.0 | K43: 3.48 | L43: 2.63 | M43: 2.85 | N43: =I43/(J43*J43/10000) -> 21.63 | O43: 3 | P43: 2015-05-04 | Q43: 10.70 | R43: -0.55 | S43: 0.16 | T43: 2.26 | U43: 2.98 | V43: 11.61 | W43: 1.72 | X43: 4.42 | Y43: 0.92 | Z43: 2.83 | AA43: 138.7 | AB43: 1.17 | AC43: 13.45 | AD43: 17.1 | AE43: 221 | AF43: 34 | AG43: 3.4 | AH43: 40 | AI43: 0 | AJ43: 0 | AK43: 173 | AL43: 168 | AM43: =(AK43+AL43)/2-6.5 -> 164.00 | AN43: =SUM((AM43-160.6)/5.3) -> 0.64 | AO43: =R43-AN43 -> -1.19 | AP43: =(P43-C43)/365 -> 7.69 | AQ43: =Q43-AP43 -> 3.01 | AR43: =Q43/AP43 -> 1.39 | AS43: 3.3 | AT43: 0.61 | AU43: 1.32 | AV43: =(AT43+AU43)/2 -> 0.96 | AW43: =U43/V43 -> 0.257 | AX43: =((AA43*10)-192.8)/103 -> 11.594 | AY43: =SUM((AE43-210.4)/70.89) -> 0.150
A44: 43 | B44: 276629 | C44: 2010-01-27 | D44: 2015-05-17 | E44: =(D44-C44)/365 -> 5.30 | F44: 3.0 | G44: =F44/12 -> 0.25 | H44: =E44-(F44/12) -> 5.05 | I44: 23.6 | J44: 120.1 | K44: 1.74 | L44: 1.78 | M44: 0.97 | N44: =I44/(J44*J44/10000) -> 16.36 | O44: 2 | P44: 2015-05-12 | Q44: 7.10 | R44: -0.60 | S44: 0.15 | T44: 2.57 | U44: 4.62 | V44: 23.23 | W44: 1.10 | X44: 4.46 | Y44: 1.09 | Z44: 2.75 | AA44: 21.3 | AB44: 0.15 | AC44: 7.67 | AD44: 116.7 | AE44: 204 | AF44: 29 | AG44: 3.5 | AH44: 40 | AI44: 0 | AJ44: 0 | AK44: 170 | AL44: 163 | AM44: =(AK44+AL44)/2-6.5 -> 160.00 | AN44: =SUM((AM44-160.6)/5.3) -> -0.11 | AO44: =R44-AN44 -> -0.49 | AP44: =(P44-C44)/365 -> 5.29 | AQ44: =Q44-AP44 -> 1.81 | AR44: =Q44/AP44 -> 1.34 | AS44: 3.5 | AT44: 0.60 | AU44: 1.91 | AV44: =(AT44+AU44)/2 -> 1.26 | AW44: =U44/V44 -> 0.199 | AX44: =((AA44*10)-92.9)/72.1 -> 1.666 | AY44: =SUM((AE44-188.29)/61.99) -> 0.253
A45: 44 | B45: 276973 | C45: 2008-06-09 | D45: 2015-05-20 | E45: =(D45-C45)/365 -> 6.95 | F45: 12.0 | G45: =F45/12 -> 1.00 | H45: =SUM(E45-(F45/12)) -> 5.95 | I45: 28.5 | J45: 123.5 | K45: 1.62 | L45: 0.27 | M45: 2.00 | N45: =I45/(J45*J45/10000) -> 18.69 | O45: 3 | P45: 2014-03-04 | Q45: 7.90 | R45: -0.82 | S45: 0.18 | T45: 1.69 | U45: 2.71 | V45: 17.71 | W45: 0.76 | X45: 3.10 | Y45: 0.73 | Z45: 2.01 | AA45: 5.2 | AB45: 0.15 | AC45: 5.53 | AD45: 41.6 | AE45: 98 | AF45: 10 | AG45: 3.5 | AH45: 39 | AI45: 0 | AJ45: 0 | AK45: 160 | AL45: 160 | AM45: =(AK45+AL45)/2-6.5 -> 153.50 | AN45: =SUM((AM45-160.6)/5.3) -> -1.34 | AO45: =R45-AN45 -> 0.52 | AP45: =(P45-C45)/365 -> 5.74 | AQ45: =Q45-AP45 -> 2.16 | AR45: =Q45/AP45 -> 1.38 | AS45: 2.6 | AT45: 0.47 | AU45: 0.65 | AV45: =(AT45+AU45)/2 -> 0.56 | AW45: =U45/V45 -> 0.153 | AX45: =((AA45*10)-192.8)/103 -> -1.367 | AY45: =SUM((AE45-188.29)/61.99) -> -1.457
A46: 45 | B46: 277084 | C46: 2007-02-04 | D46: 2015-05-21 | E46: =(D46-C46)/365 -> 8.30 | F46: 12.0 | G46: =F46/12 -> 1.00 | H46: =SUM(E46-(F46/12)) -> 7.30 | I46: 28.5 | J46: 126.3 | K46: 0.56 | L46: -0.70 | M46: 1.32 | N46: =I46/(J46*J46/10000) -> 17.87 | O46: 2 | P46: 2015-05-16 | Q46: 9.60 | R46: -1.87 | S46: 0.15 | T46: 2.64 | U46: 3.93 | V46: 24.55 | W46: 0.90 | X46: 4.81 | Y46: 1.63 | Z46: 2.88 | AA46: 25.5 | AB46: 0.15 | AC46: 7.39 | AD46: 61.1 | AE46: 243 | AF46: 10 | AG46: 3.1 | AH46: 41 | AI46: 0 | AJ46: 0 | AK46: 163 | AL46: 155 | AM46: =(AK46+AL46)/2-6.5 -> 152.50 | AN46: =SUM((AM46-160.6)/5.3) -> -1.53 | AO46: =R46-AN46 -> -0.34 | AP46: =(P46-C46)/365 -> 8.28 | AQ46: =Q46-AP46 -> 1.32 | AR46: =Q46/AP46 -> 1.16 | AS46: 2.7 | AT46: 0.18 | AU46: 0.34 | AV46: =(AT46+AU46)/2 -> 0.26 | AW46: =U46/V46 -> 0.160 | AX46: =((AA46*10)-240.4)/164.6 -> 0.089 | AY46: =SUM((AE46-261.66)/75.79) -> -0.246
A47: 46 | B47: 277752 | C47: 2007-05-21 | D47: 2015-05-27 | E47: =(D47-C47)/365 -> 8.02 | F47: 11.0 | G47: =F47/12 -> 0.92 | H47: =SUM(E47-(F47/12)) -> 7.11 | I47: 34.8 | J47: 136.5 | K47: 1.96 | L47: 1.46 | M47: 1.73 | N47: =I47/(J47*J47/10000) -> 18.68 | O47: 3 | P47: 2015-03-31 | Q47: 9.70 | R47: -0.27 | S47: 0.64 | T47: 1.34 | U47: 3.81 | V47: 18.49 | W47: 0.64 | X47: 5.07 | Y47: 1.14 | Z47: 3.72 | AA47: 9.7 | AB47: 0.15 | AC47: 8.51 | AD47: 41.7 | AE47: 227 | AF47: 10 | AG47: 3 | AH47: 40 | AI47: 0 | AJ47: 0 | AK47: 168 | AL47: 160 | AM47: =(AK47+AL47)/2-6.5 -> 157.50 | AN47: =SUM((AM47-160.6)/5.3) -> -0.58 | AO47: =R47-AN47 -> 0.31 | AP47: =(P47-C47)/365 -> 7.87 | AQ47: =Q47-AP47 -> 1.83 | AR47: =Q47/AP47 -> 1.23 | AS47: 3.4 | AT47: 0.82 | AU47: 1.45 | AV47: =(AT47+AU47)/2 -> 1.13 | AW47: =U47/V47 -> 0.206 | AX47: =((AA47*10)-240.4)/164.6 -> -0.871 | AY47: =SUM((AE47-261.66)/75.79) -> -0.457
A48: 47 | B48: 277980 | C48: 2007-12-02 | D48: 2015-05-30 | E48: =(D48-C48)/365 -> 7.50 | F48: 13.0 | G48: =F48/12 -> 1.08 | H48: =SUM(E48-(F48/12)) -> 6.41 | I48: 24.9 | J48: 132.2 | K48: 0.27 | L48: 1.27 | M48: -0.58 | N48: =I48/(J48*J48/10000) -> 14.25 | O48: 2 | P48: 2015-05-01 | Q48: 8.60 | R48: 0.07 | S48: 0.85 | T48: 4.89 | U48: 4.01 | V48: 21.36 | W48: 1.37 | X48: 4.12 | Y48: 1.15 | Z48: 2.62 | AA48: 10.7 | AB48: 0.15 | AC48: 1.48 | AD48: 61.8 | AE48: 262 | AF48: 29 | AG48: 4.45 | AH48: 40 | AI48: 0 | AJ48: 0 | AK48: 174 | AL48: 158 | AM48: =(AK48+AL48)/2-6.5 -> 159.50 | AN48: =SUM((AM48-160.6)/5.3) -> -0.21 | AO48: =R48-AN48 -> 0.28 | AP48: =(P48-C48)/365 -> 7.42 | AQ48: =Q48-AP48 -> 1.18 | AR48: =Q48/AP48 -> 1.16 | AS48: 2.8 | AT48: 1.00 | AU48: 1.19 | AV48: =(AT48+AU48)/2 -> 1.10 | AW48: =U48/V48 -> 0.188 | AX48: =((AA48*10)-192.8)/103 -> -0.833 | AY48: =SUM((AE48-210.4)/70.89) -> 0.728
A49: 48 | B49: 278035 | C49: 2009-06-10 | D49: 2015-05-30 | E49: =(D49-C49)/365 -> 5.97 | F49: 3.0 | G49: =F49/12 -> 0.25 | H49: =SUM(E49-(F49/12)) -> 5.72 | I49: 23.5 | J49: 116.5 | K49: 1.10 | L49: 0.02 | M49: 1.48 | N49: =I49/(J49*J49/10000) -> 17.31 | O49: 2 | P49: 2015-05-01 | Q49: 7.80 | R49: -2.07 | S49: 0.38 | T49: 2.85 | U49: 4.69 | V49: 20.42 | W49: 0.73 | X49: 3.91 | Y49: 1.44 | Z49: 2.18 | AA49: 7.0 | AB49: 0.15 | AC49: 4.06 | AD49: 47.1 | AE49: 146 | AF49: 10 | AG49: 3.5 | AH49: 39 | AI49: 0 | AJ49: 0 | AO49: =R49-AN49 -> -2.07 | AP49: =(P49-C49)/365 -> 5.89 | AQ49: =Q49-AP49 -> 1.91 | AR49: =Q49/AP49 -> 1.32 | AS49: 3.2 | AT49: 1.75 | AU49: 2.16 | AV49: =(AT49+AU49)/2 -> 1.96 | AW49: =U49/V49 -> 0.230 | AX49: =((AA49*10)-92.9)/72.1 -> -0.318 | AY49: =SUM((AE49-188.29)/61.99) -> -0.682
A50: 49 | B50: 278161 | C50: 2007-05-01 | D50: 2015-05-31 | E50: =(D50-C50)/365 -> 8.09 | F50: 13.0 | G50: =F50/12 -> 1.08 | H50: =E50-(F50/12) -> 7.00 | I50: 35.4 | J50: 143.5 | K50: 2.01 | L50: 2.64 | M50: 1.06 | N50: =I50/(J50*J50/10000) -> 17.19 | O50: 2 | P50: 2015-05-15 | Q50: 9.10 | R50: 1.51 | S50: 1.30 | T50: 6.72 | U50: 4.95 | V50: 9.46 | W50: 1.35 | X50: 3.91 | Y50: 1.40 | Z50: 2.42 | AA50: 47.5 | AB50: 0.3 | AC50: 5.45 | AD50: 45.9 | AE50: 347 | AF50: 47 | AG50: 3.6 | AH50: 40 | AI50: 0 | AJ50: 0 | AK50: 180 | AL50: 164 | AM50: =(AK50+AL50)/2-6.5 -> 165.50 | AN50: =SUM((AM50-160.6)/5.3) -> 0.92 | AO50: =R50-AN50 -> 0.59 | AP50: =(P50-C50)/365 -> 8.04 | AQ50: =Q50-AP50 -> 1.06 | AR50: =Q50/AP50 -> 1.13 | AS50: 4.1 | AT50: 3.82 | AU50: 3.10 | AV50: =(AT50+AU50)/2 -> 3.46 | AW50: =U50/V50 -> 0.523 | AX50: =((AA50*10)-240.4)/164.6 -> 1.425 | AY50: =SUM((AE50-261.66)/75.79) -> 1.126
A51: 50 | B51: 278299 | C51: 2007-07-03 | D51: 2015-06-01 | E51: =(D51-C51)/365 -> 7.92 | F51: 3.0 | G51: =F51/12 -> 0.25 | H51: =E51-(F51/12) -> 7.67 | I51: 21.8 | J51: 125.3 | K51: -0.93 | L51: -0.50 | M51: -0.89 | N51: =I51/(J51*J51/10000) -> 13.89 | O51: 2 | P51: 2015-05-22 | Q51: 8.60 | R51: -1.17 | S51: 0.30 | T51: 6.12 | U51: 4.12 | V51: 16.29 | W51: 0.67 | X51: 3.41 | Y51: 0.96 | Z51: 2.20 | AA51: 46.5 | AB51: 0.423 | AC51: 2.6 | AD51: 85.9 | AE51: 240 | AF51: 37 | AG51: 4.2 | AH51: 42 | AI51: 0 | AJ51: 0 | AK51: 171 | AL51: 156 | AM51: =(AK51+AL51)/2-6.5 -> 157.00 | AN51: =SUM((AM51-160.6)/5.3) -> -0.68 | AO51: =R51-AN51 -> -0.49 | AP51: =(P51-C51)/365 -> 7.89 | AQ51: =Q51-AP51 -> 0.71 | AR51: =Q51/AP51 -> 1.09 | AS51: 3.5 | AT51: 1.96 | AU51: 0.69 | AV51: =(AT51+AU51)/2 -> 1.32 | AW51: =U51/V51 -> 0.253 | AX51: =((AA51*10)-192.8)/103 -> 2.643 | AY51: =SUM((AE51-210.4)/70.89) -> 0.418
A52: 51 | B52: 278394 | C52: 2007-07-29 | D52: 2015-06-02 | E52: =(D52-C52)/365 -> 7.85 | F52: 3.0 | G52: =F52/12 -> 0.25 | H52: =SUM(E52-(F52/12)) -> 7.60 | I52: 32.8 | J52: 135.0 | K52: 1.75 | L52: 1.38 | M52: 1.49 | N52: =I52/(J52*J52/10000) -> 18.00 | O52: 2 | P52: 2015-06-02 | Q52: 9.80 | R52: -0.62 | S52: 0.18 | T52: 3.37 | U52: 3.60 | V52: 12.06 | W52: 1.50 | X52: 4.28 | Y52: 1.31 | Z52: 2.67 | AA52: 83.6 | AB52: 0.806 | AC52: 14.13 | AD52: 28.1 | AE52: 253 | AF52: 10 | AG52: 3 | AH52: 40 | AI52: 0 | AJ52: 0 | AK52: 168 | AL52: 156 | AM52: =(AK52+AL52)/2-6.5 -> 155.50 | AN52: =SUM((AM52-160.6)/5.3) -> -0.96 | AO52: =R52-AN52 -> 0.34 | AP52: =(P52-C52)/365 -> 7.85 | AQ52: =Q52-AP52 -> 1.95 | AR52: =Q52/AP52 -> 1.25 | AS52: 3.3 | AT52: 1.76 | AU52: 0.82 | AV52: =(AT52+AU52)/2 -> 1.29 | AW52: =U52/V52 -> 0.299 | AX52: =((AA52*10)-192.8)/103 -> 6.245 | AY52: =SUM((AE52-210.4)/70.89) -> 0.601
A53: 52 | B53: 279038 | C53: 2008-08-10 | D53: 2015-06-08 | E53: =(D53-C53)/365 -> 6.83 | F53: 3.0 | G53: =F53/12 -> 0.25 | H53: =SUM(E53-(F53/12)) -> 6.58 | I53: 29.0 | J53: 127.0 | K53: 1.84 | L53: 1.12 | M53: 1.70 | N53: =I53/(J53*J53/10000) -> 17.98 | O53: 3 | P53: 2015-06-07 | Q53: 9.40 | R53: -1.57 | S53: 0.30 | T53: 2.49 | U53: 4.17 | V53: 16.98 | W53: 0.73 | X53: 5.37 | Y53: 1.53 | Z53: 3.65 | AA53: 154.4 | AB53: 0.789 | AC53: 8.46 | AD53: 62 | AE53: 417 | AF53: 10 | AG53: 2.5 | AH53: 37 | AI53: 0 | AJ53: 0 | AK53: 163 | AL53: 152 | AM53: =(AK53+AL53)/2-6.5 -> 151.00 | AN53: =SUM((AM53-160.6)/5.3) -> -1.81 | AO53: =R53-AN53 -> 0.24 | AP53: =(P53-C53)/365 -> 6.83 | AQ53: =Q53-AP53 -> 2.57 | AR53: =Q53/AP53 -> 1.38 | AS53: 2.8 | AT53: 0.69 | AU53: 0.47 | AV53: =(AT53+AU53)/2 -> 0.58 | AW53: =U53/V53 -> 0.246 | AX53: =((AA53*10)-192.8)/103 -> 13.118 | AY53: =SUM((AE53-188.29)/61.99) -> 3.689
A54: 53 | B54: 279822 | C54: 2009-06-11 | D54: 2015-06-15 | E54: =(D54-C54)/365 -> 6.01 | F54: 3.0 | G54: =F54/12 -> 0.25 | H54: =SUM(E54-(F54/12)) -> 5.76 | I54: 23.3 | J54: 120.0 | K54: 1.00 | L54: 0.73 | M54: 0.82 | N54: =I54/(J54*J54/10000) -> 16.18 | O54: 2 | P54: 2015-06-07 | Q54: 8.20 | R54: -1.78 | S54: 0.21 | T54: 2.88 | U54: 3.60 | V54: 14.84 | W54: 1.19 | X54: 4.51 | Y54: 1.36 | Z54: 2.87 | AA54: 10.9 | AB54: 0.325 | AC54: 6.42 | AD54: 88.6 | AE54: 163 | AF54: 10 | AG54: 3.6 | AH54: 40 | AI54: 0 | AJ54: 0 | AK54: 170 | AL54: 161 | AM54: =(AK54+AL54)/2-6.5 -> 159.00 | AN54: =SUM((AM54-160.6)/5.3) -> -0.30 | AO54: =R54-AN54 -> -1.48 | AP54: =(P54-C54)/365 -> 5.99 | AQ54: =Q54-AP54 -> 2.21 | AR54: =Q54/AP54 -> 1.37 | AS54: 2.9 | AT54: 1.46 | AU54: 1.66 | AV54: =(AT54+AU54)/2 -> 1.56 | AW54: =U54/V54 -> 0.243 | AX54: =((AA54*10)-192.8)/103 -> -0.814 | AY54: =SUM((AE54-188.29)/61.99) -> -0.408
A55: 54 | B55: 280398 | C55: 2007-12-01 | D55: 2015-06-20 | E55: =(D55-C55)/365 -> 7.56 | F55: 3.0 | G55: =F55/12 -> 0.25 | H55: =SUM(E55-(F55/12)) -> 7.31 | I55: 36.0 | J55: 138.4 | K55: 2.54 | L55: 2.36 | M55: 1.90 | N55: =I55/(J55*J55/10000) -> 18.79 | O55: 2 | P55: 2015-05-17 | Q55: 9.60 | R55: 0.14 | S55: 0.62 | T55: 9.26 | U55: 4.40 | V55: 13.86 | W55: 0.92 | X55: 6.54 | Y55: 1.91 | Z55: 4.42 | AA55: 54.1 | AB55: 0.15 | AC55: 9.81 | AD55: 54.8 | AE55: 315 | AF55: 10 | AG55: 3.3 | AH55: 40 | AI55: 0 | AJ55: 0 | AK55: 173 | AL55: 166 | AM55: =(AK55+AL55)/2-6.5 -> 163.00 | AN55: =SUM((AM55-160.6)/5.3) -> 0.45 | AO55: =R55-AN55 -> -0.31 | AP55: =(P55-C55)/365 -> 7.46 | AQ55: =Q55-AP55 -> 2.14 | AR55: =Q55/AP55 -> 1.29 | AS55: 4.2 | AT55: 2.01 | AU55: 1.91 | AV55: =(AT55+AU55)/2 -> 1.96 | AW55: =U55/V55 -> 0.317 | AX55: =((AA55*10)-192.8)/103 -> 3.381 | AY55: =SUM((AE55-210.4)/70.89) -> 1.476
A56: 55 | B56: 280501 | C56: 2007-11-07 | D56: 2015-06-21 | E56: =(D56-C56)/365 -> 7.62 | F56: 3.0 | G56: =F56/12 -> 0.25 | H56: =SUM(E56-(F56/12)) -> 7.37 | I56: 33.0 | J56: 127.8 | K56: 1.97 | L56: 0.29 | M56: 2.42 | N56: =I56/(J56*J56/10000) -> 20.20 | O56: 2 | P56: 2015-06-14 | Q56: 10.90 | R56: -2.76 | S56: 0.15 | T56: 2.67 | U56: 2.85 | V56: 11.85 | W56: 0.80 | X56: 3.76 | Y56: 1.31 | Z56: 2.49 | AA56: 16.9 | AB56: 0.15 | AC56: 7.63 | AD56: 30 | AE56: 233 | AF56: 10 | AG56: 3 | AH56: 40 | AI56: 0 | AJ56: 0 | AK56: 169 | AL56: 157 | AM56: =(AK56+AL56)/2-6.5 -> 156.50 | AN56: =SUM((AM56-160.6)/5.3) -> -0.77 | AO56: =R56-AN56 -> -1.99 | AP56: =(P56-C56)/365 -> 7.61 | AQ56: =Q56-AP56 -> 3.29 | AR56: =Q56/AP56 -> 1.43 | AS56: 4.0 | AT56: 2.63 | AU56: 2.86 | AV56: =(AT56+AU56)/2 -> 2.75 | AW56: =U56/V56 -> 0.241 | AX56: =((AA56*10)-192.8)/103 -> -0.231 | AY56: =SUM((AE56-210.4)/70.89) -> 0.319
A57: 56 | B57: 281802 | C57: 2009-06-02 | D57: 2015-07-02T18:20:00 | E57: =(D57-C57)/365 -> 6.09 | F57: 13.0 | G57: =F57/12 -> 1.08 | H57: =SUM(E57-(F57/12)) -> 5.00 | I57: 27.4 | J57: 123.3 | K57: 2.10 | L57: 1.34 | M57: 1.83 | N57: =I57/(J57*J57/10000) -> 18.02 | O57: 2 | P57: 2015-07-02 | Q57: 7.90 | R57: -0.86 | S57: 0.31 | T57: 3.44 | U57: 3.42 | V57: 20.20 | W57: 1.38 | X57: 4.26 | Y57: 1.28 | Z57: 2.31 | AA57: 17.8 | AB57: 0.15 | AC57: 5.53 | AD57: 83.7 | AE57: 181 | AF57: 10 | AG57: 3.3 | AH57: 40 | AI57: 0 | AJ57: 0 | AK57: 168 | AL57: 160 | AM57: =(AK57+AL57)/2-6.5 -> 157.50 | AN57: =SUM((AM57-160.6)/5.3) -> -0.58 | AO57: =R57-AN57 -> -0.28 | AP57: =(P57-C57)/365 -> 6.08 | AQ57: =Q57-AP57 -> 1.82 | AR57: =Q57/AP57 -> 1.30 | AS57: 3.3 | AT57: 0.31 | AU57: 0.95 | AV57: =(AT57+AU57)/2 -> 0.63 | AW57: =U57/V57 -> 0.169 | AX57: =((AA57*10)-192.8)/103 -> -0.144 | AY57: =SUM((AE57-188.29)/61.99) -> -0.118
A58: 57 | B58: 282593 | C58: 2009-05-10 | D58: 2015-07-08T13:05:00 | E58: =(D58-C58)/365 -> 6.17 | F58: 13.0 | G58: =F58/12 -> 1.08 | H58: =SUM(E58-(F58/12)) -> 5.08 | I58: 19.9 | J58: 118.0 | K58: -0.30 | L58: 0.11 | M58: -0.51 | N58: =I58/(J58*J58/10000) -> 14.29 | O58: 2 | P58: 2015-06-29 | Q58: 6.90 | R58: -0.79 | S58: 0.26 | T58: 3.38 | U58: 4.00 | V58: 20.26 | W58: 0.82 | X58: 3.41 | Y58: 1.70 | Z58: 2.48 | AA58: 26.5 | AB58: 0.15 | AC58: 7.14 | AD58: 136.6 | AE58: 308 | AF58: 10 | AG58: 3.75 | AH58: 40 | AI58: 0 | AJ58: 0 | AK58: 170 | AL58: 160 | AM58: =(AK58+AL58)/2-6.5 -> 158.50 | AN58: =SUM((AM58-160.6)/5.3) -> -0.40 | AO58: =R58-AN58 -> -0.39 | AP58: =(P58-C58)/365 -> 6.14 | AQ58: =Q58-AP58 -> 0.76 | AR58: =Q58/AP58 -> 1.12 | AS58: 3.3 | AT58: 0.29 | AU58: 0.30 | AV58: =(AT58+AU58)/2 -> 0.30 | AW58: =U58/V58 -> 0.197 | AX58: =((AA58*10)-192.8)/103 -> 0.701 | AY58: =SUM((AE58-188.29)/61.99) -> 1.931
A59: 58 | B59: 282601 | C59: 2008-11-05 | D59: 2015-07-08T15:06:00 | E59: =(D59-C59)/365 -> 6.68 | F59: 3.0 | G59: =F59/12 -> 0.25 | H59: =SUM(E59-(F59/12)) -> 6.43 | I59: 25.0 | J59: 128.0 | K59: 0.97 | L59: 1.53 | M59: 0.19 | N59: =I59/(J59*J59/10000) -> 15.26 | O59: 3 | P59: 2015-04-15 | Q59: 9.40 | R59: -1.41 | S59: 0.34 | T59: 2.75 | U59: 4.79 | V59: 17.36 | W59: 0.68 | X59: 2.70 | Y59: 1.50 | Z59: 1.84 | AA59: 18.2 | AB59: 0.333 | AC59: 2.94 | AD59: 77.5 | AE59: 175 | AF59: 21 | AG59: 3.8 | AH59: 40 | AI59: 0 | AJ59: 0 | AK59: 178 | AL59: 156 | AM59: =(AK59+AL59)/2-6.5 -> 160.50 | AN59: =SUM((AM59-160.6)/5.3) -> -0.02 | AO59: =R59-AN59 -> -1.39 | AP59: =(P59-C59)/365 -> 6.44 | AQ59: =Q59-AP59 -> 2.96 | AR59: =Q59/AP59 -> 1.46 | AS59: 2.7 | AT59: 2.26 | AU59: 2.16 | AV59: =(AT59+AU59)/2 -> 2.21 | AW59: =U59/V59 -> 0.276 | AX59: =((AA59*10)-192.8)/103 -> -0.105 | AY59: =SUM((AE59-188.29)/61.99) -> -0.214
A60: 59 | B60: 282838 | C60: 2007-07-16 | D60: 2015-07-10T17:20:00 | E60: =(D60-C60)/365 -> 7.99 | F60: 12.0 | G60: =F60/12 -> 1.00 | H60: =SUM(E60-(F60/12)) -> 6.99 | I60: 30.9 | J60: 134.0 | K60: 1.28 | L60: 1.04 | M60: 1.09 | N60: =I60/(J60*J60/10000) -> 17.21 | O60: 2 | P60: 2015-07-10 | Q60: 10.00 | R60: -0.97 | S60: 0.22 | T60: 3.55 | U60: 2.68 | V60: 12.45 | W60: 0.75 | X60: 4.30 | Y60: 1.54 | Z60: 2.23 | AA60: 76.0 | AB60: 0.419 | AC60: 4.67 | AD60: 60.1 | AE60: 394 | AF60: 10 | AG60: 3.2 | AH60: 40 | AI60: 0 | AJ60: 0 | AK60: 169 | AL60: 160 | AM60: =(AK60+AL60)/2-6.5 -> 158.00 | AN60: =SUM((AM60-160.6)/5.3) -> -0.49 | AO60: =R60-AN60 -> -0.48 | AP60: =(P60-C60)/365 -> 7.99 | AQ60: =Q60-AP60 -> 2.01 | AR60: =Q60/AP60 -> 1.25 | AS60: 3.8 | AT60: 1.16 | AU60: 1.11 | AV60: =(AT60+AU60)/2 -> 1.14 | AW60: =U60/V60 -> 0.215 | AX60: =((AA60*10)-192.8)/103 -> 5.507 | AY60: =SUM((AE60-210.4)/70.89) -> 2.590
A61: 60 | B61: 283689 | C61: 2007-10-09 | D61: 2015-07-16T15:47:00 | E61: =(D61-C61)/365 -> 7.77 | F61: 25.0 | G61: =F61/12 -> 2.08 | H61: =SUM(E61-(F61/12)) -> 5.69 | I61: 28.0 | J61: 126.3 | K61: 0.84 | L61: -0.16 | M61: 1.30 | N61: =I61/(J61*J61/10000) -> 17.55 | O61: 3 | P61: 2015-07-08 | Q61: 9.10 | R61: -1.44 | S61: 0.76 | T61: 2.50 | U61: 2.70 | V61: 10.03 | W61: 1.98 | X61: 4.62 | Y61: 1.38 | Z61: 2.46 | AA61: 45.2 | AB61: 0.15 | AC61: 3.01 | AD61: 68.9 | AE61: 171 | AF61: 10 | AG61: 2.75 | AH61: 40 | AI61: 0 | AJ61: 0 | AK61: 167 | AL61: 150 | AM61: =(AK61+AL61)/2-6.5 -> 152.00 | AN61: =SUM((AM61-160.6)/5.3) -> -1.62 | AO61: =R61-AN61 -> 0.18 | AP61: =(P61-C61)/365 -> 7.75 | AQ61: =Q61-AP61 -> 1.35 | AR61: =Q61/AP61 -> 1.17 | AS61: 2.9 | AT61: 1.38 | AU61: 1.13 | AV61: =(AT61+AU61)/2 -> 1.26 | AW61: =U61/V61 -> 0.269 | AX61: =((AA61*10)-192.8)/103 -> 2.517 | AY61: =SUM((AE61-210.4)/70.89) -> -0.556
A62: 61 | B62: 284191 | C62: 2007-08-23 | D62: 2015-07-20T11:06:00 | E62: =(D62-C62)/365 -> 7.91 | F62: 3.0 | G62: =F62/12 -> 0.25 | H62: =E62-(F62/12) -> 7.66 | I62: 33.7 | J62: 132.0 | K62: 1.86 | L62: 0.76 | M62: 2.02 | N62: =I62/(J62*J62/10000) -> 19.34 | O62: 2 | P62: 2015-07-10 | Q62: 10.80 | R62: -2.02 | S62: 0.03 | T62: 1.59 | U62: 3.17 | V62: 18.55 | W62: 0.84 | X62: 4.91 | Y62: 1.27 | Z62: 2.90 | AA62: 68.1 | AB62: 0.822 | AC62: 8.27 | AD62: 39.4 | AE62: 293 | AF62: 10 | AG62: 2.8 | AH62: 28 | AI62: 0 | AJ62: 0 | AK62: 158 | AL62: 153 | AM62: =(AK62+AL62)/2-6.5 -> 149.00 | AN62: =SUM((AM62-160.6)/5.3) -> -2.19 | AO62: =R62-AN62 -> 0.17 | AP62: =(P62-C62)/365 -> 7.88 | AQ62: =Q62-AP62 -> 2.92 | AR62: =Q62/AP62 -> 1.37 | AS62: 2.5 | AT62: 0.67 | AU62: 0.73 | AV62: =(AT62+AU62)/2 -> 0.70 | AW62: =U62/V62 -> 0.171 | AX62: =((AA62*10)-192.8)/103 -> 4.740 | AY62: =SUM((AE62-210.4)/70.89) -> 1.165
A63: 62 | B63: 284614 | C63: 2008-01-14 | D63: 2015-07-23T10:54:00 | E63: =(D63-C63)/365 -> 7.53 | F63: 12.0 | G63: =F63/12 -> 1.00 | H63: =SUM(E63-(F63/12)) -> 6.53 | I63: 26.0 | J63: 126.1 | K63: 0.54 | L63: 0.08 | M63: 0.74 | N63: =I63/(J63*J63/10000) -> 16.35 | O63: 2 | P63: 2015-07-17 | Q63: 9.00 | R63: -1.38 | S63: 0.12 | T63: 1.28 | U63: 3.36 | V63: 13.29 | W63: 0.48 | X63: 4.45 | Y63: 1.39 | Z63: 2.55 | AA63: 58.4 | AB63: 0.441 | AC63: 4.15 | AD63: 58.1 | AE63: 196 | AF63: 10 | AG63: 3.5 | AH63: 40 | AI63: 0 | AJ63: 0 | AK63: 167 | AL63: 158 | AM63: =(AK63+AL63)/2-6.5 -> 156.00 | AN63: =SUM((AM63-160.6)/5.3) -> -0.87 | AO63: =R63-AN63 -> -0.51 | AP63: =(P63-C63)/365 -> 7.51 | AQ63: =Q63-AP63 -> 1.49 | AR63: =Q63/AP63 -> 1.20 | AS63: 3.8 | AT63: 1.11 | AU63: 1.06 | AV63: =(AT63+AU63)/2 -> 1.08 | AW63: =U63/V63 -> 0.253 | AX63: =((AA63*10)-192.8)/103 -> 3.798 | AY63: =SUM((AE63-210.4)/70.89) -> -0.203
A64: 63 | B64: 284636 | C64: 2007-02-01 | D64: 2015-07-23T14:59:00 | E64: =(D64-C64)/365 -> 8.48 | F64: 12.0 | G64: =F64/12 -> 1.00 | H64: =SUM(E64-(F64/12)) -> 7.48 | I64: 28.7 | J64: 128.3 | K64: 0.47 | L64: -0.51 | M64: 1.08 | N64: =I64/(J64*J64/10000) -> 17.44 | O64: 3 | P64: 2015-07-17 | Q64: 9.50 | R64: -1.44 | S64: 0.46 | T64: 5.27 | U64: 4.30 | V64: 13.72 | W64: 0.87 | X64: 3.61 | Y64: 1.27 | Z64: 1.98 | AA64: 6.7 | AB64: 0.15 | AC64: 10.37 | AD64: 52.8 | AE64: 228 | AF64: 29 | AG64: 2.9 | AH64: 39+4 | AI64: 0 | AJ64: 0 | AK64: 165 | AL64: 162 | AM64: =(AK64+AL64)/2-6.5 -> 157.00 | AN64: =SUM((AM64-160.6)/5.3) -> -0.68 | AO64: =R64-AN64 -> -0.76 | AP64: =(P64-C64)/365 -> 8.46 | AQ64: =Q64-AP64 -> 1.04 | AR64: =Q64/AP64 -> 1.12 | AS64: 2.7 | AT64: 0.24 | AU64: 0.61 | AV64: =(AT64+AU64)/2 -> 0.42 | AW64: =U64/V64 -> 0.313 | AX64: =((AA64*10)-240.4)/164.6 -> -1.053 | AY64: =SUM((AE64-261.66)/75.79) -> -0.444
A65: 64 | B65: 285304 | C65: 2008-08-19 | D65: 2015-07-28T14:07:00 | E65: =(D65-C65)/365 -> 6.94 | F65: 12.0 | G65: =F65/12 -> 1.00 | H65: =E65-(F65/12) -> 5.94 | I65: 30.1 | J65: 131.2 | K65: 1.98 | L65: 1.79 | M65: 1.44 | N65: =I65/(J65*J65/10000) -> 17.49 | O65: 3 | P65: 2015-07-27 | Q65: 9.00 | R65: -0.49 | S65: 0.20 | T65: 3.27 | U65: 2.35 | V65: 15.18 | W65: 1.24 | X65: 4.40 | Y65: 1.46 | Z65: 2.40 | AA65: 49.0 | AB65: 0.699 | AC65: 8.89 | AD65: 31.2 | AE65: 341 | AF65: 10 | AG65: 2.6 | AH65: 40 | AI65: 0 | AJ65: 0 | AK65: 188 | AL65: 166 | AM65: =(AK65+AL65)/2-6.5 -> 170.50 | AN65: =SUM((AM65-160.6)/5.3) -> 1.87 | AO65: =R65-AN65 -> -2.36 | AP65: =(P65-C65)/365 -> 6.94 | AQ65: =Q65-AP65 -> 2.06 | AR65: =Q65/AP65 -> 1.30 | AS65: 3.0 | AT65: 0.94 | AU65: 1.19 | AV65: =(AT65+AU65)/2 -> 1.07 | AW65: =U65/V65 -> 0.155 | AX65: =((AA65*10)-192.8)/103 -> 2.885 | AY65: =SUM((AE65-188.29)/61.99) -> 2.463
A66: 65 | B66: 285399 | C66: 2010-03-03 | D66: 2015-07-29T14:44:00 | E66: =(D66-C66)/365 -> 5.41 | F66: 6.0 | G66: =F66/12 -> 0.50 | H66: =E66-(F66/12) -> 4.91 | I66: 28.1 | J66: 129.4 | K66: 2.90 | L66: 3.63 | M66: 1.23 | N66: =I66/(J66*J66/10000) -> 16.78 | O66: 3 | P66: 2015-05-09 | Q66: 7.50 | R66: 0.74 | S66: 0.81 | T66: 2.98 | U66: 4.93 | V66: 22.51 | W66: 0.46 | X66: 3.90 | Y66: 1.41 | Z66: 2.15 | AA66: 39.1 | AB66: 0.15 | AC66: 4.62 | AD66: 66.2 | AE66: 294 | AF66: 23 | AG66: 3.8 | AH66: 39 | AI66: 0 | AJ66: 0 | AK66: 180 | AL66: 160 | AM66: =(AK66+AL66)/2-6.5 -> 163.50 | AN66: =SUM((AM66-160.6)/5.3) -> 0.55 | AO66: =R66-AN66 -> 0.19 | AP66: =(P66-C66)/365 -> 5.19 | AQ66: =Q66-AP66 -> 2.31 | AR66: =Q66/AP66 -> 1.45 | AS66: 2.8 | AT66: 4.38 | AU66: 2.84 | AV66: =(AT66+AU66)/2 -> 3.61 | AW66: =U66/V66 -> 0.219 | AX66: =((AA66*10)-92.9)/72.1 -> 4.135 | AY66: =SUM((AE66-188.29)/61.99) -> 1.705
A67: 66 | B67: 285596 | C67: 2007-08-05 | D67: 2015-07-30T13:59:00 | E67: =(D67-C67)/365 -> 7.99 | F67: 6.0 | G67: =F67/12 -> 0.50 | H67: =E67-(F67/12) -> 7.49 | I67: 28.8 | J67: 135.2 | K67: 0.85 | L67: 1.26 | M67: 0.33 | N67: =I67/(J67*J67/10000) -> 15.76 | O67: 2 | P67: 2015-07-30 | Q67: 11.20 | R67: -1.91 | S67: 0.39 | T67: 5.30 | U67: 4.78 | V67: 9.47 | W67: 1.63 | X67: 4.66 | Y67: 1.23 | Z67: 2.59 | AA67: 37.3 | AB67: 0.763 | AC67: 4.58 | AD67: 80.8 | AE67: 303 | AF67: 89 | AG67: 2.9 | AH67: 40 | AI67: 0 | AJ67: 0 | AK67: 175 | AL67: 156 | AM67: =(AK67+AL67)/2-6.5 -> 159.00 | AN67: =SUM((AM67-160.6)/5.3) -> -0.30 | AO67: =R67-AN67 -> -1.61 | AP67: =(P67-C67)/365 -> 7.99 | AQ67: =Q67-AP67 -> 3.21 | AR67: =Q67/AP67 -> 1.40 | AS67: 4.3 | AT67: 2.06 | AU67: 0.73 | AV67: =(AT67+AU67)/2 -> 1.40 | AW67: =U67/V67 -> 0.505 | AX67: =((AA67*10)-192.8)/103 -> 1.750 | AY67: =SUM((AE67-210.4)/70.89) -> 1.306
A68: 67 | B68: 286584 | C68: 2008-12-19 | D68: 2015-08-06T14:09:00 | E68: =(D68-C68)/365 -> 6.63 | F68: 3.0 | G68: =F68/12 -> 0.25 | H68: =SUM(E68-(F68/12)) -> 6.38 | I68: 21.0 | J68: 115.3 | K68: -0.25 | L68: -1.03 | M68: 0.54 | N68: =I68/(J68*J68/10000) -> 15.80 | O68: 2 | P68: 2015-07-02 | Q68: 8.30 | R68: -2.76 | S68: 0.46 | T68: 1.85 | U68: 3.41 | V68: 11.02 | W68: 0.89 | X68: 3.46 | Y68: 1.44 | Z68: 1.42 | AA68: 55.5 | AB68: 0.762 | AC68: 5.1 | AD68: 81.7 | AE68: 223 | AF68: 10 | AG68: 2.85 | AH68: 40 | AI68: 0 | AJ68: 0 | AK68: 160 | AL68: 158 | AM68: =(AK68+AL68)/2-6.5 -> 152.50 | AN68: =SUM((AM68-160.6)/5.3) -> -1.53 | AO68: =R68-AN68 -> -1.23 | AP68: =(P68-C68)/365 -> 6.54 | AQ68: =Q68-AP68 -> 1.76 | AR68: =Q68/AP68 -> 1.27 | AS68: 3.0 | AT68: 0.85 | AU68: 1.38 | AV68: =(AT68+AU68)/2 -> 1.12 | AW68: =U68/V68 -> 0.309 | AX68: =((AA68*10)-192.8)/103 -> 3.517 | AY68: =SUM((AE68-188.29)/61.99) -> 0.560
A69: 68 | B69: 286705 | C69: 2007-08-22 | D69: 2015-08-07T16:57:00 | E69: =(D69-C69)/365 -> 7.97 | F69: 3.0 | G69: =F69/12 -> 0.25 | H69: =SUM(E69-(F69/12)) -> 7.72 | I69: 24.4 | J69: 130.3 | K69: -0.20 | L69: 0.39 | M69: -0.55 | N69: =I69/(J69*J69/10000) -> 14.37 | O69: 2 | P69: 2015-08-07 | Q69: 9.80 | R69: -1.38 | S69: 0.41 | T69: 2.88 | U69: 3.41 | V69: 8.48 | W69: 0.57 | X69: 3.74 | Y69: 1.31 | Z69: 2.06 | AA69: 95.8 | AB69: 1.17 | AC69: 2.65 | AD69: 83.2 | AE69: 207 | AF69: 10 | AG69: 3.5 | AH69: 40 | AI69: 0 | AJ69: 0 | AK69: 168 | AL69: 160 | AM69: =(AK69+AL69)/2-6.5 -> 157.50 | AN69: =SUM((AM69-160.6)/5.3) -> -0.58 | AO69: =R69-AN69 -> -0.80 | AP69: =(P69-C69)/365 -> 7.96 | AQ69: =Q69-AP69 -> 1.84 | AR69: =Q69/AP69 -> 1.23 | AW69: =U69/V69 -> 0.402 | AX69: =((AA69*10)-192.8)/103 -> 7.429 | AY69: =SUM((AE69-210.4)/70.89) -> -0.048
A70: 69 | B70: 286950 | C70: 2010-05-28 | D70: 2015-08-09T12:00:00 | E70: =(D70-C70)/365 -> 5.20 | F70: 4.0 | G70: =F70/12 -> 0.33 | H70: =E70-(F70/12) -> 4.87 | I70: 19.9 | J70: 116.0 | K70: 0.51 | L70: 1.02 | M70: -0.14 | N70: =I70/(J70*J70/10000) -> 14.79 | O70: 2 | P70: 2015-08-01 | Q70: 6.40 | R70: -0.60 | S70: 0.63 | T70: 2.33 | U70: 3.65 | V70: 24.26 | W70: 0.77 | X70: 4.25 | Y70: 1.19 | Z70: 2.44 | AA70: 3.4 | AB70: 0.15 | AC70: 2.75 | AD70: 87.5 | AE70: 259 | AF70: 10 | AG70: 3.4 | AH70: 40 | AI70: 0 | AJ70: 0 | AK70: 164 | AL70: 158 | AM70: =(AK70+AL70)/2-6.5 -> 154.50 | AN70: =SUM((AM70-160.6)/5.3) -> -1.15 | AO70: =R70-AN70 -> 0.55 | AP70: =(P70-C70)/365 -> 5.18 | AQ70: =Q70-AP70 -> 1.22 | AR70: =Q70/AP70 -> 1.24 | AS70: 3.5 | AT70: 1.26 | AU70: 1.21 | AV70: =(AT70+AU70)/2 -> 1.24 | AW70: =U70/V70 -> 0.150 | AX70: =((AA70*10)-92.9)/72.1 -> -0.817 | AY70: =SUM((AE70-188.29)/61.99) -> 1.141
A71: 70 | B71: 287123 | C71: 2007-10-07 | D71: 2015-08-10T16:50:00 | E71: =(D71-C71)/365 -> 7.85 | F71: 3.0 | G71: =F71/12 -> 0.25 | H71: =SUM(E71-(F71/12)) -> 7.60 | I71: 26.7 | J71: 125.3 | K71: 0.48 | L71: -0.42 | M71: 1.03 | N71: =I71/(J71*J71/10000) -> 17.01 | O71: 2 | P71: 2015-08-10 | Q71: 9.00 | R71: -1.52 | S71: 0.30 | T71: 2.68 | U71: 3.26 | V71: 16.01 | W71: 0.75 | X71: 4.00 | Y71: 4.85 | Z71: 2.73 | AA71: 11.2 | AB71: 0.15 | AC71: 3.66 | AD71: 82.9 | AE71: 168 | AF71: 10 | AG71: 3.5 | AH71: 40 | AI71: 0 | AJ71: 0 | AK71: 168 | AL71: 160 | AM71: =(AK71+AL71)/2-6.5 -> 157.50 | AN71: =SUM((AM71-160.6)/5.3) -> -0.58 | AO71: =R71-AN71 -> -0.94 | AP71: =(P71-C71)/365 -> 7.85 | AQ71: =Q71-AP71 -> 1.15 | AR71: =Q71/AP71 -> 1.15 | AS71: 3.1 | AT71: 1.42 | AU71: 1.51 | AV71: =(AT71+AU71)/2 -> 1.47 | AW71: =U71/V71 -> 0.204 | AX71: =((AA71*10)-192.8)/103 -> -0.784 | AY71: =SUM((AE71-210.4)/70.89) -> -0.598
A72: 71 | B72: 287767 | C72: 2008-10-29 | D72: 2015-08-15T13:09:00 | E72: =(D72-C72)/365 -> 6.80 | F72: 4.0 | G72: =F72/12 -> 0.33 | H72: =E72-(F72/12) -> 6.47 | I72: 27.9 | J72: 126.9 | K72: 1.61 | L72: 1.14 | M72: 1.39 | N72: =I72/(J72*J72/10000) -> 17.33 | O72: 3 | P72: 2015-05-14 | Q72: 8.70 | R72: -0.97 | S72: 0.24 | T72: 2.21 | U72: 4.52 | V72: 18.08 | W72: 1.53 | X72: 4.78 | Y72: 1.69 | Z72: 2.49 | AA72: 14.5 | AB72: 0.15 | AC72: 13.76 | AD72: 51.2 | AE72: 237 | AF72: 54 | AG72: 3.4 | AH72: 40 | AI72: 0 | AJ72: 0 | AK72: 173 | AL72: 150 | AM72: =(AK72+AL72)/2-6.5 -> 155.00 | AN72: =SUM((AM72-160.6)/5.3) -> -1.06 | AO72: =R72-AN72 -> 0.09 | AP72: =(P72-C72)/365 -> 6.54 | AQ72: =Q72-AP72 -> 2.16 | AR72: =Q72/AP72 -> 1.33 | AS72: 2.6 | AT72: 3.29 | AU72: 2.98 | AV72: =(AT72+AU72)/2 -> 3.14 | AW72: =U72/V72 -> 0.250 | AX72: =((AA72*10)-192.8)/103 -> -0.464 | AY72: =SUM((AE72-188.29)/61.99) -> 0.786
A73: 72 | B73: 288222 | C73: 2008-01-11 | D73: 2015-08-18T15:18:00 | E73: =(D73-C73)/365 -> 7.61 | F73: 6.0 | G73: =F73/12 -> 0.50 | H73: =SUM(E73-(F73/12)) -> 7.11 | I73: 31.4 | J73: 133.0 | K73: 1.68 | L73: 1.29 | M73: 1.43 | N73: =I73/(J73*J73/10000) -> 17.75 | O73: 2 | P73: 2015-08-17 | Q73: 10.20 | R73: -1.78 | S73: 0.11 | T73: 1.26 | U73: 2.46 | V73: 6.91 | W73: 1.14 | X73: 4.06 | Y73: 1.01 | Z73: 2.52 | AA73: 35.3 | AB73: 0.474 | AC73: 19.64 | AD73: 23.3 | AE73: 285 | AF73: 10 | AG73: 3.45 | AH73: 40 | AI73: 0 | AJ73: 0 | AK73: 175 | AL73: 165 | AM73: =(AK73+AL73)/2-6.5 -> 163.50 | AN73: =SUM((AM73-160.6)/5.3) -> 0.55 | AO73: =R73-AN73 -> -2.33 | AP73: =(P73-C73)/365 -> 7.60 | AQ73: =Q73-AP73 -> 2.60 | AR73: =Q73/AP73 -> 1.34 | AS73: 3.0 | AT73: 3.29 | AU73: 3.82 | AV73: =(AT73+AU73)/2 -> 3.56 | AW73: =U73/V73 -> 0.356 | AX73: =((AA73*10)-192.8)/103 -> 1.555 | AY73: =SUM((AE73-210.4)/70.89) -> 1.052
A74: 73 | B74: 288491 | C74: 2007-10-18 | D74: 2015-08-20T13:07:00 | E74: =(D74-C74)/365 -> 7.85 | F74: 3.0 | G74: =F74/12 -> 0.25 | H74: =SUM(E74-(F74/12)) -> 7.60 | I74: 40.5 | J74: 136.6 | K74: 2.97 | L74: 1.68 | M74: 2.84 | N74: =I74/(J74*J74/10000) -> 21.70 | O74: 2 | P74: 2015-08-08 | Q74: 10.00 | R74: -0.55 | S74: 0.17 | T74: 0.72 | U74: 0.64 | V74: 8.91 | W74: 1.26 | X74: 4.33 | Y74: 1.42 | Z74: 2.25 | AA74: 55.1 | AB74: 0.15 | AC74: 6.31 | AD74: 28.3 | AE74: 181 | AF74: 10 | AG74: 4.25 | AH74: 40+2 | AI74: 0 | AJ74: 0 | AK74: 174 | AL74: 152 | AM74: =(AK74+AL74)/2-6.5 -> 156.50 | AN74: =SUM((AM74-160.6)/5.3) -> -0.77 | AO74: =R74-AN74 -> 0.22 | AP74: =(P74-C74)/365 -> 7.81 | AQ74: =Q74-AP74 -> 2.19 | AR74: =Q74/AP74 -> 1.28 | AS74: 3.3 | AT74: 1.64 | AU74: 1.37 | AV74: =(AT74+AU74)/2 -> 1.50 | AW74: =U74/V74 -> 0.072 | AX74: =((AA74*10)-192.8)/103 -> 3.478 | AY74: =SUM((AE74-210.4)/70.89) -> -0.415
A75: 74 | B75: 288805 | C75: 2008-09-19 | D75: 2015-08-23T10:08:00 | E75: =(D75-C75)/365 -> 6.93 | F75: 3.0 | G75: =F75/12 -> 0.25 | H75: =SUM(E75-(F75/12)) -> 6.68 | I75: 18.0 | J75: 110.5 | K75: -1.64 | L75: -2.38 | M75: -0.18 | N75: =I75/(J75*J75/10000) -> 14.74 | O75: 2 | P75: 2015-08-09 | Q75: 6.60 | R75: -1.90 | S75: 0.12 | T75: 1.01 | U75: 2.26 | V75: 13.72 | W75: 0.90 | X75: 4.76 | Y75: 1.41 | Z75: 2.69 | AA75: 26.1 | AB75: 0.337 | AC75: 2.25 | AD75: 65.4 | AE75: 218 | AF75: 10 | AG75: 2.6 | AH75: 40 | AI75: 0 | AJ75: 0 | AK75: 164 | AL75: 140 | AM75: =(AK75+AL75)/2-6.5 -> 145.50 | AN75: =SUM((AM75-160.6)/5.3) -> -2.85 | AO75: =R75-AN75 -> 0.95 | AP75: =(P75-C75)/365 -> 6.89 | AQ75: =Q75-AP75 -> -0.29 | AR75: =Q75/AP75 -> 0.96 | AS75: 3.5 | AT75: 2.19 | AU75: 1.66 | AV75: =(AT75+AU75)/2 -> 1.92 | AW75: =U75/V75 -> 0.165 | AX75: =((AA75*10)-192.8)/103 -> 0.662 | AY75: =SUM((AE75-188.29)/61.99) -> 0.479
A76: 75 | B76: 149076 | C76: 2007-05-30 | D76: 2015-08-26T14:29:00 | E76: =(D76-C76)/365 -> 8.25 | F76: 7.0 | G76: =F76/12 -> 0.58 | H76: =SUM(E76-(F76/12)) -> 7.66 | I76: 34.3 | J76: 135.5 | K76: 1.70 | L76: 1.03 | M76: 1.67 | N76: =I76/(J76*J76/10000) -> 18.68 | O76: 2 | P76: 2015-08-21 | Q76: 9.80 | R76: -0.54 | S76: 0.36 | T76: 2.27 | U76: 3.37 | V76: 16.67 | W76: 1.24 | X76: 6.10 | Y76: 1.16 | Z76: 3.94 | AA76: 51.0 | AB76: 0.15 | AC76: 6.01 | AD76: 48.6 | AE76: 266 | AF76: 10 | AG76: 3.6 | AH76: 40 | AI76: 0 | AJ76: 0 | AK76: 175 | AL76: 155 | AM76: =(AK76+AL76)/2-6.5 -> 158.50 | AN76: =SUM((AM76-160.6)/5.3) -> -0.40 | AO76: =R76-AN76 -> -0.14 | AP76: =(P76-C76)/365 -> 8.23 | AQ76: =Q76-AP76 -> 1.57 | AR76: =Q76/AP76 -> 1.19 | AS76: 4.4 | AT76: 2.16 | AU76: 2.26 | AV76: =(AT76+AU76)/2 -> 2.21 | AW76: =U76/V76 -> 0.202 | AX76: =((AA76*10)-240.4)/164.6 -> 1.638 | AY76: =SUM((AE76-261.66)/75.79) -> 0.057
A77: 76 | B77: 289294 | C77: 2008-02-17 | D77: 2015-08-26T15:47:00 | E77: =(D77-C77)/365 -> 7.53 | F77: 3.0 | G77: =F77/12 -> 0.25 | H77: =SUM(E77-(F77/12)) -> 7.28 | I77: 34.0 | J77: 139.5 | K77: 2.23 | L77: 2.60 | M77: 1.32 | N77: =I77/(J77*J77/10000) -> 17.47 | O77: 2 | P77: 2015-08-11 | Q77: 10.60 | R77: -0.68 | S77: 1.28 | T77: 4.82 | U77: 3.69 | V77: 11.87 | W77: 1.09 | X77: 3.21 | Y77: 1.52 | Z77: 1.48 | AA77: 53.6 | AB77: 0.588 | AC77: 3.83 | AD77: 64.9 | AE77: 253 | AF77: 10 | AG77: 3.7 | AH77: 40 | AI77: 0 | AJ77: 0 | AK77: 171 | AL77: 168 | AM77: =(AK77+AL77)/2-6.5 -> 163.00 | AN77: =SUM((AM77-160.6)/5.3) -> 0.45 | AO77: =R77-AN77 -> -1.13 | AP77: =(P77-C77)/365 -> 7.48 | AQ77: =Q77-AP77 -> 3.12 | AR77: =Q77/AP77 -> 1.42 | AS77: 3.2 | AT77: 0.73 | AU77: 0.65 | AV77: =(AT77+AU77)/2 -> 0.69 | AW77: =U77/V77 -> 0.311 | AX77: =((AA77*10)-192.8)/103 -> 3.332 | AY77: =SUM((AE77-210.4)/70.89) -> 0.601
A78: 77 | B78: 289350 | C78: 2007-03-27 | D78: 2015-08-27T10:20:00 | E78: =(D78-C78)/365 -> 8.43 | F78: 6.0 | G78: =F78/12 -> 0.50 | H78: =SUM(E78-(F78/12)) -> 7.93 | I78: 31.5 | J78: 139.5 | K78: 1.07 | L78: 1.55 | M78: 0.48 | N78: =I78/(J78*J78/10000) -> 16.19 | O78: 3 | P78: 2015-08-22 | Q78: 11.20 | R78: -1.26 | S78: 0.36 | T78: 5.14 | U78: 3.77 | V78: 11.36 | W78: 1.44 | X78: 4.53 | Y78: 1.11 | Z78: 2.66 | AA78: 130.2 | AB78: 0.949 | AC78: 5.38 | AD78: 60.9 | AE78: 444 | AF78: 10 | AG78: 3.4 | AH78: 40 | AI78: 0 | AJ78: 0 | AK78: 162 | AL78: 160 | AM78: =(AK78+AL78)/2-6.5 -> 154.50 | AN78: =SUM((AM78-160.6)/5.3) -> -1.15 | AO78: =R78-AN78 -> -0.11 | AP78: =(P78-C78)/365 -> 8.41 | AQ78: =Q78-AP78 -> 2.79 | AR78: =Q78/AP78 -> 1.33 | AS78: 4.4 | AT78: 2.98 | AU78: 2.01 | AV78: =(AT78+AU78)/2 -> 2.50 | AW78: =U78/V78 -> 0.332 | AX78: =((AA78*10)-240.4)/164.6 -> 6.450 | AY78: =SUM((AE78-261.66)/75.79) -> 2.406
A79: 78 | B79: 224491 | C79: 2009-12-28 | D79: 2015-08-28T08:54:00 | E79: =(D79-C79)/365 -> 5.67 | F79: 3.0 | G79: =F79/12 -> 0.25 | H79: =SUM(E79-(F79/12)) -> 5.42 | I79: 17.6 | J79: 113.0 | K79: -0.90 | L79: -0.36 | M79: -0.96 | N79: =I79/(J79*J79/10000) -> 13.78 | O79: 2 | P79: 2015-08-27 | Q79: 4.80 | R79: 0.98 | S79: 0.21 | T79: 5.00 | U79: 4.73 | V79: 39.06 | W79: 0.92 | X79: 3.19 | Y79: 1.00 | Z79: 1.86 | AA79: 8.5 | AB79: 0.15 | AC79: 1.65 | AD79: 94.9 | AE79: 144 | AF79: 10 | AG79: 3.15 | AH79: 41 | AI79: 0 | AJ79: 0 | AK79: 169 | AL79: 153 | AM79: =(AK79+AL79)/2-6.5 -> 154.50 | AN79: =SUM((AM79-160.6)/5.3) -> -1.15 | AO79: =R79-AN79 -> 2.13 | AP79: =(P79-C79)/365 -> 5.67 | AQ79: =Q79-AP79 -> -0.87 | AR79: =Q79/AP79 -> 0.85 | AS79: 3.5 | AT79: 0.14 | AU79: 0.24 | AV79: =(AT79+AU79)/2 -> 0.19 | AW79: =U79/V79 -> 0.121 | AX79: =((AA79*10)-92.9)/72.1 -> -0.110 | AY79: =SUM((AE79-188.29)/61.99) -> -0.714
A80: 79 | B80: 289493 | C80: 2007-09-06 | D80: 2015-08-28T13:27:00 | E80: =(D80-C80)/365 -> 7.98 | F80: 12.0 | G80: =F80/12 -> 1.00 | H80: =SUM(E80-(F80/12)) -> 6.98 | I80: 28.1 | J80: 136.9 | K80: 0.70 | L80: 1.58 | M80: -0.14 | N80: =I80/(J80*J80/10000) -> 14.99 | O80: 2 | P80: 2015-08-22 | Q80: 10.10 | R80: -0.60 | S80: 0.21 | T80: 4.12 | U80: 2.24 | V80: 15.50 | W80: 0.79 | X80: 3.48 | Y80: 1.17 | Z80: 2.05 | AA80: 51.8 | AB80: 0.506 | AC80: 6.66 | AD80: 47.3 | AE80: 234 | AF80: 10 | AG80: 3.45 | AH80: 40 | AI80: 0 | AJ80: 0 | AK80: 180 | AL80: 166 | AM80: =(AK80+AL80)/2-6.5 -> 166.50 | AN80: =SUM((AM80-160.6)/5.3) -> 1.11 | AO80: =R80-AN80 -> -1.71 | AP80: =(P80-C80)/365 -> 7.96 | AQ80: =Q80-AP80 -> 2.14 | AR80: =Q80/AP80 -> 1.27 | AS80: 3.4 | AT80: 0.69 | AU80: 0.78 | AV80: =(AT80+AU80)/2 -> 0.73 | AW80: =U80/V80 -> 0.145 | AX80: =((AA80*10)-192.8)/103 -> 3.157 | AY80: =SUM((AE80-210.4)/70.89) -> 0.333
A81: 80 | B81: 289948 | C81: 2007-03-21 | D81: 2015-09-01T11:59:00 | E81: =(D81-C81)/365 -> 8.46 | F81: 13.0 | G81: =F81/12 -> 1.08 | H81: =SUM(E81-(F81/12)) -> 7.37 | I81: 30.6 | J81: 137.0 | K81: 0.88 | L81: 1.07 | M81: 0.53 | N81: =I81/(J81*J81/10000) -> 16.30 | O81: 3 | P81: 2015-09-03 | Q81: 9.80 | R81: -0.29 | S81: 0.34 | T81: 3.81 | U81: 3.97 | V81: 11.23 | W81: 0.96 | X81: 4.79 | Y81: 1.31 | Z81: 2.84 | AA81: 70.3 | AB81: 0.984 | AC81: 6.55 | AD81: 48 | AE81: 357 | AF81: 10 | AG81: 3 | AH81: 41 | AI81: 0 | AJ81: 0 | AK81: 165 | AL81: 160 | AM81: =(AK81+AL81)/2-6.5 -> 156.00 | AN81: =SUM((AM81-160.6)/5.3) -> -0.87 | AO81: =R81-AN81 -> 0.58 | AP81: =(P81-C81)/365 -> 8.46 | AQ81: =Q81-AP81 -> 1.34 | AR81: =Q81/AP81 -> 1.16 | AS81: 2.9 | AT81: 0.73 | AU81: 1.00 | AV81: =(AT81+AU81)/2 -> 0.87 | AW81: =U81/V81 -> 0.354 | AX81: =((AA81*10)-240.4)/164.6 -> 2.810 | AY81: =SUM((AE81-261.66)/75.79) -> 1.258
A82: 81 | B82: 290042 | C82: 2007-10-06 | D82: 2015-09-02T14:11:00 | E82: =(D82-C82)/365 -> 7.91 | F82: 13.0 | G82: =F82/12 -> 1.08 | H82: =SUM(E82-(F82/12)) -> 6.83 | I82: 27.0 | J82: 129.0 | K82: 0.50 | L82: 0.20 | M82: 0.60 | N82: =I82/(J82*J82/10000) -> 16.22 | O82: 2 | P82: 2015-08-29 | Q82: 10.40 | R82: -2.12 | S82: 1.01 | T82: 4.06 | U82: 4.31 | V82: 19.82 | W82: 0.69 | X82: 4.14 | Y82: 1.25 | Z82: 2.25 | AA82: 59.2 | AB82: 0.535 | AC82: 4 | AD82: 61.1 | AE82: 152 | AF82: 10 | AG82: 3.2 | AH82: 40 | AI82: 0 | AJ82: 0 | AK82: 170 | AL82: 158 | AM82: =(AK82+AL82)/2-6.5 -> 157.50 | AN82: =SUM((AM82-160.6)/5.3) -> -0.58 | AO82: =R82-AN82 -> -1.54 | AP82: =(P82-C82)/365 -> 7.90 | AQ82: =Q82-AP82 -> 2.50 | AR82: =Q82/AP82 -> 1.32 | AS82: 3.5 | AT82: 2.06 | AU82: 1.38 | AV82: =(AT82+AU82)/2 -> 1.72 | AW82: =U82/V82 -> 0.217 | AX82: =((AA82*10)-192.8)/103 -> 3.876 | AY82: =SUM((AE82-210.4)/70.89) -> -0.824
A83: 82 | B83: 290041 | C83: 2007-08-29 | D83: 2015-09-02T14:16:00 | E83: =(D83-C83)/365 -> 8.02 | F83: 3.0 | G83: =F83/12 -> 0.25 | H83: =SUM(E83-(F83/12)) -> 7.77 | I83: 30.7 | J83: 136.6 | K83: 1.22 | L83: 1.49 | M83: 0.70 | N83: =I83/(J83*J83/10000) -> 16.45 | O83: 3 | P83: 2015-08-30 | Q83: 10.70 | R83: -1.22 | S83: 0.17 | T83: 2.40 | U83: 4.19 | V83: 11.97 | W83: 1.19 | X83: 3.43 | Y83: 1.29 | Z83: 1.78 | AA83: 51.9 | AB83: 1.05 | AC83: 15.41 | AD83: 32.4 | AE83: 313 | AF83: 10 | AG83: 2.7 | AH83: 40 | AI83: 0 | AJ83: 0 | AK83: 175 | AL83: 160 | AM83: =(AK83+AL83)/2-6.5 -> 161.00 | AN83: =SUM((AM83-160.6)/5.3) -> 0.08 | AO83: =R83-AN83 -> -1.30 | AP83: =(P83-C83)/365 -> 8.01 | AQ83: =Q83-AP83 -> 2.69 | AR83: =Q83/AP83 -> 1.34 | AS83: 3.0 | AT83: 1.91 | AU83: 1.51 | AV83: =(AT83+AU83)/2 -> 1.71 | AW83: =U83/V83 -> 0.350 | AX83: =((AA83*10)-240.4)/164.6 -> 1.693 | AY83: =SUM((AE83-261.66)/75.79) -> 0.677
A84: 83 | B84: 290053 | C84: 2007-09-13 | D84: 2015-09-02T15:18:00 | E84: =(D84-C84)/365 -> 7.98 | F84: 12.0 | G84: =F84/12 -> 1.00 | H84: =SUM(E84-(F84/12)) -> 6.98 | I84: 36.0 | J84: 128.0 | K84: 2.20 | L84: -0.05 | M84: 2.87 | N84: =I84/(J84*J84/10000) -> 21.97 | O84: 3 | P84: 2015-08-28 | Q84: 11.00 | R84: -2.82 | S84: 0.18 | T84: 1.00 | U84: 2.78 | V84: 14.54 | W84: 0.83 | X84: 5.58 | Y84: 1.06 | Z84: 3.63 | AA84: 24.3 | AB84: 0.15 | AC84: 13.61 | AD84: 38.7 | AE84: 136 | AF84: 10 | AG84: 3.2 | AH84: 40 | AI84: 0 | AJ84: 0 | AK84: 166.8 | AL84: 150 | AM84: =(AK84+AL84)/2-6.5 -> 151.90 | AN84: =SUM((AM84-160.6)/5.3) -> -1.64 | AO84: =R84-AN84 -> -1.18 | AP84: =(P84-C84)/365 -> 7.96 | AQ84: =Q84-AP84 -> 3.04 | AR84: =Q84/AP84 -> 1.38 | AS84: 2.9 | AT84: 1.00 | AU84: 0.60 | AV84: =(AT84+AU84)/2 -> 0.80 | AW84: =U84/V84 -> 0.191 | AX84: =((AA84*10)-192.8)/103 -> 0.487 | AY84: =SUM((AE84-210.4)/70.89) -> -1.050
A85: 84 | B85: 290067 | C85: 2008-11-09 | D85: 2015-09-02T17:07:00 | E85: =(D85-C85)/365 -> 6.82 | F85: 13.0 | G85: =F85/12 -> 1.08 | H85: =SUM(E85-(F85/12)) -> 5.74 | I85: 23.3 | J85: 124.5 | K85: 0.35 | L85: 0.63 | M85: 0.02 | N85: =I85/(J85*J85/10000) -> 15.03 | O85: 2 | P85: 2015-08-28 | Q85: 8.00 | R85: -0.74 | S85: 0.20 | T85: 3.89 | U85: 4.00 | V85: 12.68 | W85: 1.05 | X85: 5.82 | Y85: 1.05 | Z85: 3.90 | AA85: 5.4 | AB85: 0.15 | AC85: 4.89 | AD85: 99.7 | AE85: 194 | AF85: 10 | AG85: 3.2 | AH85: 41 | AI85: 0 | AJ85: 0 | AK85: 173 | AL85: 158 | AM85: =(AK85+AL85)/2-6.5 -> 159.00 | AN85: =SUM((AM85-160.6)/5.3) -> -0.30 | AO85: =R85-AN85 -> -0.44 | AP85: =(P85-C85)/365 -> 6.80 | AQ85: =Q85-AP85 -> 1.20 | AR85: =Q85/AP85 -> 1.18 | AS85: 2.7 | AT85: 1.61 | AU85: 2.47 | AV85: =(AT85+AU85)/2 -> 2.04 | AW85: =U85/V85 -> 0.315 | AX85: =((AA85*10)-192.8)/103 -> -1.348 | AY85: =SUM((AE85-188.29)/61.99) -> 0.092
A86: 85 | B86: 103816 | C86: 2007-09-30 | D86: 2015-09-03T13:43:00 | E86: =(D86-C86)/365 -> 7.93 | F86: 3.0 | G86: =F86/12 -> 0.25 | H86: =SUM(E86-(F86/12)) -> 7.68 | I86: 29.5 | J86: 132.5 | K86: 1.04 | L86: 0.83 | M86: 0.90 | N86: =I86/(J86*J86/10000) -> 16.80 | O86: 2 | P86: 2015-08-29 | Q86: 10.20 | R86: -1.39 | S86: 0.19 | T86: 4.79 | U86: 4.25 | V86: 20.24 | W86: 0.56 | X86: 4.98 | Y86: 1.48 | Z86: 2.88 | AA86: 202.3 | AB86: 0.416 | AC86: 5.88 | AD86: 80.9 | AE86: 190 | AF86: 10 | AG86: 3.7 | AH86: 40 | AI86: 0 | AJ86: 0 | AK86: 174 | AL86: 160 | AM86: =(AK86+AL86)/2-6.5 -> 160.50 | AN86: =SUM((AM86-160.6)/5.3) -> -0.02 | AO86: =R86-AN86 -> -1.37 | AP86: =(P86-C86)/365 -> 7.92 | AQ86: =Q86-AP86 -> 2.28 | AR86: =Q86/AP86 -> 1.29 | AS86: 3.3 | AT86: 1.16 | AU86: 1.27 | AV86: =(AT86+AU86)/2 -> 1.22 | AW86: =U86/V86 -> 0.210 | AX86: =((AA86*10)-192.8)/103 -> 17.769 | AY86: =SUM((AE86-210.4)/70.89) -> -0.288
A87: 86 | B87: 290153 | C87: 2007-05-12 | D87: 2015-09-03T15:23:00 | E87: =(D87-C87)/365 -> 8.32 | F87: 6.0 | G87: =F87/12 -> 0.50 | H87: =SUM(E87-(F87/12)) -> 7.82 | I87: 27.4 | J87: 133.8 | K87: 0.30 | L87: 0.65 | M87: 0.00 | N87: =I87/(J87*J87/10000) -> 15.31 | O87: 2 | P87: 2015-07-27 | Q87: 10.00 | R87: -1.00 | S87: 0.26 | T87: 1.49 | U87: 3.68 | V87: 9.67 | W87: 1.52 | X87: 4.13 | Y87: 1.19 | Z87: 2.36 | AA87: 73.6 | AB87: 0.591 | AC87: 10.01 | AD87: 56 | AE87: 303 | AF87: 10 | AG87: 3.4 | AH87: 40 | AI87: 0 | AJ87: 0 | AK87: 170 | AL87: 155 | AM87: =(AK87+AL87)/2-6.5 -> 156.00 | AN87: =SUM((AM87-160.6)/5.3) -> -0.87 | AO87: =R87-AN87 -> -0.13 | AP87: =(P87-C87)/365 -> 8.21 | AQ87: =Q87-AP87 -> 1.79 | AR87: =Q87/AP87 -> 1.22 | AS87: 3.9 | AT87: 1.70 | AU87: 1.99 | AV87: =(AT87+AU87)/2 -> 1.84 | AW87: =U87/V87 -> 0.381 | AX87: =((AA87*10)-240.4)/164.6 -> 3.011 | AY87: =SUM((AE87-261.66)/75.79) -> 0.545
A88: 87 | B88: 290365 | C88: 2007-10-15 | D88: 2015-09-05T13:44:00 | E88: =(D88-C88)/365 -> 7.90 | F88: 4.0 | G88: =F88/12 -> 0.33 | H88: =SUM(E88-(F88/12)) -> 7.56 | I88: 24.1 | J88: 126.0 | K88: -0.23 | L88: -0.34 | M88: 0.00 | N88: =I88/(J88*J88/10000) -> 15.18 | O88: 3 | P88: 2015-05-20 | Q88: 8.60 | R88: -1.04 | S88: 0.46 | T88: 5.04 | U88: 3.63 | V88: 17.65 | W88: 0.79 | X88: 2.51 | Y88: 1.25 | Z88: 1.13 | AA88: 23.5 | AB88: 0.15 | AC88: 4.99 | AD88: 60.1 | AE88: 173 | AF88: 10 | AG88: 3.125 | AH88: 40 | AI88: 0 | AJ88: 0 | AK88: 175 | AL88: 158 | AM88: =(AK88+AL88)/2-6.5 -> 160.00 | AN88: =SUM((AM88-160.6)/5.3) -> -0.11 | AO88: =R88-AN88 -> -0.93 | AP88: =(P88-C88)/365 -> 7.60 | AQ88: =Q88-AP88 -> 1.00 | AR88: =Q88/AP88 -> 1.13 | AS88: 2.4 | AT88: 0.65 | AU88: 0.90 | AV88: =(AT88+AU88)/2 -> 0.77 | AW88: =U88/V88 -> 0.206 | AX88: =((AA88*10)-192.8)/103 -> 0.410 | AY88: =SUM((AE88-210.4)/70.89) -> -0.528
A89: 88 | B89: 290578 | C89: 2007-11-29 | D89: 2015-09-07T10:17:00 | E89: =(D89-C89)/365 -> 7.78 | F89: 6.0 | G89: =F89/12 -> 0.50 | H89: =SUM(E89-(F89/12)) -> 7.28 | I89: 29.6 | J89: 128.0 | K89: 1.18 | L89: 0.16 | M89: 1.54 | N89: =I89/(J89*J89/10000) -> 18.07 | O89: 2 | P89: 2015-09-05 | Q89: 10.10 | R89: -2.02 | S89: 0.38 | T89: 7.66 | U89: 4.35 | V89: 13.88 | W89: 0.65 | X89: 4.90 | Y89: 1.37 | Z89: 2.99 | AA89: 76.2 | AB89: 0.495 | AC89: 6.52 | AD89: 112.1 | AE89: 252 | AF89: 25 | AG89: 2.9 | AH89: 40 | AI89: 0 | AJ89: 0 | AK89: 168 | AL89: 155 | AM89: =(AK89+AL89)/2-6.5 -> 155.00 | AN89: =SUM((AM89-160.6)/5.3) -> -1.06 | AO89: =R89-AN89 -> -0.96 | AP89: =(P89-C89)/365 -> 7.77 | AQ89: =Q89-AP89 -> 2.33 | AR89: =Q89/AP89 -> 1.30 | AS89: 3.8 | AT89: 0.14 | AU89: 0.36 | AV89: =(AT89+AU89)/2 -> 0.25 | AW89: =U89/V89 -> 0.313 | AX89: =((AA89*10)-192.8)/103 -> 5.526 | AY89: =SUM((AE89-210.4)/70.89) -> 0.587
A90: 89 | B90: 291037 | C90: 2007-10-14 | D90: 2015-09-11T14:00:00 | E90: =(D90-C90)/365 -> 7.92 | F90: 3.0 | G90: =F90/12 -> 0.25 | H90: =SUM(E90-(F90/12)) -> 7.67 | I90: 28.0 | J90: 130.3 | K90: 0.73 | L90: 0.44 | M90: 0.74 | N90: =I90/(J90*J90/10000) -> 16.49 | O90: 2 | P90: 2015-09-03 | Q90: 9.80 | R90: -1.38 | S90: 0.20 | T90: 2.63 | U90: 3.44 | V90: 15.92 | W90: 0.48 | X90: 4.15 | Y90: 1.62 | Z90: 2.17 | AA90: 33.9 | AB90: 0.417 | AC90: 6.33 | AD90: 128.7 | AE90: 116 | AF90: 10 | AG90: 3.2 | AH90: 39 | AI90: 0 | AJ90: 0 | AK90: 168 | AL90: 165 | AM90: =(AK90+AL90)/2-6.5 -> 160.00 | AN90: =SUM((AM90-160.6)/5.3) -> -0.11 | AO90: =R90-AN90 -> -1.27 | AP90: =(P90-C90)/365 -> 7.89 | AQ90: =Q90-AP90 -> 1.91 | AR90: =Q90/AP90 -> 1.24 | AS90: 2.9 | AT90: 2.72 | AU90: 0.57 | AV90: =(AT90+AU90)/2 -> 1.65 | AW90: =U90/V90 -> 0.216 | AX90: =((AA90*10)-192.8)/103 -> 1.419 | AY90: =SUM((AE90-210.4)/70.89) -> -1.332
A91: 90 | B91: 291039 | C91: 2008-04-12 | D91: 2015-09-11T14:36:00 | E91: =(D91-C91)/365 -> 7.42 | F91: 6.0 | G91: =F91/12 -> 0.50 | H91: =SUM(E91-(F91/12)) -> 6.92 | I91: 24.2 | J91: 129.1 | K91: 0.14 | L91: 0.78 | M91: -0.38 | N91: =I91/(J91*J91/10000) -> 14.52 | O91: 2 | P91: 2015-09-01 | Q91: 10.90 | R91: -2.56 | S91: 0.34 | T91: 2.86 | U91: 2.54 | V91: 13.32 | W91: 1.04 | X91: 2.70 | Y91: 0.89 | Z91: 1.59 | AA91: 30.4 | AB91: 0.15 | AC91: 2.84 | AD91: 105 | AE91: 218 | AF91: 10 | AG91: 3.7 | AH91: 40 | AI91: 0 | AJ91: 0 | AK91: 170 | AL91: 158 | AM91: =(AK91+AL91)/2-6.5 -> 157.50 | AN91: =SUM((AM91-160.6)/5.3) -> -0.58 | AO91: =R91-AN91 -> -1.98 | AP91: =(P91-C91)/365 -> 7.39 | AQ91: =Q91-AP91 -> 3.51 | AR91: =Q91/AP91 -> 1.47 | AS91: 2.2 | AT91: 4.02 | AU91: 3.40 | AV91: =(AT91+AU91)/2 -> 3.71 | AW91: =U91/V91 -> 0.191 | AX91: =((AA91*10)-192.8)/103 -> 1.080 | AY91: =SUM((AE91-210.4)/70.89) -> 0.107
A92: 91 | B92: 291045 | C92: 2008-02-08 | D92: 2015-09-11T15:30:00 | E92: =(D92-C92)/365 -> 7.60 | F92: 12.0 | G92: =F92/12 -> 1.00 | H92: =SUM(E92-(F92/12)) -> 6.60 | I92: 27.6 | J92: 130.7 | K92: 0.88 | L92: 0.88 | M92: 0.63 | N92: =I92/(J92*J92/10000) -> 16.16 | O92: 2 | P92: 2015-09-03 | Q92: 9.80 | R92: -1.32 | S92: 0.05 | T92: 1.28 | U92: 3.03 | V92: 18.97 | W92: 0.69 | X92: 3.66 | Y92: 1.18 | Z92: 2.17 | AA92: 18.2 | AB92: 0.15 | AC92: 4.06 | AD92: 66.8 | AE92: 267 | AF92: 10 | AG92: 3.6 | AH92: 39+5 | AI92: 0 | AJ92: 0 | AK92: 162 | AL92: 153 | AM92: =(AK92+AL92)/2-6.5 -> 151.00 | AN92: =SUM((AM92-160.6)/5.3) -> -1.81 | AO92: =R92-AN92 -> 0.49 | AP92: =(P92-C92)/365 -> 7.57 | AQ92: =Q92-AP92 -> 2.23 | AR92: =Q92/AP92 -> 1.29 | AS92: 3.3 | AT92: 0.78 | AU92: 1.27 | AV92: =(AT92+AU92)/2 -> 1.02 | AW92: =U92/V92 -> 0.160 | AX92: =((AA92*10)-192.8)/103 -> -0.105 | AY92: =SUM((AE92-210.4)/70.89) -> 0.798
A93: 92 | B93: 142334 | C93: 2009-10-02 | D93: 2015-09-13T09:47:00 | E93: =(D93-C93)/365 -> 5.95 | F93: 3.0 | G93: =F93/12 -> 0.25 | H93: =SUM(E93-(F93/12)) -> 5.70 | I93: 28.4 | J93: 115.4 | K93: 2.46 | L93: -0.19 | M93: 3.28 | N93: =I93/(J93*J93/10000) -> 21.33 | O93: 3 | P93: 2015-09-12 | Q93: 7.20 | R93: -1.67 | S93: 0.51 | T93: 2.42 | U93: 3.17 | V93: 19.45 | W93: 1.09 | X93: 3.38 | Y93: 0.86 | Z93: 2.01 | AA93: 3.8 | AB93: 0.15 | AC93: 5.5 | AD93: 73.4 | AE93: 214 | AF93: 10 | AG93: 2.9 | AH93: 40 | AI93: 0 | AJ93: 0 | AK93: 161 | AL93: 162 | AM93: =(AK93+AL93)/2-6.5 -> 155.00 | AN93: =SUM((AM93-160.6)/5.3) -> -1.06 | AO93: =R93-AN93 -> -0.61 | AP93: =(P93-C93)/365 -> 5.95 | AQ93: =Q93-AP93 -> 1.25 | AR93: =Q93/AP93 -> 1.21 | AS93: 3.5 | AT93: 1.61 | AU93: 0.95 | AV93: =(AT93+AU93)/2 -> 1.28 | AW93: =U93/V93 -> 0.163 | AX93: =((AA93*10)-92.9)/72.1 -> -0.761 | AY93: =SUM((AE93-188.29)/61.99) -> 0.415
A94: 93 | B94: 291257 | C94: 2007-12-15 | D94: 2015-09-13T10:07:00 | E94: =(D94-C94)/365 -> 7.75 | F94: 13.0 | G94: =F94/12 -> 1.08 | H94: =SUM(E94-(F94/12)) -> 6.67 | I94: 28.2 | J94: 135.8 | K94: 0.90 | L94: 1.65 | M94: 0.09 | N94: =I94/(J94*J94/10000) -> 15.29 | O94: 2 | P94: 2015-09-01 | Q94: 9.70 | R94: -0.39 | S94: 0.23 | T94: 2.61 | U94: 4.70 | V94: 12.93 | W94: 0.83 | X94: 3.74 | Y94: 1.35 | Z94: 2.06 | AA94: 32.0 | AB94: 0.15 | AC94: 7.52 | AD94: 93.2 | AE94: 236 | AF94: 10 | AG94: 3.4 | AH94: 40 | AI94: 0 | AJ94: 0 | AK94: 170 | AL94: 155 | AM94: =(AK94+AL94)/2-6.5 -> 156.00 | AN94: =SUM((AM94-160.6)/5.3) -> -0.87 | AO94: =R94-AN94 -> 0.48 | AP94: =(P94-C94)/365 -> 7.72 | AQ94: =Q94-AP94 -> 1.98 | AR94: =Q94/AP94 -> 1.26 | AS94: 2.8 | AT94: 1.84 | AU94: 1.84 | AV94: =(AT94+AU94)/2 -> 1.84 | AW94: =U94/V94 -> 0.363 | AX94: =((AA94*10)-192.8)/103 -> 1.235 | AY94: =SUM((AE94-210.4)/70.89) -> 0.361
A95: 94 | B95: 291936 | C95: 2007-10-15 | D95: 2015-09-19T08:13:00 | E95: =(D95-C95)/365 -> 7.94 | F95: 3.0 | G95: =F95/12 -> 0.25 | H95: =SUM(E95-(F95/12)) -> 7.69 | I95: 22.7 | J95: 128.0 | K95: -0.66 | L95: -0.01 | M95: -0.92 | N95: =I95/(J95*J95/10000) -> 13.85 | O95: 2 | P95: 2015-09-06 | Q95: 9.10 | R95: -1.14 | S95: 0.16 | T95: 1.35 | U95: 2.68 | V95: 16.68 | W95: 1.51 | X95: 2.47 | Y95: 0.83 | Z95: 1.43 | AA95: 42.4 | AB95: 0.15 | AC95: 1.84 | AD95: 69.3 | AE95: 196 | AF95: 10 | AG95: 2.75 | AH95: 38+1 | AI95: 0 | AJ95: 0 | AK95: 170 | AL95: 169 | AM95: =(AK95+AL95)/2-6.5 -> 163.00 | AN95: =SUM((AM95-160.6)/5.3) -> 0.45 | AO95: =R95-AN95 -> -1.59 | AP95: =(P95-C95)/365 -> 7.90 | AQ95: =Q95-AP95 -> 1.20 | AR95: =Q95/AP95 -> 1.15 | AS95: 2.7 | AT95: 1.31 | AU95: 1.31 | AV95: =(AT95+AU95)/2 -> 1.31 | AW95: =U95/V95 -> 0.161 | AX95: =((AA95*10)-192.8)/103 -> 2.245 | AY95: =SUM((AE95-210.4)/70.89) -> -0.203
A96: 95 | B96: 291971 | C96: 2008-09-21 | D96: 2015-09-19T10:20:00 | E96: =(D96-C96)/365 -> 7.00 | F96: 8.0 | G96: =F96/12 -> 0.67 | H96: =SUM(E96-(F96/12)) -> 6.33 | I96: 22.4 | J96: 123.2 | K96: -0.07 | L96: 0.14 | M96: -0.17 | N96: =I96/(J96*J96/10000) -> 14.76 | O96: 2 | P96: 2015-04-05 | Q96: 8.70 | R96: -2.47 | S96: 0.06 | T96: 2.18 | U96: 1.36 | V96: 16.14 | W96: 0.81 | X96: 2.76 | Y96: 1.44 | Z96: 1.26 | AA96: 48.7 | AB96: 0.532 | AC96: 3.67 | AD96: 70.1 | AE96: 126 | AF96: 10 | AG96: 3.2 | AH96: 40 | AI96: 0 | AJ96: 0 | AK96: 168 | AL96: 165 | AM96: =(AK96+AL96)/2-6.5 -> 160.00 | AN96: =SUM((AM96-160.6)/5.3) -> -0.11 | AO96: =R96-AN96 -> -2.36 | AP96: =(P96-C96)/365 -> 6.54 | AQ96: =Q96-AP96 -> 2.16 | AR96: =Q96/AP96 -> 1.33 | AS96: 3.7 | AT96: 2.98 | AU96: 1.57 | AV96: =(AT96+AU96)/2 -> 2.28 | AW96: =U96/V96 -> 0.084 | AX96: =((AA96*10)-192.8)/103 -> 2.856 | AY96: =SUM((AE96-210.4)/70.89) -> -1.191
A97: 96 | B97: 292139 | C97: 2008-10-13 | D97: 2015-09-20T14:35:00 | E97: =(D97-C97)/365 -> 6.94 | F97: 3.0 | G97: =F97/12 -> 0.25 | H97: =SUM(E97-(F97/12)) -> 6.69 | I97: 22.8 | J97: 119.2 | K97: 0.10 | L97: -0.59 | M97: 0.66 | N97: =I97/(J97*J97/10000) -> 16.05 | O97: 2 | P97: 2015-07-05 | Q97: 8.20 | R97: -1.93 | S97: 0.23 | T97: 2.63 | U97: 4.91 | V97: 19.11 | W97: 0.95 | X97: 4.07 | Y97: 1.49 | Z97: 2.24 | AA97: 24.0 | AB97: 0.343 | AC97: 5.56 | AD97: 63.1 | AE97: 232 | AF97: 10 | AG97: 2.9 | AH97: 37 | AI97: 0 | AJ97: 0 | AK97: 172 | AL97: 158 | AM97: =(AK97+AL97)/2-6.5 -> 158.50 | AN97: =SUM((AM97-160.6)/5.3) -> -0.40 | AO97: =R97-AN97 -> -1.53 | AP97: =(P97-C97)/365 -> 6.73 | AQ97: =Q97-AP97 -> 1.47 | AR97: =Q97/AP97 -> 1.22 | AS97: 3.1 | AT97: 0.82 | AU97: 0.54 | AV97: =(AT97+AU97)/2 -> 0.68 | AW97: =U97/V97 -> 0.257 | AX97: =((AA97*10)-192.8)/103 -> 0.458 | AY97: =SUM((AE97-188.29)/61.99) -> 0.705
A98: 97 | B98: 292361 | C98: 2009-02-11 | D98: 2015-09-22T13:38:00 | E98: =(D98-C98)/365 -> 6.62 | F98: 3.0 | G98: =F98/12 -> 0.25 | H98: =SUM(E98-(F98/12)) -> 6.37 | I98: 28.4 | J98: 126.9 | K98: 1.89 | L98: 1.39 | M98: 1.57 | N98: =I98/(J98*J98/10000) -> 17.64 | O98: 3 | P98: 2015-09-21 | Q98: 7.50 | R98: 0.26 | S98: 0.12 | T98: 1.15 | U98: 1.79 | V98: 13.37 | W98: 0.96 | X98: 4.05 | Y98: 1.49 | Z98: 2.20 | AA98: 55.4 | AB98: 0.346 | AC98: 7.42 | AD98: 51 | AE98: 267 | AF98: 10 | AG98: 2.85 | AH98: 40 | AI98: 0 | AJ98: 0 | AK98: 179 | AL98: 158 | AM98: =(AK98+AL98)/2-6.5 -> 162.00 | AN98: =SUM((AM98-160.6)/5.3) -> 0.26 | AO98: =R98-AN98 -> -0.00 | AP98: =(P98-C98)/365 -> 6.61 | AQ98: =Q98-AP98 -> 0.89 | AR98: =Q98/AP98 -> 1.13 | AS98: 2.4 | AT98: 2.47 | AU98: 3.42 | AV98: =(AT98+AU98)/2 -> 2.94 | AW98: =U98/V98 -> 0.134 | AX98: =((AA98*10)-192.8)/103 -> 3.507 | AY98: =SUM((AE98-188.29)/61.99) -> 1.270
A99: 98 | B99: 292479 | C99: 2007-11-17 | D99: 2015-09-23T13:37:00 | E99: =(D99-C99)/365 -> 7.86 | F99: 3.0 | G99: =F99/12 -> 0.25 | H99: =SUM(E99-(F99/12)) -> 7.61 | I99: 36.2 | J99: 131.3 | K99: 2.33 | L99: 0.69 | M99: 2.62 | N99: =I99/(J99*J99/10000) -> 21.00 | O99: 2 | P99: 2015-09-20 | Q99: 7.80 | R99: 0.75 | S99: 0.30 | T99: 4.07 | U99: 3.26 | V99: 8.31 | W99: 1.40 | X99: 3.79 | Y99: 1.12 | Z99: 2.18 | AA99: 66.8 | AB99: 0.517 | AC99: 11.1 | AD99: 28.1 | AE99: 330 | AF99: 10 | AG99: 3 | AH99: 38+ | AI99: 0 | AJ99: 0 | AK99: 158 | AL99: 158 | AM99: =(AK99+AL99)/2-6.5 -> 151.50 | AN99: =SUM((AM99-160.6)/5.3) -> -1.72 | AO99: =R99-AN99 -> 2.47 | AP99: =(P99-C99)/365 -> 7.85 | AQ99: =Q99-AP99 -> -0.05 | AR99: =Q99/AP99 -> 0.99 | AS99: 3.9 | AT99: 1.11 | AU99: 0.57 | AV99: =(AT99+AU99)/2 -> 0.84 | AW99: =U99/V99 -> 0.392 | AX99: =((AA99*10)-192.8)/103 -> 4.614 | AY99: =SUM((AE99-210.4)/70.89) -> 1.687
A100: 99 | B100: 292679 | C100: 2007-06-14 | D100: 2015-09-25T14:16:00 | E100: =(D100-C100)/365 -> 8.29 | F100: 12.0 | G100: =F100/12 -> 1.00 | H100: =SUM(E100-(F100/12)) -> 7.29 | I100: 37.0 | J100: 137.5 | K100: 2.10 | L100: 1.34 | M100: 2.00 | N100: =I100/(J100*J100/10000) -> 19.57 | O100: 3 | P100: 2015-09-12 | Q100: 9.30 | R100: 0.29 | S100: 0.21 | T100: 1.06 | U100: 0.47 | V100: 4.61 | W100: 0.80 | X100: 2.38 | Y100: 1.05 | Z100: 1.11 | AA100: 44.8 | AB100: 0.682 | AC100: 6.66 | AD100: 21.7 | AE100: 212 | AF100: 25 | AG100: 3.2 | AH100: 42+2 | AI100: 0 | AJ100: 0 | AK100: 162 | AL100: 164 | AM100: =(AK100+AL100)/2-6.5 -> 156.50 | AN100: =SUM((AM100-160.6)/5.3) -> -0.77 | AO100: =R100-AN100 -> 1.06 | AP100: =(P100-C100)/365 -> 8.25 | AQ100: =Q100-AP100 -> 1.05 | AR100: =Q100/AP100 -> 1.13 | AS100: 3.1 | AT100: 1.84 | AU100: 0.40 | AV100: =(AT100+AU100)/2 -> 1.12 | AW100: =U100/V100 -> 0.102 | AX100: =((AA100*10)-240.4)/164.6 -> 1.259 | AY100: =SUM((AE100-261.66)/75.79) -> -0.655
A101: 100 | B101: 292694 | C101: 2008-09-24 | D101: 2015-09-25T16:42:00 | E101: =(D101-C101)/365 -> 7.01 | F101: 3.0 | G101: =F101/12 -> 0.25 | H101: =SUM(E101-(F101/12)) -> 6.76 | I101: 24.0 | J101: 124.0 | K101: 0.41 | L101: 0.29 | M101: 0.39 | N101: =I101/(J101*J101/10000) -> 15.61 | O101: 2 | P101: 2015-09-16 | Q101: 9.00 | R101: -1.75 | S101: 0.57 | T101: 1.99 | U101: 4.17 | V101: 23.61 | W101: 0.57 | X101: 4.38 | Y101: 1.48 | Z101: 2.27 | AA101: 20.1 | AB101: 0.15 | AC101: 7.1 | AD101: 70.1 | AE101: 162 | AF101: 10 | AG101: 3.7 | AH101: 40 | AI101: 0 | AJ101: 0 | AK101: 172 | AL101: 160 | AM101: =(AK101+AL101)/2-6.5 -> 159.50 | AN101: =SUM((AM101-160.6)/5.3) -> -0.21 | AO101: =R101-AN101 -> -1.54 | AP101: =(P101-C101)/365 -> 6.98 | AQ101: =Q101-AP101 -> 2.02 | AR101: =Q101/AP101 -> 1.29 | AS101: 2.9 | AT101: 0.65 | AU101: 1.16 | AV101: =(AT101+AU101)/2 -> 0.90 | AW101: =U101/V101 -> 0.177 | AX101: =((AA101*10)-192.8)/103 -> 0.080 | AY101: =SUM((AE101-210.4)/70.89) -> -0.683
A102: 101 | B102: 189781 | C102: 2008-11-27 | D102: 2015-09-26T10:07:00 | E102: =(D102-C102)/365 -> 6.83 | F102: 3.0 | G102: =F102/12 -> 0.25 | H102: =SUM(E102-(F102/12)) -> 6.58 | I102: 22.8 | J102: 126.8 | K102: 0.19 | L102: 1.07 | M102: -0.59 | N102: =I102/(J102*J102/10000) -> 14.18 | O102: 2 | P102: 2015-09-12 | Q102: 9.60 | R102: -1.78 | S102: 0.10 | T102: 2.74 | U102: 3.07 | V102: 17.21 | W102: 0.75 | X102: 4.19 | Y102: 1.89 | Z102: 1.83 | AA102: 35.3 | AB102: 0.15 | AC102: 3.04 | AD102: 51.6 | AE102: 180 | AF102: 10 | AG102: 3.8 | AH102: 40 | AI102: 0 | AJ102: 0 | AO102: =R102-AN102 -> -1.78 | AP102: =(P102-C102)/365 -> 6.79 | AQ102: =Q102-AP102 -> 2.81 | AR102: =Q102/AP102 -> 1.41 | AS102: 2.9 | AT102: 1.32 | AU102: 1.51 | AV102: =(AT102+AU102)/2 -> 1.42 | AW102: =U102/V102 -> 0.178 | AX102: =((AA102*10)-192.8)/103 -> 1.555 | AY102: =SUM((AE102-188.29)/61.99) -> -0.134
A103: 102 | B103: 293249 | C103: 2009-03-23 | D103: 2015-09-30T15:34:00 | E103: =(D103-C103)/365 -> 6.53 | F103: 3.0 | G103: =F103/12 -> 0.25 | H103: =SUM(E103-(F103/12)) -> 6.28 | I103: 29.0 | J103: 125.1 | K103: 2.11 | L103: 1.14 | M103: 2.01 | N103: =I103/(J103*J103/10000) -> 18.53 | O103: 2 | P103: 2015-09-26 | Q103: 9.90 | R103: -2.32 | S103: 0.07 | T103: 0.67 | U103: 1.26 | V103: 12.36 | W103: 0.64 | X103: 3.10 | Y103: 1.15 | Z103: 1.59 | AA103: 34.5 | AB103: 0.15 | AC103: 9.5 | AD103: 32.8 | AE103: 238 | AF103: 10 | AG103: 2.95 | AH103: 39+ | AI103: 0 | AJ103: 0 | AK103: 170 | AL103: 154 | AM103: =(AK103+AL103)/2-6.5 -> 155.50 | AN103: =SUM((AM103-160.6)/5.3) -> -0.96 | AO103: =R103-AN103 -> -1.36 | AP103: =(P103-C103)/365 -> 6.52 | AQ103: =Q103-AP103 -> 3.38 | AR103: =Q103/AP103 -> 1.52 | AS103: 3.6 | AT103: 1.06 | AU103: 1.06 | AV103: =(AT103+AU103)/2 -> 1.06 | AW103: =U103/V103 -> 0.102 | AX103: =((AA103*10)-192.8)/103 -> 1.478 | AY103: =SUM((AE103-188.29)/61.99) -> 0.802
A104: 103 | B104: 293256 | C104: 2008-05-30 | D104: 2015-09-30T16:00:00 | E104: =(D104-C104)/365 -> 7.34 | F104: 13.0 | G104: =F104/12 -> 1.08 | H104: =E104-(F104/12) -> 6.26 | I104: 27.2 | J104: 130.1 | K104: 0.98 | L104: 1.07 | M104: 0.62 | N104: =I104/(J104*J104/10000) -> 16.07 | O104: 2 | P104: 2015-07-08 | Q104: 9.50 | R104: -1.14 | S104: 1.10 | T104: 9.39 | U104: 4.45 | V104: 12.79 | W104: 0.87 | X104: 3.81 | Y104: 1.26 | Z104: 2.01 | AA104: 33.4 | AB104: 0.35 | AC104: 15.41 | AD104: 64.3 | AE104: 322 | AF104: 69 | AG104: 3 | AH104: 40 | AI104: 0 | AJ104: 0 | AK104: 170 | AL104: 150 | AM104: =(AK104+AL104)/2-6.5 -> 153.50 | AN104: =SUM((AM104-160.6)/5.3) -> -1.34 | AO104: =R104-AN104 -> 0.20 | AP104: =(P104-C104)/365 -> 7.11 | AQ104: =Q104-AP104 -> 2.39 | AR104: =Q104/AP104 -> 1.34 | AS104: 3.3 | AT104: 0.69 | AU104: 0.73 | AV104: =(AT104+AU104)/2 -> 0.71 | AW104: =U104/V104 -> 0.348 | AX104: =((AA104*10)-192.8)/103 -> 1.371 | AY104: =SUM((AE104-210.4)/70.89) -> 1.574
A105: 104 | B105: 293313 | C105: 2007-08-02 | D105: 2015-10-01T13:03:00 | E105: =(D105-C105)/365 -> 8.17 | F105: 3.0 | G105: =F105/12 -> 0.25 | H105: =SUM(E105-(F105/12)) -> 7.92 | I105: 27.2 | J105: 127.0 | K105: 0.36 | L105: -0.44 | M105: 0.88 | N105: =I105/(J105*J105/10000) -> 16.86 | O105: 2 | P105: 2015-09-05 | Q105: 9.50 | R105: -1.66 | S105: 0.75 | T105: 3.95 | U105: 2.81 | V105: 12.44 | W105: 0.51 | X105: 4.21 | Y105: 1.55 | Z105: 2.45 | AA105: 100.4 | AB105: 0.56 | AC105: 6.73 | AD105: 58.3 | AE105: 197 | AF105: 10 | AG105: 2.9 | AH105: 40 | AI105: 0 | AJ105: 0 | AK105: 164 | AL105: 162 | AM105: =(AK105+AL105)/2-6.5 -> 156.50 | AN105: =SUM((AM105-160.6)/5.3) -> -0.77 | AO105: =R105-AN105 -> -0.89 | AP105: =(P105-C105)/365 -> 8.10 | AQ105: =Q105-AP105 -> 1.40 | AR105: =Q105/AP105 -> 1.17 | AS105: 4.0 | AT105: 2.10 | AU105: 1.38 | AV105: =(AT105+AU105)/2 -> 1.74 | AW105: =U105/V105 -> 0.226 | AX105: =((AA105*10)-240.4)/164.6 -> 4.639 | AY105: =SUM((AE105-261.66)/75.79) -> -0.853
A106: 105 | B106: 293372 | C106: 2008-06-13 | D106: 2015-10-02T09:13:00 | E106: =(D106-C106)/365 -> 7.31 | F106: 3.0 | G106: =F106/12 -> 0.25 | H106: =SUM(E106-(F106/12)) -> 7.06 | I106: 23.3 | J106: 126.8 | K106: -0.03 | L106: 0.47 | M106: -0.39 | N106: =I106/(J106*J106/10000) -> 14.49 | O106: 2 | P106: 2015-09-19 | Q106: 10.00 | R106: -2.13 | S106: 0.14 | T106: 2.49 | U106: 4.02 | V106: 15.79 | W106: 0.67 | X106: 4.58 | Y106: 1.37 | Z106: 2.56 | AA106: 15.1 | AB106: 0.15 | AC106: 2.43 | AD106: 87.1 | AE106: 87.1 | AF106: 10 | AG106: 3.51 | AH106: 40 | AI106: 0 | AJ106: 0 | AK106: 173 | AL106: 158 | AM106: =(AK106+AL106)/2-6.5 -> 159.00 | AN106: =SUM((AM106-160.6)/5.3) -> -0.30 | AO106: =R106-AN106 -> -1.83 | AP106: =(P106-C106)/365 -> 7.27 | AQ106: =Q106-AP106 -> 2.73 | AR106: =Q106/AP106 -> 1.38 | AS106: 3.5 | AT106: 0.12 | AU106: 1.13 | AV106: =(AT106+AU106)/2 -> 0.63 | AW106: =U106/V106 -> 0.255 | AX106: =((AA106*10)-192.8)/103 -> -0.406 | AY106: =SUM((AE106-210.4)/70.89) -> -1.739
A107: 106 | B107: 293383 | C107: 2008-03-07 | D107: 2015-10-02T09:47:00 | E107: =(D107-C107)/365 -> 7.58 | F107: 5.0 | G107: =F107/12 -> 0.42 | H107: =SUM(E107-(F107/12)) -> 7.16 | I107: 22.7 | J107: 130.9 | K107: -0.41 | L107: 0.94 | M107: -1.37 | N107: =I107/(J107*J107/10000) -> 13.25 | O107: 2 | P107: 2015-09-17 | Q107: 9.00 | R107: -0.55 | S107: 0.30 | T107: 2.27 | U107: 3.26 | V107: 14.45 | W107: 1.32 | X107: 3.97 | Y107: 1.35 | Z107: 2.06 | AA107: 26.0 | AB107: 0.15 | AC107: 11.78 | AD107: 94.5 | AE107: 302 | AF107: 10 | AG107: 4.2 | AH107: 39+ | AI107: 0 | AJ107: 0 | AK107: 171 | AL107: 165 | AM107: =(AK107+AL107)/2-6.5 -> 161.50 | AN107: =SUM((AM107-160.6)/5.3) -> 0.17 | AO107: =R107-AN107 -> -0.72 | AP107: =(P107-C107)/365 -> 7.53 | AQ107: =Q107-AP107 -> 1.47 | AR107: =Q107/AP107 -> 1.19 | AS107: 3.6 | AT107: 0.78 | AU107: 1.26 | AV107: =(AT107+AU107)/2 -> 1.02 | AW107: =U107/V107 -> 0.226 | AX107: =((AA107*10)-192.8)/103 -> 0.652 | AY107: =SUM((AE107-210.4)/70.89) -> 1.292
A108: 107 | B108: 293410 | C108: 2007-12-02 | D108: 2015-10-02T12:44:00 | E108: =(D108-C108)/365 -> 7.84 | F108: 5.0 | G108: =F108/12 -> 0.42 | H108: =SUM(E108-(F108/12)) -> 7.42 | I108: 30.7 | J108: 124.8 | K108: 1.36 | L108: -0.51 | M108: 2.18 | N108: =I108/(J108*J108/10000) -> 19.71 | O108: 2 | P108: 2015-08-28 | Q108: 10.00 | R108: -2.45 | S108: 1.02 | T108: 2.09 | U108: 3.98 | V108: 17.47 | W108: 0.84 | X108: 4.14 | Y108: 1.38 | Z108: 2.18 | AA108: 18.9 | AB108: 0.15 | AC108: 14.6 | AD108: 42.5 | AE108: 321 | AF108: 10 | AG108: 3.8 | AH108: 40+ | AI108: 0 | AJ108: 0 | AK108: 172 | AL108: 157 | AM108: =(AK108+AL108)/2-6.5 -> 158.00 | AN108: =SUM((AM108-160.6)/5.3) -> -0.49 | AO108: =R108-AN108 -> -1.96 | AP108: =(P108-C108)/365 -> 7.74 | AQ108: =Q108-AP108 -> 2.26 | AR108: =Q108/AP108 -> 1.29 | AS108: 3.3 | AT108: 2.19 | AU108: 3.10 | AV108: =(AT108+AU108)/2 -> 2.64 | AW108: =U108/V108 -> 0.228 | AX108: =((AA108*10)-192.8)/103 -> -0.037 | AY108: =SUM((AE108-210.4)/70.89) -> 1.560
A109: 108 | B109: 93181 | C109: 2007-10-30 | D109: 2015-10-03T09:22:00 | E109: =(D109-C109)/365 -> 7.93 | F109: 6.0 | G109: =F109/12 -> 0.50 | H109: =SUM(E109-(F109/12)) -> 7.43 | I109: 27.4 | J109: 135.0 | K109: 0.58 | L109: 1.29 | M109: -0.10 | N109: =I109/(J109*J109/10000) -> 15.03 | O109: 2 | P109: 2015-09-20 | Q109: 9.00 | R109: 0.16 | S109: 0.32 | T109: 2.22 | U109: 1.72 | V109: 9.51 | W109: 0.54 | X109: 3.47 | Y109: 1.48 | Z109: 1.64 | AA109: 22.6 | AB109: 0.404 | AC109: 9.07 | AD109: 76.2 | AE109: 249 | AF109: 10 | AG109: 4.25 | AH109: 39 | AI109: 0 | AJ109: 0 | AK109: 176 | AL109: 165 | AM109: =(AK109+AL109)/2-6.5 -> 164.00 | AN109: =SUM((AM109-160.6)/5.3) -> 0.64 | AO109: =R109-AN109 -> -0.48 | AP109: =(P109-C109)/365 -> 7.90 | AQ109: =Q109-AP109 -> 1.10 | AR109: =Q109/AP109 -> 1.14 | AS109: 3.5 | AT109: 1.84 | AU109: 4.49 | AV109: =(AT109+AU109)/2 -> 3.16 | AW109: =U109/V109 -> 0.181 | AX109: =((AA109*10)-192.8)/103 -> 0.322 | AY109: =SUM((AE109-210.4)/70.89) -> 0.545
A110: 109 | B110: 293529 | C110: 2008-04-09 | D110: 2015-10-04T09:55:00 | E110: =(D110-C110)/365 -> 7.49 | F110: 36.0 | G110: =F110/12 -> 3.00 | H110: =SUM(E110-(F110/12)) -> 4.49 | I110: 36.8 | J110: 134.1 | K110: 2.73 | L110: 1.64 | M110: 2.54 | N110: =I110/(J110*J110/10000) -> 20.46 | O110: 3 | P110: 2015-09-27 | Q110: 10.90 | R110: -1.79 | S110: 0.06 | T110: 0.64 | U110: 3.99 | V110: 10.27 | W110: 0.94 | X110: 3.20 | Y110: 1.12 | Z110: 1.66 | AB110: 0.15 | AC110: 8.08 | AD110: 35 | AE110: 282 | AF110: 10 | AG110: 3.4 | AH110: 39+ | AI110: 0 | AJ110: 0 | AK110: 170 | AL110: 160 | AM110: =(AK110+AL110)/2-6.5 -> 158.50 | AN110: =SUM((AM110-160.6)/5.3) -> -0.40 | AO110: =R110-AN110 -> -1.39 | AP110: =(P110-C110)/365 -> 7.47 | AQ110: =Q110-AP110 -> 3.43 | AR110: =Q110/AP110 -> 1.46 | AS110: 3.7 | AT110: 2.19 | AU110: 1.61 | AV110: =(AT110+AU110)/2 -> 1.90 | AW110: =U110/V110 -> 0.389 | AY110: =SUM((AE110-210.4)/70.89) -> 1.010
A111: 110 | B111: 293559 | C111: 2008-07-01 | D111: 2015-10-04T13:31:00 | E111: =(D111-C111)/365 -> 7.26 | F111: 3.0 | G111: =F111/12 -> 0.25 | H111: =E111-(F111/12) -> 7.01 | I111: 24.0 | J111: 122.1 | K111: 0.20 | L111: -0.40 | M111: 0.65 | N111: =I111/(J111*J111/10000) -> 16.10 | O111: 2 | P111: 2015-09-02 | Q111: 8.10 | R111: -1.29 | S111: 0.77 | T111: 6.52 | U111: 4.11 | V111: 11.58 | W111: 0.90 | X111: 4.30 | Y111: 1.35 | Z111: 2.31 | AA111: 17.8 | AB111: 0.15 | AC111: 4.37 | AD111: 139.7 | AE111: 217 | AF111: 42 | AG111: 3.2 | AH111: 40 | AI111: 0 | AJ111: 0 | AK111: 172 | AL111: 152 | AM111: =(AK111+AL111)/2-6.5 -> 155.50 | AO111: =R111-AN111 -> -1.29 | AP111: =(P111-C111)/365 -> 7.18 | AQ111: =Q111-AP111 -> 0.92 | AR111: =Q111/AP111 -> 1.13 | AS111: 3.8 | AT111: 1.32 | AU111: 1.38 | AV111: =(AT111+AU111)/2 -> 1.35 | AW111: =U111/V111 -> 0.355 | AX111: =((AA111*10)-192.8)/103 -> -0.144 | AY111: =SUM((AE111-210.4)/70.89) -> 0.093
A112: 111 | B112: 110152 | C112: 2007-08-20 | D112: 2015-10-05T14:39:00 | E112: =(D112-C112)/365 -> 8.13 | F112: 3.0 | G112: =F112/12 -> 0.25 | H112: =SUM(E112-(F112/12)) -> 7.88 | I112: 30.4 | J112: 137.0 | K112: 1.08 | L112: 1.43 | M112: 0.55 | N112: =I112/(J112*J112/10000) -> 16.20 | O112: 2 | P112: 2015-09-21 | Q112: 10.00 | R112: -0.49 | S112: 0.19 | T112: 3.05 | U112: 2.64 | V112: 13.54 | W112: 0.94 | X112: 4.34 | Y112: 1.10 | Z112: 2.55 | AA112: 12.6 | AB112: 0.15 | AC112: 6.53 | AD112: 45.5 | AE112: 191 | AF112: 10 | AG112: 3.7 | AH112: 40+ | AI112: 0 | AJ112: 0 | AK112: 173 | AL112: 160 | AM112: =(AK112+AL112)/2-6.5 -> 160.00 | AN112: =SUM((AM112-160.6)/5.3) -> -0.11 | AO112: =R112-AN112 -> -0.38 | AP112: =(P112-C112)/365 -> 8.09 | AQ112: =Q112-AP112 -> 1.91 | AR112: =Q112/AP112 -> 1.24 | AS112: 2.7 | AT112: 1.07 | AU112: 0.90 | AV112: =(AT112+AU112)/2 -> 0.98 | AW112: =U112/V112 -> 0.195 | AX112: =((AA112*10)-240.4)/164.6 -> -0.695 | AY112: =SUM((AE112-261.66)/75.79) -> -0.932
A113: 112 | B113: 293733 | C113: 2008-08-26 | D113: 2015-10-06T10:08:00 | E113: =(D113-C113)/365 -> 7.12 | F113: 3.0 | G113: =F113/12 -> 0.25 | H113: =SUM(E113-(F113/12)) -> 6.87 | I113: 18.7 | J113: 118.0 | K113: -1.49 | L113: -1.04 | M113: -1.21 | N113: =I113/(J113*J113/10000) -> 13.43 | O113: 2 | P113: 2015-10-01 | Q113: 9.10 | R113: -2.89 | S113: 0.24 | T113: 2.58 | U113: 3.29 | V113: 15.29 | W113: 1.60 | X113: 4.50 | Y113: 1.33 | Z113: 2.15 | AA113: 11.2 | AB113: 0.15 | AC113: 0.23 | AD113: 79 | AE113: 155 | AF113: 10 | AG113: 2.75 | AH113: 38 | AI113: 0 | AJ113: 0 | AK113: 165 | AL113: 150 | AM113: =(AK113+AL113)/2-6.5 -> 151.00 | AN113: =SUM((AM113-160.6)/5.3) -> -1.81 | AO113: =R113-AN113 -> -1.08 | AP113: =(P113-C113)/365 -> 7.10 | AQ113: =Q113-AP113 -> 2.00 | AR113: =Q113/AP113 -> 1.28 | AS113: 3.3 | AT113: 0.78 | AU113: 1.11 | AV113: =(AT113+AU113)/2 -> 0.94 | AW113: =U113/V113 -> 0.215 | AX113: =((AA113*10)-192.8)/103 -> -0.784 | AY113: =SUM((AE113-210.4)/70.89) -> -0.781
A114: 113 | B114: 293768 | C114: 2007-09-20 | D114: 2015-10-06T14:29:00 | E114: =(D114-C114)/365 -> 8.05 | F114: 3.0 | G114: =F114/12 -> 0.25 | H114: =SUM(E114-(F114/12)) -> 7.80 | I114: 27.0 | J114: 131.7 | K114: 0.40 | L114: 0.55 | M114: 0.21 | N114: =I114/(J114*J114/10000) -> 15.57 | O114: 2 | P114: 2015-07-04 | Q114: 8.40 | R114: 0.18 | S114: 0.25 | T114: 6.03 | U114: 4.19 | V114: 22.72 | W114: 0.88 | X114: 3.33 | Y114: 1.15 | Z114: 1.84 | AA114: 67.1 | AB114: 0.15 | AC114: 11.26 | AD114: 89.9 | AE114: 256 | AF114: 10 | AG114: 2.95 | AH114: 38+ | AI114: 0 | AJ114: 0 | AK114: 171 | AL114: 164.5 | AM114: =(AK114+AL114)/2-6.5 -> 161.25 | AN114: =SUM((AM114-160.6)/5.3) -> 0.12 | AO114: =R114-AN114 -> 0.06 | AP114: =(P114-C114)/365 -> 7.79 | AQ114: =Q114-AP114 -> 0.61 | AR114: =Q114/AP114 -> 1.08 | AS114: 3.5 | AT114: 1.61 | AU114: 0.73 | AV114: =(AT114+AU114)/2 -> 1.17 | AW114: =U114/V114 -> 0.184 | AX114: =((AA114*10)-240.4)/164.6 -> 2.616 | AY114: =SUM((AE114-261.66)/75.79) -> -0.075
A115: 114 | B115: 294895 | C115: 2008-06-13 | D115: 2015-10-16T14:46:00 | E115: =(D115-C115)/365 -> 7.35 | F115: 3.0 | G115: =F115/12 -> 0.25 | H115: =SUM(E115-(F115/12)) -> 7.10 | I115: 22.0 | J115: 128.0 | K115: -0.47 | L115: 0.66 | M115: -1.21 | N115: =I115/(J115*J115/10000) -> 13.43 | O115: 2 | P115: 2015-09-27 | Q115: 9.80 | R115: -1.76 | S115: 0.27 | T115: 1.79 | U115: 2.77 | V115: 17.80 | W115: 0.91 | X115: 3.41 | Y115: 0.93 | Z115: 1.93 | AA115: 65.8 | AB115: 0.3 | AC115: 4.75 | AD115: 78.7 | AE115: 98 | AF115: 10 | AG115: 4.3 | AH115: 41+ | AI115: 0 | AJ115: 0 | AK115: 170 | AL115: 163 | AM115: =(AK115+AL115)/2-6.5 -> 160.00 | AN115: =SUM((AM115-160.6)/5.3) -> -0.11 | AO115: =R115-AN115 -> -1.65 | AP115: =(P115-C115)/365 -> 7.29 | AQ115: =Q115-AP115 -> 2.51 | AR115: =Q115/AP115 -> 1.34 | AS115: 3.1 | AT115: 2.21 | AU115: 1.42 | AV115: =(AT115+AU115)/2 -> 1.82 | AW115: =U115/V115 -> 0.156 | AX115: =((AA115*10)-192.8)/103 -> 4.517 | AY115: =SUM((AE115-210.4)/70.89) -> -1.586
A116: 115 | B116: 294942 | C116: 2007-12-14 | D116: 2015-10-17T09:02:00 | E116: =(D116-C116)/365 -> 7.85 | F116: 3.0 | G116: =F116/12 -> 0.25 | H116: =SUM(E116-(F116/12)) -> 7.60 | I116: 27.3 | J116: 129.5 | K116: 0.62 | L116: 0.37 | M116: 0.65 | N116: =I116/(J116*J116/10000) -> 16.28 | O116: 2 | P116: 2015-10-12 | Q116: 9.60 | R116: -1.33 | S116: 0.24 | T116: 5.32 | U116: 4.82 | V116: 18.85 | W116: 0.98 | X116: 5.01 | Y116: 1.57 | Z116: 2.86 | AA116: 18.2 | AB116: 0.15 | AC116: 5.77 | AD116: 61.6 | AE116: 185 | AF116: 10 | AG116: 3.4 | AH116: 40 | AI116: 0 | AJ116: 0 | AK116: 168 | AL116: 158 | AM116: =(AK116+AL116)/2-6.5 -> 156.50 | AN116: =SUM((AM116-160.6)/5.3) -> -0.77 | AO116: =R116-AN116 -> -0.56 | AP116: =(P116-C116)/365 -> 7.83 | AQ116: =Q116-AP116 -> 1.77 | AR116: =Q116/AP116 -> 1.23 | AS116: 3.5 | AT116: 1.11 | AU116: 1.11 | AV116: =(AT116+AU116)/2 -> 1.11 | AW116: =U116/V116 -> 0.256 | AX116: =((AA116*10)-192.8)/103 -> -0.105 | AY116: =SUM((AE116-210.4)/70.89) -> -0.358
A117: 116 | B117: 295225 | C117: 2008-08-02 | D117: 2015-10-19T11:59:00 | E117: =(D117-C117)/365 -> 7.22 | F117: 4.0 | G117: =F117/12 -> 0.33 | H117: =SUM(E117-(F117/12)) -> 6.88 | I117: 29.8 | J117: 129.7 | K117: 1.68 | L117: 1.15 | M117: 1.50 | N117: =I117/(J117*J117/10000) -> 17.71 | O117: 2 | P117: 2015-10-02 | Q117: 9.80 | R117: -1.48 | S117: 0.12 | T117: 1.69 | U117: 3.91 | V117: 14.40 | W117: 0.60 | X117: 3.39 | Y117: 1.34 | Z117: 1.73 | AA117: 23.3 | AB117: 0.15 | AC117: 2.3 | AD117: 80.7 | AE117: 130 | AF117: 29 | AG117: 3.3 | AH117: 40+6 | AI117: 0 | AJ117: 0 | AK117: 168 | AL117: 148 | AM117: =(AK117+AL117)/2-6.5 -> 151.50 | AN117: =SUM((AM117-160.6)/5.3) -> -1.72 | AO117: =R117-AN117 -> 0.24 | AP117: =(P117-C117)/365 -> 7.17 | AQ117: =Q117-AP117 -> 2.63 | AR117: =Q117/AP117 -> 1.37 | AS117: 3.3 | AT117: 0.60 | AU117: 1.06 | AV117: =(AT117+AU117)/2 -> 0.83 | AW117: =U117/V117 -> 0.272 | AX117: =((AA117*10)-192.8)/103 -> 0.390 | AY117: =SUM((AE117-210.4)/70.89) -> -1.134
A118: 117 | B118: 295788 | C118: 2007-09-06 | D118: 2015-10-24T14:40:00 | E118: =(D118-C118)/365 -> 8.14 | F118: 7.0 | G118: =F118/12 -> 0.58 | H118: =SUM(E118-(F118/12)) -> 7.56 | I118: 27.9 | J118: 136.0 | K118: 0.54 | L118: 1.24 | M118: -0.11 | N118: =I118/(J118*J118/10000) -> 15.08 | O118: 2 | P118: 2015-07-14 | Q118: 8.60 | R118: 0.74 | S118: 0.53 | T118: 3.48 | U118: 2.91 | V118: 9.97 | W118: 0.82 | X118: 2.86 | Y118: 0.83 | Z118: 1.68 | AA118: 38.1 | AB118: 0.458 | AC118: 4.47 | AD118: 48.3 | AE118: 248 | AF118: 30 | AG118: 3.3 | AH118: 40 | AI118: 0 | AJ118: 0 | AK118: 170 | AL118: 156 | AM118: =(AK118+AL118)/2-6.5 -> 156.50 | AN118: =SUM((AM118-160.6)/5.3) -> -0.77 | AO118: =R118-AN118 -> 1.51 | AP118: =(P118-C118)/365 -> 7.86 | AQ118: =Q118-AP118 -> 0.74 | AR118: =Q118/AP118 -> 1.09 | AS118: 4.0 | AT118: 3.16 | AU118: 3.07 | AV118: =(AT118+AU118)/2 -> 3.12 | AW118: =U118/V118 -> 0.292 | AX118: =((AA118*10)-240.4)/164.6 -> 0.854 | AY118: =SUM((AE118-261.66)/75.79) -> -0.180
A119: 118 | B119: 295816 | C119: 2008-04-11 | D119: 2015-10-25T09:09:00 | E119: =(D119-C119)/365 -> 7.54 | F119: 8.0 | G119: =F119/12 -> 0.67 | H119: =SUM(E119-(F119/12)) -> 6.88 | I119: 36.4 | J119: 131.6 | K119: 2.62 | L119: 1.11 | M119: 2.72 | N119: =I119/(J119*J119/10000) -> 21.02 | O119: 2 | P119: 2015-10-18 | Q119: 10.40 | R119: -1.71 | S119: 0.14 | T119: 2.85 | U119: 4.54 | V119: 12.14 | W119: 1.09 | X119: 5.59 | Y119: 0.98 | Z119: 3.66 | AA119: 44.2 | AB119: 0.345 | AC119: 33.25 | AD119: 25.1 | AE119: 249 | AF119: 20 | AG119: 3.4 | AH119: 40 | AI119: 0 | AJ119: 0 | AK119: 168 | AL119: 157 | AM119: =(AK119+AL119)/2-6.5 -> 156.00 | AN119: =SUM((AM119-160.6)/5.3) -> -0.87 | AO119: =R119-AN119 -> -0.84 | AP119: =(P119-C119)/365 -> 7.52 | AQ119: =Q119-AP119 -> 2.88 | AR119: =Q119/AP119 -> 1.38 | AS119: 3.8 | AT119: 1.46 | AU119: 1.24 | AV119: =(AT119+AU119)/2 -> 1.35 | AW119: =U119/V119 -> 0.374 | AX119: =((AA119*10)-192.8)/103 -> 2.419 | AY119: =SUM((AE119-210.4)/70.89) -> 0.545
A120: 119 | B120: 295853 | C120: 2007-07-23 | D120: 2015-10-25T11:06:00 | E120: =(D120-C120)/365 -> 8.26 | F120: 12.0 | G120: =F120/12 -> 1.00 | H120: =SUM(E120-(F120/12)) -> 7.26 | I120: 36.8 | J120: 135.6 | K120: 2.09 | L120: 1.03 | M120: 2.16 | N120: =I120/(J120*J120/10000) -> 20.01 | O120: 3 | P120: 2015-10-21 | Q120: 10.20 | R120: -0.90 | S120: 0.33 | T120: 1.60 | U120: 1.51 | V120: 9.86 | W120: 0.74 | X120: 4.45 | Y120: 1.70 | Z120: 2.32 | AA120: 41.4 | AB120: 0.15 | AC120: 8.37 | AD120: 53.8 | AE120: 310 | AF120: 21 | AG120: 3.8 | AH120: 39 | AI120: 0 | AJ120: 0 | AK120: 177 | AL120: 161 | AM120: =(AK120+AL120)/2-6.5 -> 162.50 | AN120: =SUM((AM120-160.6)/5.3) -> 0.36 | AO120: =R120-AN120 -> -1.26 | AP120: =(P120-C120)/365 -> 8.25 | AQ120: =Q120-AP120 -> 1.95 | AR120: =Q120/AP120 -> 1.24 | AS120: 3.3 | AT120: 0.73 | AU120: 0.25 | AV120: =(AT120+AU120)/2 -> 0.49 | AW120: =U120/V120 -> 0.153 | AX120: =((AA120*10)-240.4)/164.6 -> 1.055 | AY120: =SUM((AE120-261.66)/75.79) -> 0.638
A121: 120 | B121: 296035 | C121: 2008-04-16 | D121: 2015-10-27T08:38:00 | E121: =(D121-C121)/365 -> 7.54 | F121: 3.0 | G121: =F121/12 -> 0.25 | H121: =SUM(E121-(F121/12)) -> 7.29 | I121: 25.7 | J121: 127.0 | K121: 0.46 | L121: 0.24 | M121: 0.51 | N121: =I121/(J121*J121/10000) -> 15.93 | O121: 2 | P121: 2015-10-20 | Q121: 10.40 | R121: -2.43 | S121: 0.11 | T121: 2.46 | U121: 3.51 | V121: 16.59 | W121: 0.61 | X121: 3.53 | Y121: 1.46 | Z121: 1.91 | AA121: 76.6 | AB121: 0.15 | AC121: 7.3 | AD121: 43.8 | AE121: 312 | AF121: 10 | AG121: 3.4 | AH121: 40 | AI121: 0 | AJ121: 0 | AK121: 172 | AL121: 158 | AM121: =(AK121+AL121)/2-6.5 -> 158.50 | AN121: =SUM((AM121-160.6)/5.3) -> -0.40 | AO121: =R121-AN121 -> -2.03 | AP121: =(P121-C121)/365 -> 7.52 | AQ121: =Q121-AP121 -> 2.88 | AR121: =Q121/AP121 -> 1.38 | AS121: 3.3 | AT121: 0.79 | AU121: 0.73 | AV121: =(AT121+AU121)/2 -> 0.76 | AW121: =U121/V121 -> 0.212 | AX121: =((AA121*10)-192.8)/103 -> 5.565 | AY121: =SUM((AE121-210.4)/70.89) -> 1.433
A122: 121 | B122: 296423 | C122: 2009-01-03 | D122: 2015-10-30T14:45:00 | E122: =(D122-C122)/365 -> 6.83 | F122: 3.0 | G122: =F122/12 -> 0.25 | H122: =SUM(E122-(F122/12)) -> 6.58 | I122: 23.9 | J122: 126.2 | K122: 0.53 | L122: 0.96 | M122: 0.01 | N122: =I122/(J122*J122/10000) -> 15.01 | O122: 2 | P122: 2015-10-24 | Q122: 9.20 | R122: -1.54 | S122: 0.33 | T122: 1.44 | U122: 1.37 | V122: 12.78 | W122: 0.57 | X122: 4.05 | Y122: 1.46 | Z122: 2.39 | AA122: 28.2 | AB122: 0.15 | AC122: 4.8 | AD122: 73.2 | AE122: 190 | AF122: 10 | AG122: 3 | AH122: 40 | AI122: 0 | AJ122: 0 | AK122: 170 | AL122: 159 | AM122: =(AK122+AL122)/2-6.5 -> 158.00 | AN122: =SUM((AM122-160.6)/5.3) -> -0.49 | AO122: =R122-AN122 -> -1.05 | AP122: =(P122-C122)/365 -> 6.81 | AQ122: =Q122-AP122 -> 2.39 | AR122: =Q122/AP122 -> 1.35 | AS122: 3.3 | AT122: 0.43 | AU122: 1.39 | AV122: =(AT122+AU122)/2 -> 0.91 | AW122: =U122/V122 -> 0.107 | AX122: =((AA122*10)-192.8)/103 -> 0.866 | AY122: =SUM((AE122-188.29)/61.99) -> 0.028
A123: 122 | B123: 296633 | C123: 2008-03-07 | D123: 2015-11-01T12:02:00 | E123: =(D123-C123)/365 -> 7.66 | F123: 3.0 | G123: =F123/12 -> 0.25 | H123: =SUM(E123-(F123/12)) -> 7.41 | I123: 33.5 | J123: 135.1 | K123: 2.03 | L123: 1.63 | M123: 1.69 | N123: =I123/(J123*J123/10000) -> 18.35 | O123: 3 | P123: 2015-10-24 | Q123: 11.00 | R123: -1.74 | S123: 0.27 | T123: 1.81 | U123: 1.89 | V123: 17.40 | W123: 0.46 | X123: 2.86 | Y123: 1.21 | Z123: 1.61 | AA123: 42.7 | AB123: 0.15 | AC123: 3.45 | AD123: 37.4 | AE123: 261 | AF123: 10 | AG123: 4 | AH123: 40 | AI123: 0 | AJ123: 0 | AK123: 166 | AL123: 163 | AM123: =(AK123+AL123)/2-6.5 -> 158.00 | AN123: =SUM((AM123-160.6)/5.3) -> -0.49 | AO123: =R123-AN123 -> -1.25 | AP123: =(P123-C123)/365 -> 7.64 | AQ123: =Q123-AP123 -> 3.36 | AR123: =Q123/AP123 -> 1.44 | AS123: 2.9 | AT123: 0.69 | AU123: 1.92 | AV123: =(AT123+AU123)/2 -> 1.31 | AW123: =U123/V123 -> 0.109 | AX123: =((AA123*10)-192.8)/103 -> 2.274 | AY123: =SUM((AE123-210.4)/70.89) -> 0.714
A124: 123 | B124: 297107 | C124: 2008-10-12 | D124: 2015-11-05T14:17:00 | E124: =(D124-C124)/365 -> 7.07 | F124: 12.0 | G124: =F124/12 -> 1.00 | H124: =SUM(E124-(F124/12)) -> 6.07 | I124: 38.5 | J124: 132.7 | K124: 3.45 | L124: 1.92 | M124: 3.15 | N124: =I124/(J124*J124/10000) -> 21.86 | O124: 3 | P124: 2015-11-02 | Q124: 10.20 | R124: -1.36 | S124: 0.47 | T124: 2.87 | U124: 2.64 | V124: 18.02 | W124: 0.67 | X124: 3.56 | Y124: 1.27 | Z124: 2.14 | AA124: 53.8 | AB124: 0.523 | AC124: 5.15 | AD124: 25.4 | AE124: 174 | AF124: 26 | AG124: 3.8 | AH124: 40 | AI124: 0 | AJ124: 0 | AK124: 163 | AL124: 158 | AM124: =(AK124+AL124)/2-6.5 -> 154.00 | AN124: =SUM((AM124-160.6)/5.3) -> -1.25 | AO124: =R124-AN124 -> -0.11 | AP124: =(P124-C124)/365 -> 7.06 | AQ124: =Q124-AP124 -> 3.14 | AR124: =Q124/AP124 -> 1.44 | AS124: 3.2 | AT124: 0.78 | AU124: 0.54 | AV124: =(AT124+AU124)/2 -> 0.66 | AW124: =U124/V124 -> 0.147 | AX124: =((AA124*10)-192.8)/103 -> 3.351 | AY124: =SUM((AE124-210.4)/70.89) -> -0.513
A125: 124 | B125: 297193 | C125: 2007-08-04 | D125: 2015-11-06T14:02:00 | E125: =(D125-C125)/365 -> 8.26 | F125: 5.0 | G125: =F125/12 -> 0.42 | H125: =SUM(E125-(F125/12)) -> 7.85 | I125: 35.7 | J125: 134.5 | K125: 1.92 | L125: 0.83 | M125: 2.06 | N125: =I125/(J125*J125/10000) -> 19.73 | O125: 3 | P125: 2015-10-24 | Q125: 11.00 | R125: -1.83 | S125: 0.21 | T125: 0.80 | U125: 2.46 | V125: 9.42 | W125: 0.39 | X125: 3.68 | Y125: 1.36 | Z125: 2.16 | AA125: 151.3 | AB125: 0.835 | AC125: 4.75 | AD125: 40.2 | AE125: 247 | AF125: 30 | AG125: 2.5 | AH125: 37 | AI125: 0 | AJ125: 0 | AK125: 168 | AL125: 162 | AM125: =(AK125+AL125)/2-6.5 -> 158.50 | AN125: =SUM((AM125-160.6)/5.3) -> -0.40 | AO125: =R125-AN125 -> -1.43 | AP125: =(P125-C125)/365 -> 8.23 | AQ125: =Q125-AP125 -> 2.77 | AR125: =Q125/AP125 -> 1.34 | AS125: 2.9 | AT125: 1.76 | AU125: 0.86 | AV125: =(AT125+AU125)/2 -> 1.31 | AW125: =U125/V125 -> 0.261 | AX125: =((AA125*10)-240.4)/164.6 -> 7.731 | AY125: =SUM((AE125-261.66)/75.79) -> -0.193
A126: 125 | B126: 297314 | C126: 2008-12-12 | D126: 2015-11-07T14:22:00 | E126: =(D126-C126)/365 -> 6.91 | F126: 6.0 | G126: =F126/12 -> 0.50 | H126: =SUM(E126-(F126/12)) -> 6.41 | I126: 24.9 | J126: 125.7 | K126: 0.74 | L126: 0.76 | M126: 0.49 | N126: =I126/(J126*J126/10000) -> 15.76 | O126: 2 | P126: 2015-10-17 | Q126: 9.70 | R126: -2.05 | S126: 0.23 | T126: 3.87 | U126: 3.47 | V126: 22.83 | W126: 0.96 | X126: 4.51 | Y126: 1.33 | Z126: 2.85 | AA126: 22.1 | AB126: 0.31 | AC126: 5.8 | AD126: 60.7 | AE126: 252 | AF126: 10 | AG126: 3.3 | AH126: 40 | AI126: 0 | AJ126: 0 | AK126: 168 | AL126: 160 | AM126: =(AK126+AL126)/2-6.5 -> 157.50 | AN126: =SUM((AM126-160.6)/5.3) -> -0.58 | AO126: =R126-AN126 -> -1.47 | AP126: =(P126-C126)/365 -> 6.85 | AQ126: =Q126-AP126 -> 2.85 | AR126: =Q126/AP126 -> 1.42 | AS126: 3.4 | AT126: 0.73 | AU126: 0.54 | AV126: =(AT126+AU126)/2 -> 0.64 | AW126: =U126/V126 -> 0.152 | AX126: =((AA126*10)-192.8)/103 -> 0.274 | AY126: =SUM((AE126-188.29)/61.99) -> 1.028
A127: 126 | B127: 297370 | C127: 2008-12-09 | D127: 2015-11-08T08:47:00 | E127: =(D127-C127)/365 -> 6.92 | F127: 4.0 | G127: =F127/12 -> 0.33 | H127: =E127-(F127/12) -> 6.59 | I127: 20.4 | J127: 125.3 | K127: -0.69 | L127: 0.66 | M127: -1.59 | N127: =I127/(J127*J127/10000) -> 12.99 | O127: 2 | P127: 2015-10-24 | Q127: 8.90 | R127: -1.44 | S127: 0.08 | T127: 1.46 | U127: 2.54 | V127: 16.39 | W127: 0.70 | X127: 4.83 | Y127: 1.25 | Z127: 3.21 | AA127: 27.6 | AB127: 0.322 | AC127: 5.32 | AD127: 65.5 | AF127: 60 | AG127: 3.2 | AH127: 40 | AI127: 0 | AJ127: 0 | AK127: 162 | AL127: 155 | AM127: =(AK127+AL127)/2-6.5 -> 152.00 | AN127: =SUM((AM127-160.6)/5.3) -> -1.62 | AO127: =R127-AN127 -> 0.18 | AP127: =(P127-C127)/365 -> 6.88 | AQ127: =Q127-AP127 -> 2.02 | AR127: =Q127/AP127 -> 1.29 | AS127: 2.9 | AT127: 0.95 | AU127: 2.15 | AV127: =(AT127+AU127)/2 -> 1.55 | AW127: =U127/V127 -> 0.155 | AX127: =((AA127*10)-192.8)/103 -> 0.808
A128: 127 | B128: 297388 | C128: 2008-02-22 | D128: 2015-11-08T09:23:00 | E128: =(D128-C128)/365 -> 7.72 | F128: 6.0 | G128: =F128/12 -> 0.50 | H128: =SUM(E128-(F128/12)) -> 7.22 | I128: 30.0 | J128: 131.8 | K128: 1.31 | L128: 0.94 | M128: 1.18 | N128: =I128/(J128*J128/10000) -> 17.27 | O128: 3 | P128: 2015-11-06 | Q128: 10.80 | R128: -2.05 | S128: 0.84 | T128: 4.46 | U128: 4.96 | V128: 13.83 | W128: 0.68 | X128: 4.11 | Y128: 1.25 | Z128: 2.63 | AA128: 35.5 | AB128: 0.638 | AC128: 6.58 | AD128: 48.8 | AE128: 349 | AF128: 10 | AG128: 2.8 | AH128: 40 | AI128: 0 | AJ128: 0 | AK128: 171 | AL128: 154 | AM128: =(AK128+AL128)/2-6.5 -> 156.00 | AN128: =SUM((AM128-160.6)/5.3) -> -0.87 | AO128: =R128-AN128 -> -1.18 | AP128: =(P128-C128)/365 -> 7.71 | AQ128: =Q128-AP128 -> 3.09 | AR128: =Q128/AP128 -> 1.40 | AS128: 4.8 | AT128: 1.38 | AU128: 1.76 | AV128: =(AT128+AU128)/2 -> 1.57 | AW128: =U128/V128 -> 0.359 | AX128: =((AA128*10)-192.8)/103 -> 1.575 | AY128: =SUM((AE128-210.4)/70.89) -> 1.955
A129: 128 | B129: 297391 | C129: 2008-06-17 | D129: 2015-11-08T09:31:00 | E129: =(D129-C129)/365 -> 7.40 | F129: 7.0 | G129: =F129/12 -> 0.58 | H129: =SUM(E129-(F129/12)) -> 6.82 | I129: 26.4 | J129: 129.0 | K129: 0.74 | L129: 0.79 | M129: 0.49 | N129: =I129/(J129*J129/10000) -> 15.86 | O129: 2 | P129: 2015-10-24 | Q129: 9.50 | R129: -1.32 | S129: 0.06 | T129: 2.03 | U129: 1.99 | V129: 11.96 | W129: 1.13 | X129: 3.34 | Y129: 1.08 | Z129: 2.06 | AA129: 8.8 | AB129: 0.15 | AC129: 6.61 | AD129: 46.5 | AE129: 214 | AF129: 10 | AG129: 3.1 | AH129: 40 | AI129: 0 | AJ129: 0 | AK129: 168 | AL129: 160 | AM129: =(AK129+AL129)/2-6.5 -> 157.50 | AN129: =SUM((AM129-160.6)/5.3) -> -0.58 | AO129: =R129-AN129 -> -0.74 | AP129: =(P129-C129)/365 -> 7.36 | AQ129: =Q129-AP129 -> 2.14 | AR129: =Q129/AP129 -> 1.29 | AS129: 3.5 | AT129: 1.06 | AU129: 1.92 | AV129: =(AT129+AU129)/2 -> 1.49 | AW129: =U129/V129 -> 0.166 | AX129: =((AA129*10)-192.8)/103 -> -1.017 | AY129: =SUM((AE129-210.4)/70.89) -> 0.051
A130: 129 | B130: 297989 | C130: 2008-01-05 | D130: 2015-11-13T14:16:00 | E130: =(D130-C130)/365 -> 7.86 | F130: 3.0 | G130: =F130/12 -> 0.25 | H130: =SUM(E130-(F130/12)) -> 7.61 | I130: 23.1 | J130: 133.9 | K130: -0.49 | L130: 1.17 | M130: -1.71 | N130: =I130/(J130*J130/10000) -> 12.88 | O130: 2 | P130: 2015-08-13 | Q130: 7.80 | R130: 1.24 | S130: 0.14 | T130: 3.50 | U130: 3.29 | V130: 33.04 | W130: 0.92 | X130: 5.17 | Y130: 1.73 | Z130: 3.35 | AA130: 51.4 | AB130: 0.15 | AC130: 5.71 | AD130: 69.9 | AE130: 260 | AF130: 10 | AG130: 3.3 | AH130: 38+2 | AI130: 0 | AJ130: 0 | AK130: 168 | AL130: 163 | AM130: =(AK130+AL130)/2-6.5 -> 159.00 | AN130: =SUM((AM130-160.6)/5.3) -> -0.30 | AO130: =R130-AN130 -> 1.54 | AP130: =(P130-C130)/365 -> 7.61 | AQ130: =Q130-AP130 -> 0.19 | AR130: =Q130/AP130 -> 1.03 | AS130: 2.9 | AT130: 0.37 | AU130: 0.24 | AV130: =(AT130+AU130)/2 -> 0.30 | AW130: =U130/V130 -> 0.100 | AX130: =((AA130*10)-192.8)/103 -> 3.118 | AY130: =SUM((AE130-210.4)/70.89) -> 0.700
A131: 130 | B131: 272324 | C131: 2008-01-04 | D131: 2015-11-14T09:17:00 | E131: =(D131-C131)/365 -> 7.87 | F131: 25.0 | G131: =F131/12 -> 2.08 | H131: =SUM(E131-(F131/12)) -> 5.78 | I131: 32.7 | J131: 137.6 | K131: 1.72 | L131: 1.84 | M131: 1.15 | N131: =I131/(J131*J131/10000) -> 17.27 | O131: 2 | P131: 2015-09-20 | Q131: 10.50 | R131: -0.86 | S131: 0.08 | T131: 2.10 | U131: 1.50 | V131: 10.19 | W131: 0.70 | X131: 3.11 | Y131: 1.17 | Z131: 2.14 | AA131: 51.3 | AB131: 0.481 | AC131: 6.71 | AD131: 60.5 | AE131: 286 | AF131: 10 | AG131: 3.2 | AH131: 40 | AI131: 0 | AJ131: 0 | AK131: 170.5 | AL131: 160 | AM131: =(AK131+AL131)/2-6.5 -> 158.75 | AN131: =SUM((AM131-160.6)/5.3) -> -0.35 | AO131: =R131-AN131 -> -0.51 | AP131: =(P131-C131)/365 -> 7.72 | AQ131: =Q131-AP131 -> 2.78 | AR131: =Q131/AP131 -> 1.36 | AS131: 3.5 | AT131: 0.90 | AU131: 1.46 | AV131: =(AT131+AU131)/2 -> 1.18 | AW131: =U131/V131 -> 0.147 | AX131: =((AA131*10)-192.8)/103 -> 3.109 | AY131: =SUM((AE131-210.4)/70.89) -> 1.066
A132: 131 | B132: 298188 | C132: 2007-06-06 | D132: 2015-11-15T09:43:00 | E132: =(D132-C132)/365 -> 8.45 | F132: 9.0 | G132: =F132/12 -> 0.75 | H132: =SUM(E132-(F132/12)) -> 7.70 | I132: 33.1 | J132: 132.3 | K132: 1.34 | L132: 0.24 | M132: 1.70 | N132: =I132/(J132*J132/10000) -> 18.91 | O132: 3 | P132: 2015-11-14 | Q132: 10.70 | R132: -1.88 | S132: 0.15 | T132: 2.63 | U132: 1.85 | V132: 9.21 | W132: 0.52 | X132: 3.47 | Y132: 1.32 | Z132: 2.20 | AA132: 57.0 | AB132: 0.15 | AC132: 3.33 | AD132: 23.3 | AE132: 239 | AF132: 10 | AG132: 3.3 | AH132: 40 | AI132: 0 | AJ132: 0 | AK132: 157.3 | AL132: 153 | AM132: =(AK132+AL132)/2-6.5 -> 148.65 | AN132: =SUM((AM132-160.6)/5.3) -> -2.25 | AO132: =R132-AN132 -> 0.37 | AP132: =(P132-C132)/365 -> 8.45 | AQ132: =Q132-AP132 -> 2.25 | AR132: =Q132/AP132 -> 1.27 | AS132: 3.8 | AT132: 1.25 | AU132: 1.21 | AV132: =(AT132+AU132)/2 -> 1.23 | AW132: =U132/V132 -> 0.201 | AX132: =((AA132*10)-240.4)/164.6 -> 2.002 | AY132: =SUM((AE132-261.66)/75.79) -> -0.299
A133: 132 | B133: 298202 | C133: 2007-11-22 | D133: 2015-11-15T10:07:00 | E133: =(D133-C133)/365 -> 7.99 | F133: 3.0 | G133: =F133/12 -> 0.25 | H133: =SUM(E133-(F133/12)) -> 7.74 | I133: 26.6 | J133: 134.0 | K133: 0.35 | L133: 1.04 | M133: -0.25 | N133: =I133/(J133*J133/10000) -> 14.81 | O133: 3 | P133: 2015-11-13 | Q133: 11.00 | R133: -1.91 | S133: 0.09 | T133: 1.86 | U133: 2.24 | V133: 14.01 | W133: 1.04 | X133: 3.40 | Y133: 1.07 | Z133: 2.23 | AA133: 82.9 | AB133: 1.13 | AC133: 4.41 | AD133: 31.5 | AE133: 232 | AF133: 10 | AG133: 3.3 | AH133: 40 | AI133: 0 | AJ133: 0 | AK133: 168 | AL133: 158 | AM133: =(AK133+AL133)/2-6.5 -> 156.50 | AN133: =SUM((AM133-160.6)/5.3) -> -0.77 | AO133: =R133-AN133 -> -1.14 | AP133: =(P133-C133)/365 -> 7.98 | AQ133: =Q133-AP133 -> 3.02 | AR133: =Q133/AP133 -> 1.38 | AS133: 3.3 | AT133: 0.95 | AU133: 1.04 | AV133: =(AT133+AU133)/2 -> 0.99 | AW133: =U133/V133 -> 0.160 | AX133: =((AA133*10)-192.8)/103 -> 6.177 | AY133: =SUM((AE133-210.4)/70.89) -> 0.305
A134: 133 | B134: 298233 | C134: 2008-03-21 | D134: 2015-11-15T14:53:00 | E134: =(D134-C134)/365 -> 7.66 | F134: 3.0 | G134: =F134/12 -> 0.25 | H134: =SUM(E134-(F134/12)) -> 7.41 | I134: 31.5 | J134: 134.7 | K134: 1.66 | L134: 1.55 | M134: 1.24 | N134: =I134/(J134*J134/10000) -> 17.36 | O134: 3 | P134: 2015-11-12 | Q134: 9.50 | R134: -0.37 | S134: 0.10 | T134: 0.95 | U134: 2.90 | V134: 14.45 | W134: 0.61 | X134: 3.53 | Y134: 1.10 | Z134: 2.32 | AA134: 34.9 | AB134: 0.15 | AC134: 9.91 | AD134: 67.4 | AE134: 122 | AF134: 10 | AG134: 3.6 | AH134: 40 | AI134: 0 | AJ134: 0 | AK134: 175 | AL134: 160 | AM134: =(AK134+AL134)/2-6.5 -> 161.00 | AN134: =SUM((AM134-160.6)/5.3) -> 0.08 | AO134: =R134-AN134 -> -0.45 | AP134: =(P134-C134)/365 -> 7.65 | AQ134: =Q134-AP134 -> 1.85 | AR134: =Q134/AP134 -> 1.24 | AS134: 2.9 | AT134: 0.65 | AU134: 0.56 | AV134: =(AT134+AU134)/2 -> 0.61 | AW134: =U134/V134 -> 0.201 | AX134: =((AA134*10)-192.8)/103 -> 1.517 | AY134: =SUM((AE134-210.4)/70.89) -> -1.247
A135: 134 | B135: 298660 | C135: 2008-11-28 | D135: 2015-11-19T10:02:00 | E135: =(D135-C135)/365 -> 6.98 | F135: 6.0 | G135: =F135/12 -> 0.50 | H135: =E135-(F135/12) -> 6.48 | I135: 25.5 | J135: 125.9 | K135: 0.85 | L135: 0.70 | M135: 0.68 | N135: =I135/(J135*J135/10000) -> 16.09 | O135: 2 | P135: 2015-11-19T10:02:00 | Q135: 10.00 | R135: -2.27 | S135: 0.26 | T135: 0.65 | U135: 2.18 | V135: 5.53 | W135: 0.58 | X135: 3.03 | Y135: 0.96 | Z135: 1.89 | AA135: 24.1 | AB135: 0.15 | AC135: 5.52 | AD135: 60.1 | AE135: 244 | AF135: 10 | AG135: 3.1 | AH135: 38+4 | AI135: 0 | AJ135: 0 | AK135: 174 | AL135: 161 | AM135: =(AK135+AL135)/2-6.5 -> 161.00 | AN135: =SUM((AM135-160.6)/5.3) -> 0.08 | AO135: =R135-AN135 -> -2.35 | AP135: =(P135-C135)/365 -> 6.98 | AQ135: =Q135-AP135 -> 3.02 | AR135: =Q135/AP135 -> 1.43 | AS135: 3.7 | AT135: 3.44 | AU135: 3.19 | AV135: =(AT135+AU135)/2 -> 3.31 | AW135: =U135/V135 -> 0.394 | AX135: =((AA135*10)-192.8)/103 -> 0.468 | AY135: =SUM((AE135-188.29)/61.99) -> 0.899
A136: 135 | B136: 298696 | C136: 2007-05-27 | D136: 2015-11-19T15:19:00 | E136: =(D136-C136)/365 -> 8.49 | F136: 8.0 | G136: =F136/12 -> 0.67 | H136: =SUM(E136-(F136/12)) -> 7.82 | I136: 31.0 | J136: 133.5 | K136: 0.93 | L136: 0.41 | M136: 1.05 | N136: =I136/(J136*J136/10000) -> 17.39 | O136: 2 | P136: 2015-11-19 | Q136: 9.50 | R136: -0.57 | S136: 0.35 | T136: 3.16 | U136: 3.40 | V136: 10.48 | W136: 0.86 | X136: 4.29 | Y136: 1.61 | Z136: 2.30 | AA136: 35.3 | AB136: 0.514 | AC136: 9.77 | AD136: 65.5 | AE136: 343 | AF136: 10 | AG136: 2.5 | AH136: 37 | AI136: 0 | AJ136: 0 | AK136: 169 | AL136: 160 | AM136: =(AK136+AL136)/2-6.5 -> 158.00 | AN136: =SUM((AM136-160.6)/5.3) -> -0.49 | AO136: =R136-AN136 -> -0.08 | AP136: =(P136-C136)/365 -> 8.49 | AQ136: =Q136-AP136 -> 1.01 | AR136: =Q136/AP136 -> 1.12 | AS136: 3.3 | AT136: 1.53 | AU136: 1.67 | AV136: =(AT136+AU136)/2 -> 1.60 | AW136: =U136/V136 -> 0.324 | AX136: =((AA136*10)-240.4)/164.6 -> 0.684 | AY136: =SUM((AE136-261.66)/75.79) -> 1.073
A137: 136 | B137: 264123 | C137: 2008-04-15 | D137: 2015-11-20T17:52:00 | E137: =(D137-C137)/365 -> 7.60 | F137: 3.0 | G137: =F137/12 -> 0.25 | H137: =SUM(E137-(F137/12)) -> 7.35 | I137: 29.5 | J137: 135.4 | K137: 1.30 | L137: 1.75 | M137: 0.59 | N137: =I137/(J137*J137/10000) -> 16.09 | O137: 2 | P137: 2015-09-12 | Q137: 7.80 | R137: 1.51 | S137: 0.08 | T137: 0.99 | U137: 1.39 | V137: 7.07 | W137: 0.57 | X137: 3.28 | Y137: 1.15 | Z137: 1.72 | AA137: 48.3 | AB137: 0.15 | AC137: 3.25 | AD137: 46.1 | AE137: 155 | AF137: 10 | AG137: 3.1 | AH137: 40 | AI137: 0 | AJ137: 0 | AK137: 173 | AL137: 159 | AM137: =(AK137+AL137)/2-6.5 -> 159.50 | AN137: =SUM((AM137-160.6)/5.3) -> -0.21 | AO137: =R137-AN137 -> 1.72 | AP137: =(P137-C137)/365 -> 7.41 | AQ137: =Q137-AP137 -> 0.39 | AR137: =Q137/AP137 -> 1.05 | AS137: 3.1 | AT137: 1.00 | AU137: 3.15 | AV137: =(AT137+AU137)/2 -> 2.08 | AW137: =U137/V137 -> 0.197 | AX137: =((AA137*10)-192.8)/103 -> 2.817 | AY137: =SUM((AE137-210.4)/70.89) -> -0.781
A138: 137 | B138: 298932 | C138: 2008-07-01 | D138: 2015-11-21T15:48:00 | E138: =(D138-C138)/365 -> 7.40 | F138: 8.0 | G138: =F138/12 -> 0.67 | H138: =SUM(E138-(F138/12)) -> 6.73 | I138: 29.5 | J138: 131.6 | K138: 1.46 | L138: 1.28 | M138: 1.13 | N138: =I138/(J138*J138/10000) -> 17.03 | O138: 2 | P138: 2015-10-30 | Q138: 9.20 | R138: -0.61 | S138: 0.68 | T138: 2.71 | U138: 4.73 | V138: 14.35 | W138: 1.97 | X138: 4.58 | Y138: 0.94 | Z138: 3.16 | AA138: 24.5 | AB138: 0.15 | AC138: 8.21 | AD138: 80.9 | AE138: 249 | AF138: 10 | AG138: 3.2 | AH138: 40+1 | AI138: 0 | AJ138: 0 | AK138: 171 | AL138: 159 | AM138: =(AK138+AL138)/2-6.5 -> 158.50 | AN138: =SUM((AM138-160.6)/5.3) -> -0.40 | AO138: =R138-AN138 -> -0.21 | AP138: =(P138-C138)/365 -> 7.33 | AQ138: =Q138-AP138 -> 1.87 | AR138: =Q138/AP138 -> 1.25 | AS138: 3.1 | AT138: 1.76 | AU138: 1.68 | AV138: =(AT138+AU138)/2 -> 1.72 | AW138: =U138/V138 -> 0.330 | AX138: =((AA138*10)-192.8)/103 -> 0.507 | AY138: =SUM((AE138-210.4)/70.89) -> 0.545
A139: 138 | B139: 299182 | C139: 2009-07-17 | D139: 2015-11-23T15:40:00 | E139: =(D139-C139)/365 -> 6.36 | F139: 4.0 | G139: =F139/12 -> 0.33 | H139: =SUM(E139-(F139/12)) -> 6.02 | I139: 25.1 | J139: 115.3 | K139: 1.26 | L139: -0.70 | M139: 2.19 | N139: =I139/(J139*J139/10000) -> 18.88 | O139: 3 | P139: 2015-11-23 | Q139: 7.50 | R139: -2.01 | S139: 0.17 | T139: 1.55 | U139: 3.66 | V139: 22.71 | W139: 0.63 | X139: 4.96 | Y139: 1.49 | Z139: 3.03 | AA139: 8.0 | AB139: 0.15 | AC139: 5.93 | AD139: 32.2 | AE139: 275 | AF139: 10 | AG139: 3.4 | AH139: 48 | AI139: 0 | AJ139: 0 | AK139: 160 | AL139: 160 | AM139: =(AK139+AL139)/2-6.5 -> 153.50 | AN139: =SUM((AM139-160.6)/5.3) -> -1.34 | AO139: =R139-AN139 -> -0.67 | AP139: =(P139-C139)/365 -> 6.36 | AQ139: =Q139-AP139 -> 1.14 | AR139: =Q139/AP139 -> 1.18 | AS139: 3.5 | AT139: 0.93 | AU139: 1.32 | AV139: =(AT139+AU139)/2 -> 1.13 | AW139: =U139/V139 -> 0.161 | AX139: =((AA139*10)-192.8)/103 -> -1.096 | AY139: =SUM((AE139-188.29)/61.99) -> 1.399
A140: 139 | B140: 299391 | C140: 2007-05-26 | D140: 2015-11-25 | E140: =(D140-C140)/365 -> 8.51 | F140: 8.0 | G140: =F140/12 -> 0.67 | H140: =SUM(E140-(F140/12)) -> 7.84 | I140: 34.0 | J140: 135.0 | K140: 1.45 | L140: 0.66 | M140: 1.59 | N140: =I140/(J140*J140/10000) -> 18.66 | O140: 2 | P140: 2015-11-15 | Q140: 10.70 | R140: -1.47 | S140: 0.22 | T140: 2.75 | U140: 3.72 | V140: 11.61 | W140: 0.64 | X140: 3.23 | Y140: 0.88 | Z140: 2.29 | AA140: 38.4 | AB140: 0.324 | AC140: 3.45 | AD140: 57.9 | AE140: 221 | AF140: 10 | AG140: 3.15 | AH140: 42 | AI140: 0 | AJ140: 0 | AK140: 170 | AL140: 164 | AM140: =(AK140+AL140)/2-6.5 -> 160.50 | AN140: =SUM((AM140-160.6)/5.3) -> -0.02 | AO140: =R140-AN140 -> -1.45 | AP140: =(P140-C140)/365 -> 8.48 | AQ140: =Q140-AP140 -> 2.22 | AR140: =Q140/AP140 -> 1.26 | AS140: 3.1 | AT140: 1.45 | AU140: 1.68 | AV140: =(AT140+AU140)/2 -> 1.57 | AW140: =U140/V140 -> 0.320 | AX140: =((AA140*10)-240.4)/164.6 -> 0.872 | AY140: =SUM((AE140-261.66)/75.79) -> -0.536
A141: 140 | B141: 272443 | C141: 2008-03-25 | D141: 2015-11-28T12:05:00 | E141: =(D141-C141)/365 -> 7.68 | F141: 7.0 | G141: =F141/12 -> 0.58 | H141: =SUM(E141-(F141/12)) -> 7.10 | I141: 27.0 | J141: 123.7 | K141: 0.67 | L141: -0.56 | M141: 1.37 | N141: =I141/(J141*J141/10000) -> 17.65 | O141: 3 | P141: 2015-04-11 | Q141: 9.70 | R141: -2.38 | S141: 0.16 | T141: 1.68 | U141: 2.96 | V141: 15.33 | W141: 0.91 | X141: 4.13 | Y141: 1.24 | Z141: 2.57 | AA141: 20.6 | AB141: 0.15 | AC141: 7.84 | AD141: 56.1 | AE141: 231 | AF141: 25 | AG141: 3.15 | AH141: 40 | AI141: 0 | AJ141: 0 | AK141: 169 | AL141: 157 | AM141: =(AK141+AL141)/2-6.5 -> 156.50 | AN141: =SUM((AM141-160.6)/5.3) -> -0.77 | AO141: =R141-AN141 -> -1.61 | AP141: =(P141-C141)/365 -> 7.05 | AQ141: =Q141-AP141 -> 2.65 | AR141: =Q141/AP141 -> 1.38 | AS141: 2.5 | AT141: 0.69 | AU141: 1.38 | AV141: =(AT141+AU141)/2 -> 1.04 | AW141: =U141/V141 -> 0.193 | AX141: =((AA141*10)-192.8)/103 -> 0.128 | AY141: =SUM((AE141-210.4)/70.89) -> 0.291
A142: 141 | B142: 300348 | C142: 2008-08-12 | D142: 2015-12-04T11:26:00 | E142: =(D142-C142)/365 -> 7.32 | F142: 5.0 | G142: =F142/12 -> 0.42 | H142: =SUM(E142-(F142/12)) -> 6.90 | I142: 27.9 | J142: 128.7 | K142: 1.17 | L142: 0.83 | M142: 1.04 | N142: =I142/(J142*J142/10000) -> 16.84 | O142: 2 | P142: 2015-11-21 | Q142: 8.60 | R142: -0.56 | S142: 0.28 | T142: 3.64 | U142: 4.25 | V142: 18.99 | W142: 1.39 | X142: 3.26 | Y142: 1.21 | Z142: 1.85 | AA142: 31.1 | AB142: 0.15 | AC142: 2.89 | AD142: 77.3 | AE142: 77.3 | AF142: 10 | AG142: 3.1 | AH142: 41 | AI142: 0 | AJ142: 0 | AK142: 169 | AL142: 155 | AM142: =(AK142+AL142)/2-6.5 -> 155.50 | AN142: =SUM((AM142-160.6)/5.3) -> -0.96 | AO142: =R142-AN142 -> 0.40 | AP142: =(P142-C142)/365 -> 7.28 | AQ142: =Q142-AP142 -> 1.32 | AR142: =Q142/AP142 -> 1.18 | AS142: 3.4 | AT142: 1.52 | AU142: 2.27 | AV142: =(AT142+AU142)/2 -> 1.89 | AW142: =U142/V142 -> 0.224 | AX142: =((AA142*10)-192.8)/103 -> 1.148 | AY142: =SUM((AE142-210.4)/70.89) -> -1.878
A143: 142 | B143: 300550 | C143: 2007-11-04 | D143: 2015-12-06T11:54:00 | E143: =(D143-C143)/365 -> 8.09 | F143: 6.0 | G143: =F143/12 -> 0.50 | H143: =E143-(F143/12) -> 7.59 | I143: 28.9 | J143: 129.1 | K143: 0.80 | L143: 0.03 | M143: 1.13 | N143: =I143/(J143*J143/10000) -> 17.34 | O143: 2 | P143: 2015-10-02 | Q143: 8.90 | R143: -0.77 | S143: 0.41 | T143: 4.05 | U143: 4.90 | V143: 11.04 | W143: 0.89 | X143: 3.34 | Y143: 1.54 | Z143: 1.88 | AA143: 31.7 | AB143: 0.331 | AC143: 6.2 | AD143: 63.6 | AE143: 173 | AF143: 35 | AG143: 3.15 | AH143: 39 | AI143: 0 | AJ143: 0 | AK143: 168 | AL143: 158 | AM143: =(AK143+AL143)/2-6.5 -> 156.50 | AN143: =SUM((AM143-160.6)/5.3) -> -0.77 | AO143: =R143-AN143 -> 0.00 | AP143: =(P143-C143)/365 -> 7.92 | AQ143: =Q143-AP143 -> 0.98 | AR143: =Q143/AP143 -> 1.12 | AS143: 3.7 | AT143: 2.01 | AU143: 1.32 | AV143: =(AT143+AU143)/2 -> 1.67 | AW143: =U143/V143 -> 0.444 | AX143: =((AA143*10)-240.4)/164.6 -> 0.465 | AY143: =SUM((AE143-261.66)/75.79) -> -1.170
A144: 143 | B144: 136540 | C144: 2008-08-21 | D144: 2015-12-06T13:47:00 | E144: =(D144-C144)/365 -> 7.30 | F144: 4.0 | G144: =F144/12 -> 0.33 | H144: =SUM(E144-(F144/12)) -> 6.96 | I144: 26.7 | J144: 132.7 | K144: 0.90 | L144: 1.62 | M144: 0.07 | N144: =I144/(J144*J144/10000) -> 15.16 | O144: 3 | P144: 2015-11-21 | Q144: 8.70 | R144: 0.06 | S144: 0.13 | T144: 3.55 | U144: 3.45 | V144: 21.34 | W144: 0.96 | X144: 3.52 | Y144: 1.24 | Z144: 2.21 | AA144: 4.9 | AB144: 0.15 | AC144: 6.74 | AD144: 65.9 | AE144: 180 | AF144: 10 | AG144: 3.4 | AH144: 40 | AI144: 0 | AJ144: 0 | AK144: 180 | AL144: 170 | AM144: =(AK144+AL144)/2-6.5 -> 168.50 | AN144: =SUM((AM144-160.6)/5.3) -> 1.49 | AO144: =R144-AN144 -> -1.43 | AP144: =(P144-C144)/365 -> 7.25 | AQ144: =Q144-AP144 -> 1.45 | AR144: =Q144/AP144 -> 1.20 | AS144: 3.3 | AW144: =U144/V144 -> 0.162 | AX144: =((AA144*10)-192.8)/103 -> -1.396 | AY144: =SUM((AE144-210.4)/70.89) -> -0.429
A145: 144 | B145: 171851 | C145: 2008-08-02 | D145: 2015-12-11T13:39:00 | E145: =(D145-C145)/365 -> 7.36 | F145: 3.0 | G145: =F145/12 -> 0.25 | H145: =SUM(E145-(F145/12)) -> 7.11 | I145: 30.2 | J145: 132.0 | K145: 1.64 | L145: 1.40 | M145: 1.28 | N145: =I145/(J145*J145/10000) -> 17.33 | O145: 2 | P145: 2015-11-09 | Q145: 8.70 | R145: -0.07 | S145: 0.21 | T145: 4.67 | U145: 3.83 | V145: 20.13 | W145: 0.29 | X145: 3.97 | Y145: 1.33 | Z145: 2.69 | AA145: 16.5 | AB145: 0.15 | AC145: 8.67 | AD145: 99 | AE145: 159 | AF145: 10 | AG145: 3.6 | AH145: 40 | AI145: 0 | AJ145: 0 | AK145: 170 | AL145: 160 | AM145: =(AK145+AL145)/2-6.5 -> 158.50 | AN145: =SUM((AM145-160.6)/5.3) -> -0.40 | AO145: =R145-AN145 -> 0.33 | AP145: =(P145-C145)/365 -> 7.27 | AQ145: =Q145-AP145 -> 1.43 | AR145: =Q145/AP145 -> 1.20 | AS145: 3.3 | AT145: 1.18 | AU145: 1.67 | AV145: =(AT145+AU145)/2 -> 1.42 | AW145: =U145/V145 -> 0.190 | AX145: =((AA145*10)-192.8)/103 -> -0.270 | AY145: =SUM((AE145-210.4)/70.89) -> -0.725
A146: 145 | B146: 301110 | C146: 2007-09-23 | D146: 2015-12-11T16:47:00 | E146: =(D146-C146)/365 -> 8.22 | F146: 4.0 | G146: =F146/12 -> 0.33 | H146: =SUM(E146-(F146/12)) -> 7.89 | I146: 37.0 | J146: 140.3 | K146: 2.15 | L146: 1.92 | M146: 1.72 | N146: =I146/(J146*J146/10000) -> 18.80 | O146: 2 | P146: 2015-11-22 | Q146: 10.70 | R146: -0.55 | S146: 0.42 | T146: 4.74 | U146: 4.18 | V146: 10.33 | W146: 0.92 | X146: 3.51 | Y146: 1.10 | Z146: 2.40 | AA146: 39.8 | AB146: 0.425 | AC146: 9.31 | AD146: 60.9 | AE146: 236 | AF146: 29 | AG146: 3.5 | AH146: 40 | AI146: 0 | AJ146: 0 | AK146: 182 | AL146: 160 | AM146: =(AK146+AL146)/2-6.5 -> 164.50 | AN146: =SUM((AM146-160.6)/5.3) -> 0.74 | AO146: =R146-AN146 -> -1.29 | AP146: =(P146-C146)/365 -> 8.17 | AQ146: =Q146-AP146 -> 2.53 | AR146: =Q146/AP146 -> 1.31 | AS146: 3.4 | AT146: 2.66 | AU146: 3.65 | AV146: =(AT146+AU146)/2 -> 3.15 | AW146: =U146/V146 -> 0.405 | AX146: =((AA146*10)-240.4)/164.6 -> 0.957 | AY146: =SUM((AE146-261.66)/75.79) -> -0.339
A147: 146 | B147: 301119 | C147: 2008-02-01 | D147: 2015-12-11T17:41:00 | E147: =(D147-C147)/365 -> 7.87 | F147: 13.0 | G147: =F147/12 -> 1.08 | H147: =SUM(E147-(F147/12)) -> 6.78 | I147: 31.6 | J147: 133.2 | K147: 1.52 | L147: 1.04 | M147: 1.40 | N147: =I147/(J147*J147/10000) -> 17.81 | O147: 3 | P147: 2015-08-18 | Q147: 8.70 | R147: 0.15 | S147: 0.38 | T147: 3.73 | U147: 3.58 | V147: 11.48 | W147: 1.45 | X147: 3.48 | Y147: 1.02 | Z147: 2.39 | AA147: 41.8 | AB147: 0.804 | AC147: 11.87 | AD147: 78.9 | AE147: 336 | AF147: 10 | AG147: 3.15 | AH147: 40 | AI147: 0 | AJ147: 0 | AK147: 170 | AL147: 162 | AM147: =(AK147+AL147)/2-6.5 -> 159.50 | AN147: =SUM((AM147-160.6)/5.3) -> -0.21 | AO147: =R147-AN147 -> 0.36 | AP147: =(P147-C147)/365 -> 7.55 | AQ147: =Q147-AP147 -> 1.15 | AR147: =Q147/AP147 -> 1.15 | AS147: 3.8 | AT147: 1.57 | AU147: 1.61 | AV147: =(AT147+AU147)/2 -> 1.59 | AW147: =U147/V147 -> 0.312 | AX147: =((AA147*10)-192.8)/103 -> 2.186 | AY147: =SUM((AE147-210.4)/70.89) -> 1.772
A148: 147 | B148: 301295 | C148: 2008-02-10 | D148: 2015-12-13T09:45:00 | E148: =(D148-C148)/365 -> 7.84 | F148: 3.0 | G148: =F148/12 -> 0.25 | H148: =SUM(E148-(F148/12)) -> 7.59 | I148: 36.9 | J148: 134.0 | K148: 2.45 | L148: 1.21 | M148: 2.47 | N148: =I148/(J148*J148/10000) -> 20.55 | O148: 3 | P148: 2015-11-29 | Q148: 10.00 | R148: -0.97 | S148: 0.19 | T148: 1.02 | U148: 2.18 | V148: 7.64 | W148: 1.05 | X148: 3.99 | Y148: 1.29 | Z148: 2.60 | AA148: 43.1 | AB148: 0.36 | AC148: 12.6 | AD148: 30.6 | AE148: 219 | AF148: 10 | AG148: 2.8 | AH148: 39 | AI148: 0 | AJ148: 0 | AK148: 170 | AL148: 157 | AM148: =(AK148+AL148)/2-6.5 -> 157.00 | AN148: =SUM((AM148-160.6)/5.3) -> -0.68 | AO148: =R148-AN148 -> -0.29 | AP148: =(P148-C148)/365 -> 7.81 | AQ148: =Q148-AP148 -> 2.19 | AR148: =Q148/AP148 -> 1.28 | AS148: 2.8 | AT148: 0.52 | AU148: 0.37 | AV148: =(AT148+AU148)/2 -> 0.45 | AW148: =U148/V148 -> 0.285 | AX148: =((AA148*10)-192.8)/103 -> 2.313 | AY148: =SUM((AE148-210.4)/70.89) -> 0.121
A149: 148 | B149: 302505 | C149: 2008-04-10 | D149: 2015-12-24T10:27:00 | E149: =(D149-C149)/365 -> 7.71 | F149: 9.0 | G149: =F149/12 -> 0.75 | H149: =E149-(F149/12) -> 6.96 | I149: 25.7 | J149: 133.5 | K149: 0.33 | L149: 1.27 | M149: -0.48 | N149: =I149/(J149*J149/10000) -> 14.42 | O149: 2 | P149: 2015-11-05 | Q149: 9.10 | R149: -0.19 | S149: 1.43 | T149: 12.30 | U149: 3.17 | V149: 18.30 | W149: 0.47 | X149: 3.48 | Y149: 1.31 | Z149: 2.19 | AA149: 29.5 | AB149: 0.63 | AC149: 2.58 | AD149: 100.3 | AE149: 207 | AF149: 45 | AG149: 2.7 | AH149: 40 | AI149: 0 | AJ149: 0 | AK149: 172 | AL149: 153 | AM149: =(AK149+AL149)/2-6.5 -> 156.00 | AN149: =SUM((AM149-160.6)/5.3) -> -0.87 | AO149: =R149-AN149 -> 0.68 | AP149: =(P149-C149)/365 -> 7.58 | AQ149: =Q149-AP149 -> 1.52 | AR149: =Q149/AP149 -> 1.20 | AS149: 3.5 | AT149: 0.90 | AU149: 0.57 | AV149: =(AT149+AU149)/2 -> 0.74 | AW149: =U149/V149 -> 0.173 | AX149: =((AA149*10)-192.8)/103 -> 0.992 | AY149: =SUM((AE149-210.4)/70.89) -> -0.048
A150: 149 | B150: 303488 | C150: 2008-03-02 | D150: 2016-01-03T09:06:00 | E150: =(D150-C150)/365 -> 7.84 | F150: 12.0 | G150: =F150/12 -> 1.00 | H150: =SUM(E150-(F150/12)) -> 6.84 | I150: 42.5 | J150: 139.3 | K150: 3.27 | L150: 2.18 | M150: 2.90 | N150: =I150/(J150*J150/10000) -> 21.90 | O150: 2 | P150: 2015-12-24 | Q150: 9.30 | R150: 0.59 | S150: 2.01 | T150: 2.78 | U150: 2.87 | V150: 17.26 | W150: 1.58 | X150: 4.13 | Y150: 0.93 | Z150: 2.92 | AA150: 100.1 | AB150: 0.415 | AC150: 24.34 | AD150: 31.7 | AE150: 247 | AF150: 10 | AG150: 3.7 | AH150: 40 | AI150: 0 | AJ150: 0 | AK150: 176 | AL150: 159 | AM150: =(AK150+AL150)/2-6.5 -> 161.00 | AN150: =SUM((AM150-160.6)/5.3) -> 0.08 | AO150: =R150-AN150 -> 0.51 | AP150: =(P150-C150)/365 -> 7.82 | AQ150: =Q150-AP150 -> 1.48 | AR150: =Q150/AP150 -> 1.19 | AS150: 4.2 | AT150: 3.00 | AU150: 2.38 | AV150: =(AT150+AU150)/2 -> 2.69 | AW150: =U150/V150 -> 0.166 | AX150: =((AA150*10)-192.8)/103 -> 7.847 | AY150: =SUM((AE150-210.4)/70.89) -> 0.516
A151: 150 | B151: 273429 | C151: 2008-01-10 | D151: 2016-01-08T13:14:00 | E151: =(D151-C151)/365 -> 8.00 | F151: 15.0 | G151: =F151/12 -> 1.25 | H151: =SUM(E151-(F151/12)) -> 6.75 | I151: 32.6 | J151: 133.2 | K151: 1.60 | L151: 0.88 | M151: 1.61 | N151: =I151/(J151*J151/10000) -> 18.37 | O151: 3 | P151: 2015-12-24 | Q151: 10.10 | R151: -1.19 | S151: 0.06 | T151: 1.56 | U151: 1.94 | V151: 11.58 | W151: 0.58 | X151: 3.88 | Y151: 1.62 | Z151: 2.22 | AA151: 97.8 | AB151: 0.432 | AC151: 7.94 | AD151: 31.1 | AE151: 348 | AF151: 10 | AG151: 2.8 | AH151: 40 | AI151: 0 | AJ151: 0 | AK151: 160 | AL151: 162 | AM151: =(AK151+AL151)/2-6.5 -> 154.50 | AN151: =SUM((AM151-160.6)/5.3) -> -1.15 | AO151: =R151-AN151 -> -0.04 | AP151: =(P151-C151)/365 -> 7.96 | AQ151: =Q151-AP151 -> 2.14 | AR151: =Q151/AP151 -> 1.27 | AS151: 3.8 | AT151: 0.20 | AU151: 0.28 | AV151: =(AT151+AU151)/2 -> 0.24 | AW151: =U151/V151 -> 0.168 | AX151: =((AA151*10)-240.4)/164.6 -> 4.481 | AY151: =SUM((AE151-261.66)/75.79) -> 1.139
A152: 151 | B152: 304066 | C152: 2008-04-27 | D152: 2016-01-08T13:21:00 | E152: =(D152-C152)/365 -> 7.71 | F152: 12.0 | G152: =F152/12 -> 1.00 | H152: =SUM(E152-(F152/12)) -> 6.71 | I152: 33.5 | J152: 129.0 | K152: 2.00 | L152: 0.43 | M152: 2.37 | N152: =I152/(J152*J152/10000) -> 20.13 | O152: 3 | P152: 2016-01-08 | Q152: 9.80 | R152: -1.59 | S152: 0.50 | T152: 4.09 | U152: 3.98 | V152: 22.04 | W152: 0.84 | X152: 4.6 | Y152: 1.5 | Z152: 2.99 | AA152: 45.1 | AB152: 0.536 | AC152: 13.89 | AD152: 51.1 | AE152: 250 | AF152: 10 | AG152: 3 | AH152: 39+4 | AI152: 0 | AJ152: 0 | AK152: 172 | AL152: 165 | AM152: =(AK152+AL152)/2-6.5 -> 162.00 | AN152: =SUM((AM152-160.6)/5.3) -> 0.26 | AO152: =R152-AN152 -> -1.85 | AP152: =(P152-C152)/365 -> 7.70 | AQ152: =Q152-AP152 -> 2.10 | AR152: =Q152/AP152 -> 1.27 | AS152: 3.3 | AT152: 0.93 | AU152: 0.86 | AV152: =(AT152+AU152)/2 -> 0.89 | AW152: =U152/V152 -> 0.181 | AX152: =((AA152*10)-192.8)/103 -> 2.507 | AY152: =SUM((AE152-210.4)/70.89) -> 0.559
A153: 152 | B153: 304107 | C153: 2007-10-30 | D153: 2016-01-09T08:35:00 | E153: =(D153-C153)/365 -> 8.20 | F153: 13.0 | G153: =F153/12 -> 1.08 | H153: =SUM(E153-(F153/12)) -> 7.12 | I153: 30.3 | J153: 134.9 | K153: 1.01 | L153: 0.97 | M153: 0.77 | N153: =I153/(J153*J153/10000) -> 16.65 | O153: 2 | P153: 2015-12-27 | Q153: 10.20 | R153: -1.01 | S153: 0.43 | T153: 1.86 | U153: 3.37 | V153: 13.57 | W153: 0.39 | X153: 3.46 | Y153: 1.13 | Z153: 2.28 | AA153: 138.4 | AB153: 0.3 | AC153: 4.59 | AD153: 47 | AE153: 225 | AF153: 10 | AG153: 3 | AH153: 39 | AI153: 0 | AJ153: 0 | AK153: 165 | AL153: 160 | AM153: =(AK153+AL153)/2-6.5 -> 156.00 | AN153: =SUM((AM153-160.6)/5.3) -> -0.87 | AO153: =R153-AN153 -> -0.14 | AP153: =(P153-C153)/365 -> 8.16 | AQ153: =Q153-AP153 -> 2.04 | AR153: =Q153/AP153 -> 1.25 | AS153: 3.3 | AT153: 0.86 | AU153: 0.94 | AV153: =(AT153+AU153)/2 -> 0.90 | AW153: =U153/V153 -> 0.248 | AX153: =((AA153*10)-240.4)/164.6 -> 6.948 | AY153: =SUM((AE153-261.66)/75.79) -> -0.484
A154: 153 | B154: 304842 | C154: 2007-10-18 | D154: 2016-01-15T14:56:00 | E154: =(D154-C154)/365 -> 8.25 | F154: 6.0 | G154: =F154/12 -> 0.50 | H154: =SUM(E154-(F154/12)) -> 7.75 | I154: 28.1 | J154: 126.3 | K154: 0.51 | L154: -0.65 | M154: 1.22 | N154: =I154/(J154*J154/10000) -> 17.62 | O154: 2 | P154: 2015-12-27 | Q154: 10.00 | R154: -2.21 | S154: 0.26 | T154: 2.96 | U154: 3.96 | V154: 15.19 | W154: 0.6 | X154: 5.54 | Y154: 1.3 | Z154: 3.72 | AA154: 74.9 | AB154: 0.478 | AC154: 5.08 | AD154: 47.4 | AE154: 231 | AF154: 10 | AG154: 2.7 | AH154: 38 | AI154: 0 | AJ154: 0 | AK154: 165 | AL154: 155 | AM154: =(AK154+AL154)/2-6.5 -> 153.50 | AN154: =SUM((AM154-160.6)/5.3) -> -1.34 | AO154: =R154-AN154 -> -0.87 | AP154: =(P154-C154)/365 -> 8.20 | AQ154: =Q154-AP154 -> 1.80 | AR154: =Q154/AP154 -> 1.22 | AS154: 2.9 | AT154: 1.50 | AU154: 1.98 | AV154: =(AT154+AU154)/2 -> 1.74 | AW154: =U154/V154 -> 0.261 | AX154: =((AA154*10)-240.4)/164.6 -> 3.090 | AY154: =SUM((AE154-261.66)/75.79) -> -0.405
A155: 154 | B155: 305214 | C155: 2007-10-22 | D155: 2016-01-18T15:53:00 | E155: =(D155-C155)/365 -> 8.25 | F155: 4.0 | G155: =F155/12 -> 0.33 | H155: =SUM(E155-(F155/12)) -> 7.92 | I155: 34.6 | J155: 131.8 | K155: 1.75 | L155: 0.36 | M155: 2.13 | N155: =I155/(J155*J155/10000) -> 19.92 | O155: 2 | P155: 2016-01-10 | Q155: 10.20 | R155: -1.50 | S155: 0.77 | T155: 2.90 | U155: 2.91 | V155: 8.83 | W155: 0.83 | X155: 3.46 | Y155: 0.75 | Z155: 2.6 | AA155: 36.2 | AB155: 0.3 | AC155: 15.85 | AD155: 23 | AE155: 171 | AF155: 10 | AG155: 3.3 | AH155: 40+2 | AI155: 0 | AJ155: 0 | AK155: 168 | AL155: 152 | AM155: =(AK155+AL155)/2-6.5 -> 153.50 | AN155: =SUM((AM155-160.6)/5.3) -> -1.34 | AO155: =R155-AN155 -> -0.16 | AP155: =(P155-C155)/365 -> 8.22 | AQ155: =Q155-AP155 -> 1.98 | AR155: =Q155/AP155 -> 1.24 | AS155: 3.1 | AT155: 1.41 | AU155: 1.27 | AV155: =(AT155+AU155)/2 -> 1.34 | AW155: =U155/V155 -> 0.330 | AX155: =((AA155*10)-240.4)/164.6 -> 0.739 | AY155: =SUM((AE155-261.66)/75.79) -> -1.196
A156: 155 | B156: 099750 | C156: 2008-06-23 | D156: 2016-01-20T09:13:00 | E156: =(D156-C156)/365 -> 7.58 | F156: 3.0 | G156: =F156/12 -> 0.25 | H156: =SUM(E156-(F156/12)) -> 7.33 | I156: 21.3 | J156: 122.0 | K156: -0.86 | L156: -0.78 | M156: -0.55 | N156: =I156/(J156*J156/10000) -> 14.31 | O156: 2 | P156: 2015-11-19 | Q156: 7.40 | R156: -0.57 | S156: 0.37 | T156: 3.70 | U156: 2.37 | V156: 16.96 | W156: 1.12 | X156: 4.69 | Y156: 1.69 | Z156: 2.92 | AA156: 79.3 | AB156: 0.3 | AC156: 5 | AD156: 78.6 | AE156: 223 | AF156: 10 | AG156: 3.3 | AH156: 38 | AI156: 0 | AJ156: 0 | AK156: 170 | AL156: 160 | AM156: =(AK156+AL156)/2-6.5 -> 158.50 | AN156: =SUM((AM156-160.6)/5.3) -> -0.40 | AO156: =R156-AN156 -> -0.17 | AP156: =(P156-C156)/365 -> 7.41 | AQ156: =Q156-AP156 -> -0.01 | AR156: =Q156/AP156 -> 1.00 | AS156: 3.3 | AT156: 0.84 | AU156: 1.06 | AV156: =(AT156+AU156)/2 -> 0.95 | AW156: =U156/V156 -> 0.140 | AX156: =((AA156*10)-192.8)/103 -> 5.827 | AY156: =SUM((AE156-210.4)/70.89) -> 0.178
A157: 156 | B157: 306100 | C157: 2009-09-03 | D157: 2016-01-26T11:33:00 | E157: =(D157-C157)/365 -> 6.40 | F157: 3.0 | G157: =F157/12 -> 0.25 | H157: =SUM(E157-(F157/12)) -> 6.15 | I157: 21.2 | J157: 118.0 | K157: 0.00 | L157: -0.18 | M157: 0.18 | N157: =I157/(J157*J157/10000) -> 15.23 | O157: 2 | P157: 2015-11-01 | Q157: 6.60 | R157: -0.42 | S157: 0.52 | T157: 2.07 | U157: 2.67 | V157: 15.20 | W157: 2.09 | X157: 2.51 | Y157: 0.85 | Z157: 1.55 | AA157: 1.9 | AB157: 0.418 | AC157: 8.51 | AD157: 56.7 | AE157: 253 | AF157: 10 | AG157: 3.5 | AH157: 40+3 | AI157: 0 | AJ157: 0 | AK157: 178 | AL157: 165 | AM157: =(AK157+AL157)/2-6.5 -> 165.00 | AN157: =SUM((AM157-160.6)/5.3) -> 0.83 | AO157: =R157-AN157 -> -1.25 | AP157: =(P157-C157)/365 -> 6.16 | AQ157: =Q157-AP157 -> 0.44 | AR157: =Q157/AP157 -> 1.07 | AS157: 3.2 | AT157: 0.57 | AU157: 0.84 | AV157: =(AT157+AU157)/2 -> 0.70 | AW157: =U157/V157 -> 0.176 | AX157: =((AA157*10)-192.8)/103 -> -1.687 | AY157: =SUM((AE157-188.29)/61.99) -> 1.044
A158: 157 | B158: 306291 | C158: 2007-12-07 | D158: 2016-01-28T09:23:00 | E158: =(D158-C158)/365 -> 8.15 | F158: 8.0 | G158: =F158/12 -> 0.67 | H158: =SUM(E158-(F158/12)) -> 7.48 | I158: 24.5 | J158: 129.1 | K158: -0.30 | L158: -0.03 | M158: -0.35 | N158: =I158/(J158*J158/10000) -> 14.70 | O158: 2 | P158: 2016-01-28T09:23:00 | Q158: 9.00 | R158: -0.86 | S158: 0.40 | T158: 1.01 | U158: 4.16 | V158: 15.12 | W158: 0.56 | X158: 4.67 | Y158: 1.67 | Z158: 2.79 | AA158: 24.1 | AB158: 0.418 | AC158: 3.68 | AD158: 95.7 | AE158: 163 | AF158: 10 | AG158: 3.4 | AH158: 38 | AI158: 0 | AJ158: 0 | AK158: 172 | AL158: 161 | AM158: =(AK158+AL158)/2-6.5 -> 160.00 | AN158: =SUM((AM158-160.6)/5.3) -> -0.11 | AO158: =R158-AN158 -> -0.75 | AP158: =(P158-C158)/365 -> 8.15 | AQ158: =Q158-AP158 -> 0.85 | AR158: =Q158/AP158 -> 1.10 | AS158: 3.5 | AT158: 2.44 | AU158: 1.91 | AV158: =(AT158+AU158)/2 -> 2.18 | AW158: =U158/V158 -> 0.275 | AX158: =((AA158*10)-240.4)/164.6 -> 0.004 | AY158: =SUM((AE158-261.66)/75.79) -> -1.302
A159: 158 | B159: 284614 | C159: 2008-01-14 | D159: 2016-01-28T11:37:00 | E159: =(D159-C159)/365 -> 8.05 | F159: 18.0 | G159: =F159/12 -> 1.50 | H159: =SUM(E159-(F159/12)) -> 6.55 | I159: 21.0 | J159: 129.5 | K159: -1.27 | L159: 0.15 | M159: -2.04 | N159: =I159/(J159*J159/10000) -> 12.52 | O159: 3 | P159: 2016-01-25 | Q159: 9.90 | R159: -1.60 | S159: 0.35 | T159: 0.87 | U159: 3.46 | V159: 13.13 | W159: 0.72 | X159: 3.09 | Y159: 0.95 | Z159: 1.91 | AA159: 54.3 | AB159: 0.3 | AC159: 9.6 | AD159: 41.1 | AE159: 179 | AF159: 10 | AG159: 3.5 | AH159: 40 | AI159: 0 | AJ159: 0 | AK159: 167 | AL159: 158 | AM159: =(AK159+AL159)/2-6.5 -> 156.00 | AN159: =SUM((AM159-160.6)/5.3) -> -0.87 | AO159: =R159-AN159 -> -0.73 | AP159: =(P159-C159)/365 -> 8.04 | AQ159: =Q159-AP159 -> 1.86 | AR159: =Q159/AP159 -> 1.23 | AS159: 3.5 | AT159: 1.71 | AU159: 1.51 | AV159: =(AT159+AU159)/2 -> 1.61 | AW159: =U159/V159 -> 0.264 | AX159: =((AA159*10)-240.4)/164.6 -> 1.838 | AY159: =SUM((AE159-261.66)/75.79) -> -1.091
A160: 159 | B160: 306466 | C160: 2009-01-03 | D160: 2016-01-30T08:14:00 | E160: =(D160-C160)/365 -> 7.08 | F160: 4.0 | G160: =F160/12 -> 0.33 | H160: =SUM(E160-(F160/12)) -> 6.74 | I160: 22.5 | J160: 123.8 | K160: -0.10 | L160: 0.16 | M160: -0.24 | N160: =I160/(J160*J160/10000) -> 14.68 | O160: 2 | P160: 2015-10-08 | Q160: 7.70 | R160: -0.55 | S160: 0.43 | T160: 1.88 | U160: 1.77 | V160: 13.76 | W160: 0.81 | X160: 3.75 | Y160: 1.2 | Z160: 2.32 | AA160: 27.5 | AB160: 0.3 | AC160: 3 | AD160: 78.2 | AE160: 166 | AF160: 10 | AG160: 2.8 | AH160: 40 | AI160: 0 | AJ160: 0 | AK160: 173 | AL160: 153 | AM160: =(AK160+AL160)/2-6.5 -> 156.50 | AN160: =SUM((AM160-160.6)/5.3) -> -0.77 | AO160: =R160-AN160 -> 0.22 | AP160: =(P160-C160)/365 -> 6.76 | AQ160: =Q160-AP160 -> 0.94 | AR160: =Q160/AP160 -> 1.14 | AS160: 3.3 | AT160: 0.99 | AU160: 0.95 | AV160: =(AT160+AU160)/2 -> 0.97 | AW160: =U160/V160 -> 0.129 | AX160: =((AA160*10)-192.8)/103 -> 0.798 | AY160: =SUM((AE160-210.4)/70.89) -> -0.626
A161: 160 | B161: 306918 | C161: 2007-10-24 | D161: 2016-02-03T09:52:00 | E161: =(D161-C161)/365 -> 8.29 | F161: 9.0 | G161: =F161/12 -> 0.75 | H161: =E161-(F161/12) -> 7.54 | I161: 31.0 | J161: 140.0 | K161: 1.08 | L161: 1.79 | M161: 0.30 | N161: =I161/(J161*J161/10000) -> 15.82 | O161: 2 | P161: 2015-07-15 | Q161: 9.20 | R161: 0.81 | S161: 0.73 | T161: 5.03 | U161: 3.81 | V161: 9.57 | W161: 0.41 | X161: 4.87 | Y161: 1.65 | Z161: 2.83 | AA161: 62.8 | AB161: 0.952 | AC161: 5.77 | AD161: 45.5 | AE161: 313 | AF161: 10 | AG161: 3.1 | AH161: 40 | AI161: 0 | AJ161: 0 | AK161: 181 | AL161: 155 | AM161: =(AK161+AL161)/2-6.5 -> 161.50 | AN161: =SUM((AM161-160.6)/5.3) -> 0.17 | AO161: =R161-AN161 -> 0.64 | AP161: =(P161-C161)/365 -> 7.73 | AQ161: =Q161-AP161 -> 1.47 | AR161: =Q161/AP161 -> 1.19 | AS161: 3.3 | AT161: 0.40 | AU161: 0.50 | AV161: =(AT161+AU161)/2 -> 0.45 | AW161: =U161/V161 -> 0.398 | AX161: =((AA161*10)-240.4)/164.6 -> 2.355 | AY161: =SUM((AE161-261.66)/75.79) -> 0.677
A162: 161 | B162: 307195 | C162: 2008-07-29 | D162: 2016-02-06T12:21:00 | E162: =(D162-C162)/365 -> 7.53 | F162: 3.0 | G162: =F162/12 -> 0.25 | H162: =SUM(E162-(F162/12)) -> 7.28 | I162: 44.5 | J162: 142.0 | K162: 3.94 | L162: 3.06 | M162: 3.06 | N162: =I162/(J162*J162/10000) -> 22.07 | O162: 3 | P162: 2016-02-06 | Q162: 9.60 | R162: 0.72 | S162: 0.16 | T162: 1.25 | U162: 1.62 | V162: 12.34 | W162: 1.12 | X162: 4.08 | Y162: 1.09 | Z162: 2.78 | AA162: 89.7 | AB162: 0.618 | AC162: 17.9 | AD162: 11 | AE162: 219 | AF162: 10 | AG162: 2.8 | AH162: 39 | AI162: 0 | AJ162: 0 | AK162: 183 | AL162: 160 | AM162: =(AK162+AL162)/2-6.5 -> 165.00 | AN162: =SUM((AM162-160.6)/5.3) -> 0.83 | AO162: =R162-AN162 -> -0.11 | AP162: =(P162-C162)/365 -> 7.53 | AQ162: =Q162-AP162 -> 2.07 | AR162: =Q162/AP162 -> 1.28 | AS162: 3.0 | AT162: 0.68 | AU162: 0.40 | AV162: =(AT162+AU162)/2 -> 0.54 | AW162: =U162/V162 -> 0.131 | AX162: =((AA162*10)-192.8)/103 -> 6.837 | AY162: =SUM((AE162-210.4)/70.89) -> 0.121
A163: 162 | B163: 307861 | C163: 2007-11-12 | D163: 2016-02-15T11:09:00 | E163: =(D163-C163)/365 -> 8.27 | F163: 6.0 | G163: =F163/12 -> 0.50 | H163: =SUM(E163-(F163/12)) -> 7.77 | I163: 32.0 | J163: 129.4 | K163: 1.28 | L163: -0.10 | M163: 1.83 | N163: =I163/(J163*J163/10000) -> 19.11 | O163: 2 | P163: 2015-12-25 | Q163: 9.00 | R163: -0.81 | S163: 0.08 | T163: 1.18 | U163: 1.93 | V163: 9.53 | W163: 0.86 | X163: 4.73 | Y163: 1.47 | Z163: 2.9 | AA163: 65.1 | AB163: 0.353 | AC163: 8.1 | AD163: 56.2 | AE163: 241 | AF163: 10 | AG163: 3.15 | AH163: 39+4 | AI163: 0 | AJ163: 0 | AK163: 170 | AL163: 158 | AM163: =(AK163+AL163)/2-6.5 -> 157.50 | AN163: =SUM((AM163-160.6)/5.3) -> -0.58 | AO163: =R163-AN163 -> -0.23 | AP163: =(P163-C163)/365 -> 8.12 | AQ163: =Q163-AP163 -> 0.88 | AR163: =Q163/AP163 -> 1.11 | AS163: 3.2 | AT163: 0.56 | AU163: 0.42 | AV163: =(AT163+AU163)/2 -> 0.49 | AW163: =U163/V163 -> 0.203 | AX163: =((AA163*10)-240.4)/164.6 -> 2.495 | AY163: =SUM((AE163-261.66)/75.79) -> -0.273
A164: 163 | B164: 275054 | C164: 2008-05-27 | D164: 2016-02-17T11:32:00 | E164: =(D164-C164)/365 -> 7.73 | F164: 23.0 | G164: =F164/12 -> 1.92 | H164: =SUM(E164-(F164/12)) -> 5.82 | I164: 31.2 | J164: 125.5 | K164: 1.54 | L164: -0.26 | M164: 2.25 | N164: =I164/(J164*J164/10000) -> 19.81 | O164: 3 | P164: 2016-02-03 | Q164: 9.80 | R164: -2.17 | S164: 0.18 | T164: 3.96 | U164: 4.38 | V164: 15.40 | W164: 1.03 | X164: 3.68 | Y164: 0.85 | Z164: 2.51 | AA164: 23.4 | AB164: 0.31 | AC164: 4.97 | AD164: 53.6 | AE164: 171 | AF164: 10 | AG164: 3.8 | AH164: 39 | AI164: 0 | AJ164: 0 | AK164: 160 | AL164: 154 | AM164: =(AK164+AL164)/2-6.5 -> 150.50 | AN164: =SUM((AM164-160.6)/5.3) -> -1.91 | AO164: =R164-AN164 -> -0.26 | AP164: =(P164-C164)/365 -> 7.69 | AQ164: =Q164-AP164 -> 2.11 | AR164: =Q164/AP164 -> 1.27 | AS164: 3.3 | AT164: 0.44 | AU164: 0.34 | AV164: =(AT164+AU164)/2 -> 0.39 | AW164: =U164/V164 -> 0.284 | AX164: =((AA164*10)-192.8)/103 -> 0.400 | AY164: =SUM((AE164-210.4)/70.89) -> -0.556
A165: 164 | B165: 146087 | C165: 2008-05-19 | D165: 2016-02-20T14:57:00 | E165: =(D165-C165)/365 -> 7.76 | F165: 13.0 | G165: =F165/12 -> 1.08 | H165: =SUM(E165-(F165/12)) -> 6.68 | I165: 29.0 | J165: 139.0 | K165: 1.07 | L165: 2.22 | M165: -0.09 | N165: =I165/(J165*J165/10000) -> 15.01 | O165: 2 | P165: 2016-02-14 | Q165: 9.70 | R165: 0.13 | S165: 0.25 | T165: 3.15 | U165: 4.34 | V165: 17.65 | W165: 0.57 | X165: 3.84 | Y165: 1.38 | Z165: 2.32 | AA165: 8.5 | AB165: 0.3 | AC165: 8.39 | AD165: 64.1 | AE165: 196 | AF165: 10 | AG165: 3.2 | AH165: 40 | AI165: 0 | AJ165: 0 | AK165: 168 | AL165: 160 | AM165: =(AK165+AL165)/2-6.5 -> 157.50 | AN165: =SUM((AM165-160.6)/5.3) -> -0.58 | AO165: =R165-AN165 -> 0.71 | AP165: =(P165-C165)/365 -> 7.75 | AQ165: =Q165-AP165 -> 1.95 | AR165: =Q165/AP165 -> 1.25 | AS165: 3.3 | AT165: 2.88 | AU165: 2.47 | AV165: =(AT165+AU165)/2 -> 2.67 | AW165: =U165/V165 -> 0.246 | AX165: =((AA165*10)-192.8)/103 -> -1.047 | AY165: =SUM((AE165-210.4)/70.89) -> -0.203
A166: 165 | B166: 308724 | C166: 2008-11-07 | D166: 2016-02-23T11:47:00 | E166: =(D166-C166)/365 -> 7.30 | F166: 13.0 | G166: =F166/12 -> 1.08 | H166: =E166-(F166/12) -> 6.22 | I166: 31.2 | J166: 125.5 | K166: 1.90 | L166: 0.23 | M166: 2.36 | N166: =I166/(J166*J166/10000) -> 19.81 | O166: 2 | P166: 2016-02-23T11:47:00 | Q166: 9.80 | R166: -2.17 | S166: 0.43 | T166: 2.00 | U166: 3.67 | V166: 13.70 | W166: 1.13 | X166: 3.71 | Y166: 1.21 | Z166: 2.46 | AA166: 84.8 | AB166: 0.3 | AC166: 9.35 | AD166: 47.6 | AE166: 338 | AF166: 10 | AG166: 3.2 | AH166: 40 | AI166: 0 | AJ166: 0 | AK166: 163 | AL166: 150 | AM166: =(AK166+AL166)/2-6.5 -> 150.00 | AN166: =SUM((AM166-160.6)/5.3) -> -2.00 | AO166: =R166-AN166 -> -0.17 | AP166: =(P166-C166)/365 -> 7.30 | AQ166: =Q166-AP166 -> 2.50 | AR166: =Q166/AP166 -> 1.34 | AS166: 2.8 | AT166: 0.61 | AU166: 0.78 | AV166: =(AT166+AU166)/2 -> 0.70 | AW166: =U166/V166 -> 0.268 | AX166: =((AA166*10)-192.8)/103 -> 6.361 | AY166: =SUM((AE166-210.4)/70.89) -> 1.800
A167: 166 | B167: 267905 | C167: 2007-12-12 | D167: 2016-03-04 | E167: =(D167-C167)/365 -> 8.23 | F167: 25.0 | G167: =F167/12 -> 2.08 | H167: =E167-(F167/12) -> 6.15 | I167: 21.0 | J167: 125.0 | K167: -1.39 | L167: -0.88 | M167: -1.27 | N167: =I167/(J167*J167/10000) -> 13.44 | O167: 3 | P167: 2016-03-04 | Q167: 10.50 | R167: -2.83 | S167: 0.38 | T167: 3.24 | U167: 3.76 | V167: 18.29 | W167: 0.52 | X167: 3.54 | Y167: 1.28 | Z167: 2.14 | AA167: 55.0 | AB167: 0.446 | AC167: 1.09 | AD167: 77.7 | AE167: 172 | AF167: 10 | AG167: 2.9 | AH167: 40 | AI167: 0 | AJ167: 0 | AK167: 162 | AL167: 153 | AM167: =(AK167+AL167)/2-6.5 -> 151.00 | AN167: =SUM((AM167-160.6)/5.3) -> -1.81 | AO167: =R167-AN167 -> -1.02 | AP167: =(P167-C167)/365 -> 8.23 | AQ167: =Q167-AP167 -> 2.27 | AR167: =Q167/AP167 -> 1.28 | AS167: 3.6 | AT167: 1.03 | AU167: 0.52 | AV167: =(AT167+AU167)/2 -> 0.77 | AW167: =U167/V167 -> 0.206 | AX167: =((AA167*10)-240.4)/164.6 -> 1.881 | AY167: =SUM((AE167-261.66)/75.79) -> -1.183
A168: 167 | B168: 301669 | C168: 2008-07-18 | D168: 2016-03-26T12:56:00 | E168: =(D168-C168)/365 -> 7.69 | F168: 6.0 | G168: =F168/12 -> 0.50 | H168: =SUM(E168-(F168/12)) -> 7.19 | I168: 32.0 | J168: 132.0 | K168: 1.73 | L168: 1.01 | M168: 1.69 | N168: =I168/(J168*J168/10000) -> 18.37 | O168: 2 | P168: 2016-02-20 | Q168: 8.00 | R168: 0.66 | S168: 0.28 | T168: 2.28 | U168: 2.57 | V168: 13.15 | W168: 0.98 | X168: 3.1 | Y168: 1.14 | Z168: 1.79 | AA168: 22.6 | AB168: 0.3 | AC168: 5.37 | AD168: 80.7 | AE168: 179 | AF168: 10 | AG168: 3.2 | AH168: 40 | AI168: 0 | AJ168: 0 | AK168: 175 | AL168: 160 | AM168: =(AK168+AL168)/2-6.5 -> 161.00 | AN168: =SUM((AM168-160.6)/5.3) -> 0.08 | AO168: =R168-AN168 -> 0.58 | AP168: =(P168-C168)/365 -> 7.60 | AQ168: =Q168-AP168 -> 0.40 | AR168: =Q168/AP168 -> 1.05 | AS168: 3.3 | AT168: 0.52 | AU168: 1.45 | AV168: =(AT168+AU168)/2 -> 0.98 | AW168: =U168/V168 -> 0.195 | AX168: =((AA168*10)-192.8)/103 -> 0.322 | AY168: =SUM((AE168-210.4)/70.89) -> -0.443
A169: 168 | B169: 312792 | C169: 2008-04-30 | D169: 2016-03-30T12:59:00 | E169: =(D169-C169)/365 -> 7.92 | F169: 10.0 | G169: =F169/12 -> 0.83 | H169: =SUM(E169-(F169/12)) -> 7.09 | I169: 36.2 | J169: 137.2 | K169: 2.27 | L169: 1.70 | M169: 1.98 | N169: =I169/(J169*J169/10000) -> 19.23 | O169: 3 | P169: 2016-03-30 | Q169: 10.10 | R169: -0.55 | S169: 0.61 | T169: 2.35 | U169: 3.81 | V169: 15.10 | W169: 0.57 | X169: 3.76 | Y169: 1.23 | Z169: 2.38 | AA169: 82.2 | AB169: 0.3 | AC169: 5.85 | AD169: 45.4 | AE169: 301 | AF169: 10 | AG169: 3.4 | AH169: 40 | AI169: 0 | AJ169: 0 | AK169: 177 | AL169: 153 | AM169: =(AK169+AL169)/2-6.5 -> 158.50 | AN169: =SUM((AM169-160.6)/5.3) -> -0.40 | AO169: =R169-AN169 -> -0.15 | AP169: =(P169-C169)/365 -> 7.92 | AQ169: =Q169-AP169 -> 2.18 | AR169: =Q169/AP169 -> 1.28 | AS169: 3.5 | AT169: 0.65 | AU169: 0.36 | AV169: =(AT169+AU169)/2 -> 0.50 | AW169: =U169/V169 -> 0.252 | AX169: =((AA169*10)-192.8)/103 -> 6.109 | AY169: =SUM((AE169-210.4)/70.89) -> 1.278
A170: 169 | B170: 312797 | C170: 2008-09-01 | D170: 2016-03-30T14:26:00 | E170: =(D170-C170)/365 -> 7.58 | F170: 12.0 | G170: =F170/12 -> 1.00 | H170: =SUM(E170-(F170/12)) -> 6.58 | I170: 33.2 | J170: 123.9 | K170: 2.04 | L170: -0.41 | M170: 2.90 | N170: =I170/(J170*J170/10000) -> 21.63 | O170: 3 | P170: 2016-02-28 | Q170: 7.50 | R170: -0.32 | S170: 0.18 | T170: 1.52 | U170: 1.82 | V170: 13.07 | W170: 0.95 | X170: 3.96 | Y170: 1.34 | Z170: 2.25 | AA170: 66.1 | AB170: 0.647 | AC170: 8.07 | AD170: 28.2 | AE170: 174 | AF170: 10 | AG170: 2.8 | AH170: 40 | AI170: 0 | AJ170: 0 | AK170: 170 | AL170: 150 | AM170: =(AK170+AL170)/2-6.5 -> 153.50 | AN170: =SUM((AM170-160.6)/5.3) -> -1.34 | AO170: =R170-AN170 -> 1.02 | AP170: =(P170-C170)/365 -> 7.50 | AQ170: =Q170-AP170 -> 0.00 | AR170: =Q170/AP170 -> 1.00 | AS170: 3.3 | AT170: 1.16 | AU170: 0.86 | AV170: =(AT170+AU170)/2 -> 1.01 | AW170: =U170/V170 -> 0.139 | AX170: =((AA170*10)-192.8)/103 -> 4.546 | AY170: =SUM((AE170-210.4)/70.89) -> -0.513
A171: 170 | B171: 313378 | C171: 2008-06-24 | D171: 2016-04-05T13:47:00 | E171: =(D171-C171)/365 -> 7.79 | F171: 3.0 | G171: =F171/12 -> 0.25 | H171: =SUM(E171-(F171/12)) -> 7.54 | I171: 28.9 | J171: 133.0 | K171: 1.02 | L171: 1.09 | M171: 0.69 | N171: =I171/(J171*J171/10000) -> 16.34 | O171: 2 | P171: 2016-03-24 | Q171: 7.80 | R171: 1.07 | S171: 0.40 | T171: 3.69 | U171: 3.99 | V171: 23.86 | W171: 1.09 | X171: 4.21 | Y171: 1.1 | Z171: 3.08 | AA171: 32.1 | AB171: 0.3 | AC171: 4.44 | AD171: 110.6 | AE171: 137 | AF171: 10 | AG171: 4 | AH171: 39 | AI171: 0 | AJ171: 0 | AK171: 170 | AL171: 160 | AM171: =(AK171+AL171)/2-6.5 -> 158.50 | AN171: =SUM((AM171-160.6)/5.3) -> -0.40 | AO171: =R171-AN171 -> 1.47 | AP171: =(P171-C171)/365 -> 7.75 | AQ171: =Q171-AP171 -> 0.05 | AR171: =Q171/AP171 -> 1.01 | AS171: 2.9 | AT171: 1.84 | AU171: 1.04 | AV171: =(AT171+AU171)/2 -> 1.44 | AW171: =U171/V171 -> 0.167 | AX171: =((AA171*10)-192.8)/103 -> 1.245 | AY171: =SUM((AE171-210.4)/70.89) -> -1.035
A172: 171 | B172: 313529 | C172: 2008-03-03 | D172: 2016-04-06T17:19:00 | E172: =(D172-C172)/365 -> 8.10 | F172: 3.0 | G172: =F172/12 -> 0.25 | H172: =SUM(E172-(F172/12)) -> 7.85 | I172: 34.0 | J172: 133.0 | K172: 1.77 | L172: 0.74 | M172: 1.92 | N172: =I172/(J172*J172/10000) -> 19.22 | O172: 2 | P172: 2016-04-06 | Q172: 9.80 | R172: -0.94 | S172: 0.50 | T172: 4.58 | U172: 4.70 | V172: 11.01 | W172: 0.66 | X172: 3.43 | Y172: 0.97 | Z172: 2.32 | AA172: 33.1 | AB172: 0.371 | AC172: 13.24 | AD172: 33.7 | AE172: 267 | AF172: 10 | AG172: 4.2 | AH172: 39+6 | AI172: 0 | AJ172: 0 | AK172: 170 | AL172: 155 | AM172: =(AK172+AL172)/2-6.5 -> 156.00 | AN172: =SUM((AM172-160.6)/5.3) -> -0.87 | AO172: =R172-AN172 -> -0.07 | AP172: =(P172-C172)/365 -> 8.10 | AQ172: =Q172-AP172 -> 1.70 | AR172: =Q172/AP172 -> 1.21 | AS172: 3.7 | AT172: 1.06 | AU172: 1.06 | AV172: =(AT172+AU172)/2 -> 1.06 | AW172: =U172/V172 -> 0.427 | AX172: =((AA172*10)-240.4)/164.6 -> 0.550 | AY172: =SUM((AE172-261.66)/75.79) -> 0.070
A173: 172 | B173: 313533 | C173: 2007-12-22 | D173: 2016-04-06T19:21:00 | E173: =(D173-C173)/365 -> 8.30 | F173: 7.0 | G173: =F173/12 -> 0.58 | H173: =SUM(E173-(F173/12)) -> 7.71 | I173: 29.7 | J173: 134.0 | K173: 0.81 | L173: 0.70 | M173: 0.69 | N173: =I173/(J173*J173/10000) -> 16.54 | O173: 2 | P173: 2016-04-06 | Q173: 10.50 | R173: -1.42 | S173: 0.57 | T173: 4.11 | U173: 2.02 | V173: 20.16 | W173: 0.9 | X173: 5.3 | Y173: 1.52 | Z173: 3.79 | AA173: 106.0 | AB173: 0.634 | AC173: 25.39 | AD173: 66.1 | AE173: 303 | AF173: 10 | AG173: 3.25 | AH173: 38+4 | AI173: 0 | AJ173: 0 | AK173: 170 | AL173: 156 | AM173: =(AK173+AL173)/2-6.5 -> 156.50 | AN173: =SUM((AM173-160.6)/5.3) -> -0.77 | AO173: =R173-AN173 -> -0.65 | AP173: =(P173-C173)/365 -> 8.30 | AQ173: =Q173-AP173 -> 2.20 | AR173: =Q173/AP173 -> 1.27 | AS173: 3.7 | AT173: 1.46 | AU173: 1.22 | AV173: =(AT173+AU173)/2 -> 1.34 | AW173: =U173/V173 -> 0.100 | AX173: =((AA173*10)-240.4)/164.6 -> 4.979 | AY173: =SUM((AE173-261.66)/75.79) -> 0.545
A174: 173 | B174: 313623 | C174: 2009-06-22 | D174: 2016-04-07T17:04:00 | E174: =(D174-C174)/365 -> 6.80 | F174: 12.0 | G174: =F174/12 -> 1.00 | H174: =SUM(E174-(F174/12)) -> 5.80 | I174: 33.2 | J174: 136.7 | K174: 2.74 | L174: 3.06 | M174: 1.60 | N174: =I174/(J174*J174/10000) -> 17.77 | O174: 2 | P174: 2016-03-31 | Q174: 9.20 | R174: 0.26 | S174: 0.28 | T174: 0.83 | U174: 2.29 | V174: 10.43 | W174: 0.57 | X174: 2.8 | Y174: 1.19 | Z174: 1.7 | AA174: 30.4 | AB174: 0.3 | AC174: 6.13 | AD174: 65.3 | AE174: 195 | AF174: 10 | AG174: 3.4 | AH174: 40 | AI174: 0 | AJ174: 0 | AK174: 186 | AL174: 163 | AM174: =(AK174+AL174)/2-6.5 -> 168.00 | AN174: =SUM((AM174-160.6)/5.3) -> 1.40 | AO174: =R174-AN174 -> -1.14 | AP174: =(P174-C174)/365 -> 6.78 | AQ174: =Q174-AP174 -> 2.42 | AR174: =Q174/AP174 -> 1.36 | AS174: 4.0 | AT174: 1.97 | AU174: 2.74 | AV174: =(AT174+AU174)/2 -> 2.35 | AW174: =U174/V174 -> 0.220 | AX174: =((AA174*10)-192.8)/103 -> 1.080 | AY174: =SUM((AE174-188.29)/61.99) -> 0.108
A175: 174 | B175: 313807 | C175: 2008-09-03 | D175: 2016-04-09T15:53:00 | E175: =(D175-C175)/365 -> 7.60 | F175: 7.0 | G175: =F175/12 -> 0.58 | H175: =SUM(E175-(F175/12)) -> 7.02 | I175: 23.7 | J175: 128.4 | K175: -0.14 | L175: 0.43 | M175: -0.50 | N175: =I175/(J175*J175/10000) -> 14.38 | O175: 2 | P175: 2016-04-09 | Q175: 9.00 | R175: -0.98 | S175: 0.17 | T175: 3.41 | U175: 1.86 | V175: 13.09 | W175: 0.63 | X175: 4.56 | Y175: 1.53 | Z175: 2.99 | AA175: 42.0 | AB175: 0.3 | AC175: 4.08 | AD175: 77.5 | AE175: 211 | AF175: 10 | AG175: 3.1 | AH175: 40 | AI175: 0 | AJ175: 0 | AK175: 165 | AL175: 159 | AM175: =(AK175+AL175)/2-6.5 -> 155.50 | AN175: =SUM((AM175-160.6)/5.3) -> -0.96 | AO175: =R175-AN175 -> -0.02 | AP175: =(P175-C175)/365 -> 7.60 | AQ175: =Q175-AP175 -> 1.40 | AR175: =Q175/AP175 -> 1.18 | AS175: 3.0 | AT175: 2.15 | AU175: 1.49 | AV175: =(AT175+AU175)/2 -> 1.82 | AW175: =U175/V175 -> 0.142 | AX175: =((AA175*10)-192.8)/103 -> 2.206 | AY175: =SUM((AE175-210.4)/70.89) -> 0.008
A176: 175 | B176: 124765 | C176: 2009-02-13 | D176: 2016-04-10T14:08:00 | E176: =(D176-C176)/365 -> 7.16 | F176: 6.0 | G176: =F176/12 -> 0.50 | H176: =SUM(E176-(F176/12)) -> 6.66 | I176: 24.0 | J176: 119.5 | K176: 0.29 | L176: -0.79 | M176: 1.06 | N176: =I176/(J176*J176/10000) -> 16.81 | O176: 2 | P176: 2016-03-07 | Q176: 9.10 | R176: -2.63 | S176: 0.35 | T176: 4.21 | U176: 2.52 | V176: 13.37 | W176: 1.03 | X176: 3.48 | Y176: 0.95 | Z176: 2.43 | AA176: 12.8 | AB176: 0.3 | AC176: 8.23 | AD176: 101.7 | AE176: 182 | AF176: 10 | AG176: 2.5 | AH176: 37 | AI176: 0 | AJ176: 0 | AK176: 165 | AL176: 149 | AM176: =(AK176+AL176)/2-6.5 -> 150.50 | AN176: =SUM((AM176-160.6)/5.3) -> -1.91 | AO176: =R176-AN176 -> -0.72 | AP176: =(P176-C176)/365 -> 7.07 | AQ176: =Q176-AP176 -> 2.03 | AR176: =Q176/AP176 -> 1.29 | AS176: 3.5 | AT176: 0.94 | AU176: 0.84 | AV176: =(AT176+AU176)/2 -> 0.89 | AW176: =U176/V176 -> 0.188 | AX176: =((AA176*10)-192.8)/103 -> -0.629 | AY176: =SUM((AE176-210.4)/70.89) -> -0.401
A177: 176 | B177: 313953 | C177: 2009-10-28 | D177: 2016-04-10T16:59:00 | E177: =(D177-C177)/365 -> 6.46 | F177: 3.0 | G177: =F177/12 -> 0.25 | H177: =SUM(E177-(F177/12)) -> 6.21 | I177: 23.8 | J177: 125.3 | K177: 0.80 | L177: 1.27 | M177: 0.13 | N177: =I177/(J177*J177/10000) -> 15.16 | O177: 3 | P177: 2016-03-11 | Q177: 8.40 | R177: -0.99 | S177: 0.11 | T177: 1.76 | U177: 4.03 | V177: 13.47 | W177: 0.83 | X177: 2.93 | Y177: 0.98 | Z177: 1.96 | AA177: 16.4 | AB177: 0.3 | AC177: 10.06 | AD177: 48.4 | AE177: 348 | AF177: 10 | AG177: 3.2 | AH177: 40 | AI177: 0 | AJ177: 0 | AK177: 178 | AL177: 156 | AM177: =(AK177+AL177)/2-6.5 -> 160.50 | AN177: =SUM((AM177-160.6)/5.3) -> -0.02 | AO177: =R177-AN177 -> -0.97 | AP177: =(P177-C177)/365 -> 6.37 | AQ177: =Q177-AP177 -> 2.03 | AR177: =Q177/AP177 -> 1.32 | AS177: 3.5 | AT177: 1.13 | AU177: 1.43 | AV177: =(AT177+AU177)/2 -> 1.28 | AW177: =U177/V177 -> 0.299 | AX177: =((AA177*10)-192.8)/103 -> -0.280 | AY177: =SUM((AE177-188.29)/61.99) -> 2.576
A178: 177 | B178: 314005 | C178: 2008-05-02 | D178: 2016-04-11T10:09:00 | E178: =(D178-C178)/365 -> 7.95 | F178: 3.0 | G178: =F178/12 -> 0.25 | H178: =SUM(E178-(F178/12)) -> 7.70 | I178: 20.4 | J178: 127.0 | K178: -1.41 | L178: -0.21 | M178: -1.92 | N178: =I178/(J178*J178/10000) -> 12.65 | O178: 2 | P178: 2016-03-26 | Q178: 8.90 | R178: -1.14 | S178: 0.28 | T178: 0.75 | U178: 1.96 | V178: 10.75 | W178: 1.2 | X178: 3.91 | Y178: 0.93 | Z178: 2.94 | AA178: 23.0 | AB178: 0.3 | AC178: 9.42 | AD178: 67.6 | AE178: 167 | AF178: 10 | AG178: 3 | AH178: 40 | AI178: 0 | AJ178: 0 | AK178: 169 | AL178: 161 | AM178: =(AK178+AL178)/2-6.5 -> 158.50 | AN178: =SUM((AM178-160.6)/5.3) -> -0.40 | AO178: =R178-AN178 -> -0.74 | AP178: =(P178-C178)/365 -> 7.90 | AQ178: =Q178-AP178 -> 1.00 | AR178: =Q178/AP178 -> 1.13 | AS178: 2.6 | AT178: 1.16 | AU178: 1.41 | AV178: =(AT178+AU178)/2 -> 1.29 | AW178: =U178/V178 -> 0.182 | AX178: =((AA178*10)-192.8)/103 -> 0.361 | AY178: =SUM((AE178-210.4)/70.89) -> -0.612
A179: 178 | B179: 314036 | C179: 2008-05-30 | D179: 2016-04-11T10:36:00 | E179: =(D179-C179)/365 -> 7.87 | F179: 3.0 | G179: =F179/12 -> 0.25 | H179: =SUM(E179-(F179/12)) -> 7.62 | I179: 22.0 | J179: 126.0 | K179: -0.83 | L179: -0.32 | M179: -0.91 | N179: =I179/(J179*J179/10000) -> 13.86 | O179: 3 | P179: 2016-03-26 | Q179: 8.90 | R179: -1.31 | S179: 0.10 | T179: 1.31 | U179: 2.11 | V179: 11.42 | W179: 0.67 | X179: 3.84 | Y179: 1.09 | Z179: 2.69 | AA179: 26.7 | AB179: 0.3 | AC179: 2.01 | AD179: 114.3 | AE179: 164 | AF179: 10 | AG179: 2.5 | AH179: 38 | AI179: 0 | AJ179: 0 | AK179: 165 | AL179: 157 | AM179: =(AK179+AL179)/2-6.5 -> 154.50 | AN179: =SUM((AM179-160.6)/5.3) -> -1.15 | AO179: =R179-AN179 -> -0.16 | AP179: =(P179-C179)/365 -> 7.83 | AQ179: =Q179-AP179 -> 1.07 | AR179: =Q179/AP179 -> 1.14 | AS179: 3.4 | AT179: 1.62 | AU179: 3.20 | AV179: =(AT179+AU179)/2 -> 2.41 | AW179: =U179/V179 -> 0.185 | AX179: =((AA179*10)-192.8)/103 -> 0.720 | AY179: =SUM((AE179-210.4)/70.89) -> -0.655
A180: 179 | B180: 314194 | C180: 2010-12-06 | D180: 2016-04-12T13:58:00 | E180: =(D180-C180)/365 -> 5.36 | F180: 3.0 | G180: =F180/12 -> 0.25 | H180: =E180-(F180/12) -> 5.11 | I180: 16.8 | J180: 106.7 | K180: -1.01 | L180: -1.35 | M180: -0.16 | N180: =I180/(J180*J180/10000) -> 14.76 | O180: 2 | P180: 2016-04-06 | Q180: 7.00 | R180: -2.74 | S180: 0.39 | T180: 0.83 | U180: 0.39 | V180: 2.75 | W180: 1.05 | X180: 3.64 | Y180: 0.89 | Z180: 2.55 | AA180: 9.5 | AB180: 0.3 | AC180: 4.34 | AD180: 137.5 | AE180: 138 | AF180: 10 | AG180: 2.8 | AH180: 40 | AI180: 0 | AJ180: 0 | AK180: 163 | AL180: 156 | AM180: =(AK180+AL180)/2-6.5 -> 153.00 | AN180: =SUM((AM180-160.6)/5.3) -> -1.43 | AO180: =R180-AN180 -> -1.31 | AP180: =(P180-C180)/365 -> 5.34 | AQ180: =Q180-AP180 -> 1.66 | AR180: =Q180/AP180 -> 1.31 | AS180: 4.4 | AT180: 0.78 | AU180: 0.77 | AV180: =(AT180+AU180)/2 -> 0.78 | AW180: =U180/V180 -> 0.142 | AX180: =((AA180*10)-92.9)/72.1 -> 0.029 | AY180: =SUM((AE180-188.29)/61.99) -> -0.811
A181: 180 | B181: 314400 | C181: 2008-10-13 | D181: 2016-04-14T13:59:00 | E181: =(D181-C181)/365 -> 7.51 | F181: 6.0 | G181: =F181/12 -> 0.50 | H181: =SUM(E181-(F181/12)) -> 7.01 | I181: 34.4 | J181: 128.6 | K181: 2.31 | L181: 0.58 | M181: 2.65 | N181: =I181/(J181*J181/10000) -> 20.80 | O181: 3 | P181: 2016-03-25 | Q181: 9.00 | R181: -0.95 | S181: 0.08 | T181: 3.52 | U181: 2.36 | V181: 14.92 | W181: 1.18 | X181: 4.31 | Y181: 1.47 | Z181: 2.78 | AA181: 24.8 | AB181: 0.3 | AC181: 3.72 | AD181: 35.5 | AE181: 187 | AF181: 10 | AG181: 3.6 | AH181: 40 | AI181: 0 | AJ181: 0 | AK181: 160 | AL181: 155 | AM181: =(AK181+AL181)/2-6.5 -> 151.00 | AN181: =SUM((AM181-160.6)/5.3) -> -1.81 | AO181: =R181-AN181 -> 0.86 | AP181: =(P181-C181)/365 -> 7.45 | AQ181: =Q181-AP181 -> 1.55 | AR181: =Q181/AP181 -> 1.21 | AS181: 3.3 | AT181: 0.89 | AU181: 0.95 | AV181: =(AT181+AU181)/2 -> 0.92 | AW181: =U181/V181 -> 0.158 | AX181: =((AA181*10)-192.8)/103 -> 0.536 | AY181: =SUM((AE181-210.4)/70.89) -> -0.330
A182: 181 | B182: 315162 | C182: 2007-12-27 | D182: 2016-04-21T09:14:00 | E182: =(D182-C182)/365 -> 8.32 | F182: 12.0 | G182: =F182/12 -> 1.00 | H182: =SUM(E182-(F182/12)) -> 7.32 | I182: 48.1 | J182: 145.0 | K182: 3.57 | L182: 2.63 | M182: 3.00 | N182: =I182/(J182*J182/10000) -> 22.88 | O182: 3 | P182: 2016-04-13 | Q182: 11.20 | R182: -0.43 | S182: 0.59 | T182: 8.15 | U182: 4.03 | V182: 18.45 | W182: 1.69 | X182: 3.66 | Y182: 0.92 | Z182: 2.74 | AA182: 100.3 | AB182: 1.06 | AC182: 16.62 | AD182: 50.6 | AE182: 307 | AF182: 10 | AG182: 3.5 | AH182: 40 | AI182: 0 | AJ182: 0 | AK182: 173 | AL182: 164 | AM182: =(AK182+AL182)/2-6.5 -> 162.00 | AN182: =SUM((AM182-160.6)/5.3) -> 0.26 | AO182: =R182-AN182 -> -0.69 | AP182: =(P182-C182)/365 -> 8.30 | AQ182: =Q182-AP182 -> 2.90 | AR182: =Q182/AP182 -> 1.35 | AS182: 3.8 | AT182: 0.69 | AU182: 1.76 | AV182: =(AT182+AU182)/2 -> 1.23 | AW182: =U182/V182 -> 0.218 | AX182: =((AA182*10)-240.4)/164.6 -> 4.633 | AY182: =SUM((AE182-261.66)/75.79) -> 0.598
A183: 182 | B183: 315313 | C183: 2008-04-25 | D183: 2016-04-22T13:50:00 | E183: =(D183-C183)/365 -> 8.00 | F183: 3.0 | G183: =F183/12 -> 0.25 | H183: =SUM(E183-(F183/12)) -> 7.75 | I183: 21.0 | J183: 118.5 | K183: -1.24 | L183: -1.87 | M183: -0.17 | N183: =I183/(J183*J183/10000) -> 14.95 | O183: 2 | P183: 2016-04-09 | Q183: 8.10 | R183: -1.97 | S183: 0.12 | T183: 1.46 | U183: 4.98 | V183: 15.96 | W183: 0.4 | X183: 4.79 | Y183: 2.07 | Z183: 2.83 | AA183: 17.8 | AB183: 0.3 | AC183: 3.84 | AD183: 144.2 | AE183: 121 | AF183: 10 | AG183: 2.5 | AH183: 40 | AI183: 0 | AJ183: 0 | AK183: 170 | AL183: 163 | AM183: =(AK183+AL183)/2-6.5 -> 160.00 | AN183: =SUM((AM183-160.6)/5.3) -> -0.11 | AO183: =R183-AN183 -> -1.86 | AP183: =(P183-C183)/365 -> 7.96 | AQ183: =Q183-AP183 -> 0.14 | AR183: =Q183/AP183 -> 1.02 | AS183: 2.5 | AT183: 1.18 | AU183: 0.88 | AV183: =(AT183+AU183)/2 -> 1.03 | AW183: =U183/V183 -> 0.312 | AX183: =((AA183*10)-240.4)/164.6 -> -0.379 | AY183: =SUM((AE183-261.66)/75.79) -> -1.856
A184: 183 | B184: 315533 | C184: 2008-10-31 | D184: 2016-04-24T12:37:00 | E184: =(D184-C184)/365 -> 7.49 | F184: 3.0 | G184: =F184/12 -> 0.25 | H184: =SUM(E184-(F184/12)) -> 7.24 | I184: 25.3 | J184: 126.5 | K184: 0.39 | L184: 0.20 | M184: 0.44 | N184: =I184/(J184*J184/10000) -> 15.81 | O184: 2 | P184: 2016-04-02 | Q184: 9.00 | R184: -1.31 | S184: 0.11 | T184: 2.23 | U184: 4.10 | V184: 16.96 | W184: 0.52 | X184: 3.69 | Y184: 1.57 | Z184: 2.18 | AA184: 128.5 | AB184: 0.598 | AC184: 3.5 | AD184: 78.9 | AE184: 175 | AF184: 10 | AG184: 3 | AH184: 37 | AI184: 0 | AJ184: 0 | AK184: 165 | AL184: 156 | AM184: =(AK184+AL184)/2-6.5 -> 154.00 | AN184: =SUM((AM184-160.6)/5.3) -> -1.25 | AO184: =R184-AN184 -> -0.06 | AP184: =(P184-C184)/365 -> 7.42 | AQ184: =Q184-AP184 -> 1.58 | AR184: =Q184/AP184 -> 1.21 | AS184: 3.0 | AT184: 0.49 | AU184: 0.40 | AV184: =(AT184+AU184)/2 -> 0.45 | AW184: =U184/V184 -> 0.242 | AX184: =((AA184*10)-192.8)/103 -> 10.604 | AY184: =SUM((AE184-210.4)/70.89) -> -0.499
A185: 184 | B185: 133424 | C185: 2009-10-22 | D185: 2016-04-25T12:39:00 | E185: =(D185-C185)/365 -> 6.51 | F185: 8.0 | G185: =F185/12 -> 0.67 | H185: =E185-(F185/12) -> 5.85 | I185: 26.4 | J185: 125.0 | K185: 1.48 | L185: 1.14 | M185: 1.20 | N185: =I185/(J185*J185/10000) -> 16.90 | O185: 2 | P185: 2016-04-20 | Q185: 6.50 | R185: 1.16 | S185: 0.30 | T185: 3.09 | U185: 3.59 | V185: 16.04 | W185: 0.99 | X185: 3.09 | Y185: 0.86 | Z185: 1.99 | AA185: 13.9 | AB185: 0.3 | AC185: 5.42 | AD185: 39.3 | AE185: 224 | AF185: 10 | AG185: 3.75 | AH185: 40 | AI185: 0 | AJ185: 0 | AK185: 169 | AL185: 154 | AM185: =(AK185+AL185)/2-6.5 -> 155.00 | AN185: =SUM((AM185-160.6)/5.3) -> -1.06 | AO185: =R185-AN185 -> 2.22 | AP185: =(P185-C185)/365 -> 6.50 | AQ185: =Q185-AP185 -> 0.00 | AR185: =Q185/AP185 -> 1.00 | AS185: 3.2 | AT185: 0.39 | AU185: 0.53 | AV185: =(AT185+AU185)/2 -> 0.46 | AW185: =U185/V185 -> 0.224 | AX185: =((AA185*10)-192.8)/103 -> -0.522 | AY185: =SUM((AE185-188.29)/61.99) -> 0.576
A186: 185 | B186: 316534 | C186: 2008-11-10 | D186: 2016-05-03T13:29:00 | E186: =(D186-C186)/365 -> 7.48 | F186: 3.0 | G186: =F186/12 -> 0.25 | H186: =SUM(E186-(F186/12)) -> 7.23 | I186: 29.0 | J186: 125.8 | K186: 1.28 | L186: 0.07 | M186: 1.72 | N186: =I186/(J186*J186/10000) -> 18.32 | O186: 2 | P186: 2016-04-21 | Q186: 9.80 | R186: -2.12 | S186: 0.08 | T186: 2.86 | U186: 3.06 | V186: 21.70 | W186: 0.58 | X186: 3.9 | Y186: 1.36 | Z186: 2.53 | AA186: 53.0 | AB186: 0.38 | AC186: 3.07 | AD186: 82.7 | AE186: 268 | AF186: 21 | AG186: 3.1 | AH186: 40 | AI186: 0 | AJ186: 0 | AK186: 178 | AL186: 166 | AM186: =(AK186+AL186)/2-6.5 -> 165.50 | AN186: =SUM((AM186-160.6)/5.3) -> 0.92 | AO186: =R186-AN186 -> -3.04 | AP186: =(P186-C186)/365 -> 7.45 | AQ186: =Q186-AP186 -> 2.35 | AR186: =Q186/AP186 -> 1.32 | AS186: 3.6 | AT186: 1.06 | AU186: 1.46 | AV186: =(AT186+AU186)/2 -> 1.26 | AW186: =U186/V186 -> 0.141 | AX186: =((AA186*10)-192.8)/103 -> 3.274 | AY186: =SUM((AE186-210.4)/70.89) -> 0.813
A187: 186 | B187: 286950 | C187: 2010-05-28 | D187: 2016-05-08T12:12:00 | E187: =(D187-C187)/365 -> 5.95 | F187: 13.0 | G187: =F187/12 -> 1.08 | H187: =SUM(E187-(F187/12)) -> 4.87 | I187: 21.3 | J187: 121.5 | K187: 0.38 | L187: 1.13 | M187: -0.40 | N187: =I187/(J187*J187/10000) -> 14.43 | O187: 2 | P187: 2016-03-28 | Q187: 8.10 | R187: -1.40 | S187: 0.26 | T187: 2.35 | U187: 2.77 | V187: 22.40 | W187: 1.45 | X187: 3.13 | Y187: 0.82 | Z187: 2.11 | AA187: 3.3 | AB187: 0.3 | AC187: 2.19 | AD187: 60.7 | AE187: 187 | AF187: 25 | AG187: 3.4 | AH187: 40 | AI187: 0 | AJ187: 0 | AK187: 164 | AL187: 158 | AM187: =(AK187+AL187)/2-6.5 -> 154.50 | AN187: =SUM((AM187-160.6)/5.3) -> -1.15 | AO187: =R187-AN187 -> -0.25 | AP187: =(P187-C187)/365 -> 5.84 | AQ187: =Q187-AP187 -> 2.26 | AR187: =Q187/AP187 -> 1.39 | AS187: 3.3 | AT187: 0.79 | AU187: 0.76 | AV187: =(AT187+AU187)/2 -> 0.78 | AW187: =U187/V187 -> 0.124 | AX187: =((AA187*10)-92.9)/72.1 -> -0.831 | AY187: =SUM((AE187-188.29)/61.99) -> -0.021
A188: 187 | B188: 317241 | C188: 2009-09-28 | D188: 2016-05-09T14:07:00 | E188: =(D188-C188)/365 -> 6.62 | F188: 6.0 | G188: =F188/12 -> 0.50 | H188: =SUM(E188-(F188/12)) -> 6.12 | I188: 17.9 | J188: 118.6 | K188: -1.46 | L188: -0.32 | M188: -1.86 | N188: =I188/(J188*J188/10000) -> 12.73 | O188: 2 | P188: 2016-04-24 | Q188: 7.80 | R188: -1.66 | S188: 0.31 | T188: 3.12 | U188: 4.99 | V188: 21.10 | W188: 0.86 | X188: 3.13 | Y188: 0.96 | Z188: 2.08 | AA188: 5.7 | AB188: 0.3 | AC188: 6.89 | AD188: 76.6 | AE188: 311 | AF188: 10 | AG188: 3 | AH188: 39 | AI188: 0 | AJ188: 0 | AK188: 171 | AL188: 155 | AM188: =(AK188+AL188)/2-6.5 -> 156.50 | AN188: =SUM((AM188-160.6)/5.3) -> -0.77 | AO188: =R188-AN188 -> -0.89 | AP188: =(P188-C188)/365 -> 6.58 | AQ188: =Q188-AP188 -> 1.22 | AR188: =Q188/AP188 -> 1.19 | AS188: 3.1 | AT188: 1.00 | AU188: 0.77 | AV188: =(AT188+AU188)/2 -> 0.88 | AW188: =U188/V188 -> 0.236 | AX188: =((AA188*10)-192.8)/103 -> -1.318 | AY188: =SUM((AE188-188.29)/61.99) -> 1.980
A189: 188 | B189: 142099 | C189: 2008-08-05 | D189: 2016-05-12T09:31:00 | E189: =(D189-C189)/365 -> 7.77 | F189: 3.0 | G189: =F189/12 -> 0.25 | H189: =SUM(E189-(F189/12)) -> 7.52 | I189: 33.2 | J189: 141.0 | K189: 1.89 | L189: 2.57 | M189: 0.88 | N189: =I189/(J189*J189/10000) -> 16.70 | O189: 2 | P189: 2016-02-23 | Q189: 10.50 | R189: -0.34 | S189: 0.28 | T189: 2.94 | U189: 3.80 | V189: 13.01 | W189: 0.65 | X189: 4.61 | Y189: 1.39 | Z189: 2.96 | AA189: 66.2 | AB189: 0.556 | AC189: 8.18 | AD189: 53.6 | AE189: 334 | AF189: 22 | AG189: 2.9 | AH189: 40 | AI189: 0 | AJ189: 0 | AK189: 178 | AL189: 162 | AM189: =(AK189+AL189)/2-6.5 -> 163.50 | AN189: =SUM((AM189-160.6)/5.3) -> 0.55 | AO189: =R189-AN189 -> -0.89 | AP189: =(P189-C189)/365 -> 7.56 | AQ189: =Q189-AP189 -> 2.94 | AR189: =Q189/AP189 -> 1.39 | AS189: 4.2 | AT189: 0.84 | AU189: 0.64 | AV189: =(AT189+AU189)/2 -> 0.74 | AW189: =U189/V189 -> 0.292 | AX189: =((AA189*10)-192.8)/103 -> 4.555 | AY189: =SUM((AE189-210.4)/70.89) -> 1.744
A190: 189 | B190: 317774 | C190: 2008-12-29 | D190: 2016-05-14T13:29:00 | E190: =(D190-C190)/365 -> 7.38 | F190: 10.0 | G190: =F190/12 -> 0.83 | H190: =SUM(E190-(F190/12)) -> 6.55 | I190: 27.6 | J190: 130.0 | K190: 1.05 | L190: 1.00 | M190: 0.76 | N190: =I190/(J190*J190/10000) -> 16.33 | O190: 3 | P190: 2015-10-17 | Q190: 10.40 | R190: -1.96 | S190: 0.15 | T190: 2.77 | U190: 3.81 | V190: 12.66 | W190: 0.54 | X190: 4.34 | Y190: 1.62 | Z190: 2.6 | AA190: 52.5 | AB190: 0.372 | AC190: 6.37 | AD190: 48.6 | AE190: 209 | AF190: 10 | AG190: 3.1 | AH190: 39 | AI190: 0 | AJ190: 0 | AK190: 167 | AL190: 158 | AM190: =(AK190+AL190)/2-6.5 -> 156.00 | AN190: =SUM((AM190-160.6)/5.3) -> -0.87 | AO190: =R190-AN190 -> -1.09 | AP190: =(P190-C190)/365 -> 6.80 | AQ190: =Q190-AP190 -> 3.60 | AR190: =Q190/AP190 -> 1.53 | AS190: 2.9 | AT190: 0.55 | AU190: 0.56 | AV190: =(AT190+AU190)/2 -> 0.56 | AW190: =U190/V190 -> 0.301 | AX190: =((AA190*10)-192.8)/103 -> 3.225 | AY190: =SUM((AE190-210.4)/70.89) -> -0.020
A191: 190 | B191: 317903 | C191: 2009-03-21 | D191: 2016-05-15T13:36:00 | E191: =(D191-C191)/365 -> 7.16 | F191: 3.0 | G191: =F191/12 -> 0.25 | H191: =SUM(E191-(F191/12)) -> 6.91 | I191: 28.6 | J191: 126.5 | K191: 1.46 | L191: 0.60 | M191: 1.58 | N191: =I191/(J191*J191/10000) -> 17.87 | O191: 2 | P191: 2016-05-05 | Q191: 8.60 | R191: -0.95 | S191: 0.02 | T191: 1.90 | U191: 4.63 | V191: 16.29 | W191: 0.57 | X191: 4.26 | Y191: 1.2 | Z191: 2.84 | AA191: 53.6 | AB191: 0.319 | AC191: 10.21 | AD191: 81.2 | AE191: 191 | AF191: 10 | AG191: 3.7 | AH191: 40 | AI191: 0 | AJ191: 0 | AK191: 168 | AL191: 155 | AM191: =(AK191+AL191)/2-6.5 -> 155.00 | AN191: =SUM((AM191-160.6)/5.3) -> -1.06 | AO191: =R191-AN191 -> 0.11 | AP191: =(P191-C191)/365 -> 7.13 | AQ191: =Q191-AP191 -> 1.47 | AR191: =Q191/AP191 -> 1.21 | AS191: 3.6 | AT191: 0.84 | AU191: 0.47 | AV191: =(AT191+AU191)/2 -> 0.65 | AW191: =U191/V191 -> 0.284 | AX191: =((AA191*10)-192.8)/103 -> 3.332 | AY191: =SUM((AE191-210.4)/70.89) -> -0.274
A192: 191 | B192: 318023 | C192: 2009-05-21 | D192: 2016-05-16T12:51:00 | E192: =(D192-C192)/365 -> 6.99 | F192: 3.0 | G192: =F192/12 -> 0.25 | H192: =E192-(F192/12) -> 6.74 | I192: 18.3 | J192: 115.5 | K192: -1.56 | L192: -1.41 | M192: -0.96 | N192: =I192/(J192*J192/10000) -> 13.72 | O192: 2 | P192: 2016-04-29 | Q192: 7.90 | R192: -2.36 | S192: 0.08 | T192: 1.14 | U192: 3.84 | V192: 11.17 | W192: 0.5 | X192: 3.48 | Y192: 1.43 | Z192: 2.21 | AA192: 2.4 | AB192: 0.3 | AC192: 1.85 | AD192: 82.5 | AE192: 152 | AF192: 10 | AG192: 3.4 | AH192: 41 | AI192: 0 | AJ192: 0 | AK192: 160 | AL192: 152 | AM192: =(AK192+AL192)/2-6.5 -> 149.50 | AN192: =SUM((AM192-160.6)/5.3) -> -2.09 | AO192: =R192-AN192 -> -0.27 | AP192: =(P192-C192)/365 -> 6.95 | AQ192: =Q192-AP192 -> 0.95 | AR192: =Q192/AP192 -> 1.14 | AS192: 3.4 | AT192: 0.74 | AU192: 0.27 | AV192: =(AT192+AU192)/2 -> 0.51 | AW192: =U192/V192 -> 0.344 | AX192: =((AA192*10)-192.8)/103 -> -1.639 | AY192: =SUM((AE192-188.29)/61.99) -> -0.585
A193: 192 | B193: 318031 | C193: 2011-01-13 | D193: 2016-05-16T13:58:00 | E193: =(D193-C193)/365 -> 5.34 | F193: 3.0 | G193: =F193/12 -> 0.25 | H193: =E193-(F193/12) -> 5.09 | I193: 19.6 | J193: 114.0 | K193: 0.26 | L193: 0.35 | M193: 0.09 | N193: =I193/(J193*J193/10000) -> 15.08 | O193: 2 | P193: 2016-05-02 | Q193: 6.30 | R193: -0.91 | S193: 0.13 | T193: 1.95 | U193: 2.48 | V193: 16.07 | W193: 0.73 | X193: 4.05 | Y193: 1.05 | Z193: 2.86 | AA193: 6.3 | AB193: 0.3 | AC193: 4.53 | AD193: 87.8 | AE193: 101 | AF193: 10 | AG193: 3.2 | AH193: 40 | AI193: 0 | AJ193: 0 | AK193: 178 | AL193: 164 | AM193: =(AK193+AL193)/2-6.5 -> 164.50 | AN193: =SUM((AM193-160.6)/5.3) -> 0.74 | AO193: =R193-AN193 -> -1.65 | AP193: =(P193-C193)/365 -> 5.30 | AQ193: =Q193-AP193 -> 1.00 | AR193: =Q193/AP193 -> 1.19 | AS193: 3.1 | AT193: 2.10 | AU193: 2.00 | AV193: =(AT193+AU193)/2 -> 2.05 | AW193: =U193/V193 -> 0.154 | AX193: =((AA193*10)-92.9)/72.1 -> -0.415 | AY193: =SUM((AE193-188.29)/61.99) -> -1.408
A194: 193 | B194: 318040 | C194: 2010-02-14 | D194: 2016-05-16T16:04:00 | E194: =(D194-C194)/365 -> 6.26 | F194: 13.0 | G194: =F194/12 -> 1.08 | H194: =SUM(E194-(F194/12)) -> 5.17 | I194: 20.1 | J194: 115.5 | K194: -0.29 | L194: -0.54 | M194: 0.08 | N194: =I194/(J194*J194/10000) -> 15.07 | O194: 2 | P194: 2017-08-27 | Q194: 10.20 | R194: -1.90 | S194: 0.97 | T194: 2.74 | U194: 3.71 | V194: 12.91 | W194: 0.85 | X194: 5.21 | Y194: 2.15 | Z194: 3.09 | AA194: 28.0 | AB194: 0.365 | AC194: 4.97 | AD194: 91.5 | AE194: 227 | AF194: 10 | AG194: 2.7 | AH194: 39+6 | AI194: 0 | AJ194: 0 | AK194: 176 | AL194: 158 | AM194: =(AK194+AL194)/2-6.5 -> 160.50 | AN194: =SUM((AM194-160.6)/5.3) -> -0.02 | AO194: =R194-AN194 -> -1.88 | AP194: =(P194-C194)/365 -> 7.54 | AQ194: =Q194-AP194 -> 2.66 | AR194: =Q194/AP194 -> 1.35 | AS194: 2.9 | AT194: 0.79 | AU194: 0.89 | AV194: =(AT194+AU194)/2 -> 0.84 | AW194: =U194/V194 -> 0.287 | AX194: =((AA194*10)-192.8)/103 -> 0.847 | AY194: =SUM((AE194-188.29)/61.99) -> 0.624
A195: 194 | B195: 318792 | C195: 2010-02-25 | D195: 2016-05-23T10:38:00 | E195: =(D195-C195)/365 -> 6.25 | F195: 10.0 | G195: =F195/12 -> 0.83 | H195: =SUM(E195-(F195/12)) -> 5.41 | I195: 26.5 | J195: 126.9 | K195: 1.73 | L195: 1.88 | M195: 0.97 | N195: =I195/(J195*J195/10000) -> 16.46 | O195: 3 | P195: 2016-05-20 | Q195: 8.40 | R195: -0.69 | S195: 0.19 | T195: 3.05 | U195: 3.37 | V195: 11.08 | W195: 0.48 | X195: 3.8 | Y195: 1.22 | Z195: 2.27 | AA195: 11.5 | AB195: 0.3 | AC195: 7.35 | AD195: 58.4 | AE195: 195 | AF195: 10 | AG195: 3.85 | AH195: 40 | AI195: 0 | AJ195: 0 | AK195: 173 | AL195: 170 | AM195: =(AK195+AL195)/2-6.5 -> 165.00 | AN195: =SUM((AM195-160.6)/5.3) -> 0.83 | AO195: =R195-AN195 -> -1.52 | AP195: =(P195-C195)/365 -> 6.24 | AQ195: =Q195-AP195 -> 2.16 | AR195: =Q195/AP195 -> 1.35 | AS195: 3.1 | AT195: 1.68 | AU195: 2.13 | AV195: =(AT195+AU195)/2 -> 1.91 | AW195: =U195/V195 -> 0.304 | AX195: =((AA195*10)-192.8)/103 -> -0.755 | AY195: =SUM((AE195-188.29)/61.99) -> 0.108
A196: 195 | B196: 319792 | C196: 2008-07-09 | D196: 2016-05-31T12:04:00 | E196: =(D196-C196)/365 -> 7.90 | F196: 6.0 | G196: =F196/12 -> 0.50 | H196: =SUM(E196-(F196/12)) -> 7.40 | I196: 25.6 | J196: 130.0 | K196: 0.12 | L196: 0.40 | M196: -0.02 | N196: =I196/(J196*J196/10000) -> 15.15 | O196: 2 | P196: 2016-05-28 | Q196: 11.00 | R196: -2.51 | S196: 0.64 | T196: 2.55 | U196: 2.39 | V196: 10.52 | W196: 0.61 | X196: 3.62 | Y196: 1.43 | Z196: 2 | AA196: 110.3 | AB196: 0.438 | AC196: 4.11 | AD196: 87.6 | AE196: 165 | AF196: 10 | AG196: 3.2 | AH196: 40 | AI196: 0 | AJ196: 0 | AK196: 168 | AL196: 158 | AM196: =(AK196+AL196)/2-6.5 -> 156.50 | AN196: =SUM((AM196-160.6)/5.3) -> -0.77 | AO196: =R196-AN196 -> -1.74 | AP196: =(P196-C196)/365 -> 7.89 | AQ196: =Q196-AP196 -> 3.11 | AR196: =Q196/AP196 -> 1.39 | AS196: 2.7 | AT196: 1.32 | AU196: 2.11 | AV196: =(AT196+AU196)/2 -> 1.72 | AW196: =U196/V196 -> 0.227 | AX196: =((AA196*10)-192.8)/103 -> 8.837 | AY196: =SUM((AE196-210.4)/70.89) -> -0.640
A197: 196 | B197: 200435 | C197: 2009-09-03 | D197: 2016-06-03T09:35:00 | E197: =(D197-C197)/365 -> 6.75 | F197: 10.0 | G197: =F197/12 -> 0.83 | H197: =SUM(E197-(F197/12)) -> 5.92 | I197: 30.4 | J197: 130.0 | K197: 2.21 | L197: 1.81 | M197: 1.72 | N197: =I197/(J197*J197/10000) -> 17.99 | O197: 3 | P197: 2016-05-12 | Q197: 10.00 | R197: -1.61 | S197: 0.16 | T197: 2.29 | U197: 3.34 | V197: 15.42 | W197: 0.93 | X197: 3.63 | Y197: 0.91 | Z197: 2.37 | AA197: 36.9 | AB197: 0.3 | AC197: 7.24 | AD197: 55.6 | AE197: 185 | AF197: 10 | AG197: 3 | AH197: 42 | AI197: 0 | AJ197: 0 | AK197: 167 | AL197: 155 | AM197: =(AK197+AL197)/2-6.5 -> 154.50 | AN197: =SUM((AM197-160.6)/5.3) -> -1.15 | AO197: =R197-AN197 -> -0.46 | AP197: =(P197-C197)/365 -> 6.69 | AQ197: =Q197-AP197 -> 3.31 | AR197: =Q197/AP197 -> 1.49 | AS197: 3.0 | AT197: 0.74 | AU197: 0.78 | AV197: =(AT197+AU197)/2 -> 0.76 | AW197: =U197/V197 -> 0.217 | AX197: =((AA197*10)-192.8)/103 -> 1.711 | AY197: =SUM((AE197-188.29)/61.99) -> -0.053
A198: 197 | B198: 320357 | C198: 2009-11-12 | D198: 2016-06-05T11:39:00 | E198: =(D198-C198)/365 -> 6.57 | F198: 3.0 | G198: =F198/12 -> 0.25 | H198: =SUM(E198-(F198/12)) -> 6.32 | I198: 25.2 | J198: 127.4 | K198: 1.11 | L198: 1.55 | M198: 0.38 | N198: =I198/(J198*J198/10000) -> 15.53 | O198: 2 | P198: 2016-05-11 | Q198: 10.20 | R198: -2.20 | S198: 0.48 | T198: 3.67 | U198: 3.68 | V198: 18.27 | W198: 0.46 | X198: 3.82 | Y198: 1.85 | Z198: 1.96 | AA198: 62.4 | AB198: 0.463 | AC198: 6.43 | AD198: 87.6 | AE198: 234 | AF198: 10 | AG198: 4 | AH198: 41 | AI198: 0 | AJ198: 0 | AK198: 173 | AL198: 162 | AM198: =(AK198+AL198)/2-6.5 -> 161.00 | AN198: =SUM((AM198-160.6)/5.3) -> 0.08 | AO198: =R198-AN198 -> -2.28 | AP198: =(P198-C198)/365 -> 6.50 | AQ198: =Q198-AP198 -> 3.70 | AR198: =Q198/AP198 -> 1.57 | AS198: 3.1 | AT198: 0.55 | AU198: 0.79 | AV198: =(AT198+AU198)/2 -> 0.67 | AW198: =U198/V198 -> 0.201 | AX198: =((AA198*10)-192.8)/103 -> 4.186 | AY198: =SUM((AE198-188.29)/61.99) -> 0.737
A199: 198 | B199: 320917 | C199: 2008-05-17 | D199: 2016-06-10T16:24:00 | E199: =(D199-C199)/365 -> 8.07 | F199: 12.0 | G199: =F199/12 -> 1.00 | H199: =SUM(E199-(F199/12)) -> 7.07 | I199: 30.4 | J199: 131.2 | K199: 1.12 | L199: 0.44 | M199: 1.28 | N199: =I199/(J199*J199/10000) -> 17.66 | O199: 3 | P199: 2016-05-01 | Q199: 9.80 | R199: -1.23 | S199: 0.13 | T199: 1.55 | U199: 2.63 | V199: 21.32 | W199: 0.93 | X199: 4.89 | Y199: 1.43 | Z199: 3.11 | AA199: 59.2 | AB199: 0.362 | AC199: 13.06 | AD199: 36.9 | AE199: 299 | AF199: 10 | AG199: 3.1 | AH199: 40 | AI199: 0 | AJ199: 0 | AK199: 173 | AL199: 165 | AM199: =(AK199+AL199)/2-6.5 -> 162.50 | AN199: =SUM((AM199-160.6)/5.3) -> 0.36 | AO199: =R199-AN199 -> -1.59 | AP199: =(P199-C199)/365 -> 7.96 | AQ199: =Q199-AP199 -> 1.84 | AR199: =Q199/AP199 -> 1.23 | AS199: 2.5 | AT199: 0.36 | AU199: 1.12 | AV199: =(AT199+AU199)/2 -> 0.74 | AW199: =U199/V199 -> 0.123 | AX199: =((AA199*10)-240.4)/164.6 -> 2.136 | AY199: =SUM((AE199-261.66)/75.79) -> 0.493
A200: 199 | B200: 321123 | C200: 2010-04-17 | D200: 2016-06-12T11:32:00 | E200: =(D200-C200)/365 -> 6.16 | F200: 6.0 | G200: =F200/12 -> 0.50 | H200: =E200-(F200/12) -> 5.66 | I200: 27.5 | J200: 125.0 | K200: 2.06 | L200: 1.60 | M200: 1.61 | N200: =I200/(J200*J200/10000) -> 17.60 | O200: 3 | P200: 2016-06-13 | Q200: 8.50 | R200: -1.14 | S200: 0.20 | T200: 1.21 | U200: 4.08 | V200: 13.74 | W200: 1.33 | X200: 2.87 | Y200: 0.83 | Z200: 1.8 | AA200: 16.0 | AB200: 0.3 | AC200: 11.18 | AD200: 71.1 | AE200: 188 | AF200: 10 | AG200: 3 | AH200: 40 | AI200: 0 | AJ200: 0 | AK200: 173 | AL200: 156 | AM200: =(AK200+AL200)/2-6.5 -> 158.00 | AN200: =SUM((AM200-160.6)/5.3) -> -0.49 | AO200: =R200-AN200 -> -0.65 | AP200: =(P200-C200)/365 -> 6.16 | AQ200: =Q200-AP200 -> 2.34 | AR200: =Q200/AP200 -> 1.38 | AS200: 4.0 | AT200: 1.99 | AU200: 1.92 | AV200: =(AT200+AU200)/2 -> 1.96 | AW200: =U200/V200 -> 0.297 | AX200: =((AA200*10)-192.8)/103 -> -0.318 | AY200: =SUM((AE200-188.29)/61.99) -> -0.005
... 224 more rows
